Organisation Code,Organisation Label,Effective Date,Organisational Unit,Service Division Label,Category Internal Name,Purpose,Detailed Expenditure Code,Payment Date,Transaction Number,Irrecoverable VAT Amount,Amount,Capital Or Revenue,Benificiary Name,Procurement Card
Http://opendatacommunities.org/id/metropolitan-district-council/leeds,Leeds City Council,31/03/2016,Citizens And Communities,Benefits  Wlefare And Poverty  ,Supplies and Services,Telephones,213,23-Feb-16,1603-00001,0,80,R,(Aq) Limited,Yes
Http://opendatacommunities.org/id/metropolitan-district-council/leeds,Leeds City Council,31/03/2016,Central & Corporate,Commercial Services Trading Services,Supplies and Services,Operational Materials,205,04-Mar-16,1603-00002,0,63.75,R,A & A Electrical Distributors Ltd,No
Http://opendatacommunities.org/id/metropolitan-district-council/leeds,Leeds City Council,31/03/2016,Central & Corporate,Commercial Services Trading Services,Supplies and Services,Operational Materials,205,11-Mar-16,1603-00003,0,76.52,R,A & A Electrical Distributors Ltd,No
Http://opendatacommunities.org/id/metropolitan-district-council/leeds,Leeds City Council,31/03/2016,Central & Corporate,Commercial Services Trading Services,Supplies and Services,Operational Materials,205,11-Mar-16,1603-00004,0,35.25,R,A & A Electrical Distributors Ltd,No
Http://opendatacommunities.org/id/metropolitan-district-council/leeds,Leeds City Council,31/03/2016,Central & Corporate,Commercial Services Trading Services,Supplies and Services,Operational Materials,205,11-Mar-16,1603-00005,0,61.17,R,A & A Electrical Distributors Ltd,No
Http://opendatacommunities.org/id/metropolitan-district-council/leeds,Leeds City Council,31/03/2016,Environment & Housing,Parks and Countryside,Supplies and Services,Other Hired And Contracted Services,265,03-Mar-16,1603-00006,0,1200,R,A & G Hoare,No
Http://opendatacommunities.org/id/metropolitan-district-council/leeds,Leeds City Council,31/03/2016,Citizens and Communities,Benefits  Wlefare and Poverty,Supplies and Services,Non-Recurring Grants,227,01-Mar-16,1603-00007,0,5000,R,REDACTED PERSONAL DATA,No
Http://opendatacommunities.org/id/metropolitan-district-council/leeds,Leeds City Council,31/03/2016,Environment & Housing,Housing Leeds Service,Capital,Other Costs,7,31-Mar-16,1603-00008,0,380,C,REDACTED PERSONAL DATA,No
Http://opendatacommunities.org/id/metropolitan-district-council/leeds,Leeds City Council,31/03/2016,City Development,Libraries  Arts & Heritage,Supplies and Services,Operational Materials,205,23-Mar-16,1603-00009,0,701.63,R,A C Entertainment Technologies Ltd,No
Http://opendatacommunities.org/id/metropolitan-district-council/leeds,Leeds City Council,31/03/2016,Childrens Services,Safeguarding Targeted & Specialist,Third Party Payments,Allowance Enhancements,547,02-Mar-16,1603-00010,0,216.57,R,REDACTED PERSONAL DATA,No
Http://opendatacommunities.org/id/metropolitan-district-council/leeds,Leeds City Council,31/03/2016,Childrens Services,Learning Skills & Universal,Third Party Payments,Services Rendered By Other Organisations,511,11-Mar-16,1603-00011,0,800.25,R,A Clarkson,No
Http://opendatacommunities.org/id/metropolitan-district-council/leeds,Leeds City Council,31/03/2016,Environment & Housing,Parks and Countryside,Supplies and Services,Bought In Professional Services,277,04-Mar-16,1603-00012,0,1389.04,R,REDACTED COMMERCIAL CONFIDENTIALITY,No
Http://opendatacommunities.org/id/metropolitan-district-council/leeds,Leeds City Council,31/03/2016,Childrens Services,Learning Skills & Universal,Third Party Payments,Services Rendered By Voluntary Sector,505,11-Mar-16,1603-00013,0,593.64,R,A E Speight,No
Http://opendatacommunities.org/id/metropolitan-district-council/leeds,Leeds City Council,31/03/2016,Childrens Services,Learning Skills & Universal,Third Party Payments,Services Rendered By Voluntary Sector,505,18-Mar-16,1603-00014,0,2939.31,R,A E Speight,No
Http://opendatacommunities.org/id/metropolitan-district-council/leeds,Leeds City Council,31/03/2016,Childrens Services,Learning Skills & Universal,Third Party Payments,Services Rendered By Other Organisations,511,30-Mar-16,1603-00015,0,218.25,R,A E Speight,No
Http://opendatacommunities.org/id/metropolitan-district-council/leeds,Leeds City Council,31/03/2016,Environment & Housing,Housing Leeds Service,Capital,Other Costs,7,15-Mar-16,1603-00016,0,380,C,REDACTED PERSONAL DATA,No
Http://opendatacommunities.org/id/metropolitan-district-council/leeds,Leeds City Council,31/03/2016,Childrens Services,Learning Skills & Universal,Third Party Payments,Services Rendered By Other Organisations,511,18-Mar-16,1603-00017,0,461.17,R,A Foley,No
Http://opendatacommunities.org/id/metropolitan-district-council/leeds,Leeds City Council,31/03/2016,Childrens Services,Learning Skills & Universal,Third Party Payments,Services Rendered By Other Organisations,511,11-Mar-16,1603-00018,0,1120.35,R,A Green,No
Http://opendatacommunities.org/id/metropolitan-district-council/leeds,Leeds City Council,31/03/2016,Environment & Housing,Housing Leeds Service,Capital,Other Costs,7,31-Mar-16,1603-00019,0,260,C,REDACTED PERSONAL DATA,No
Http://opendatacommunities.org/id/metropolitan-district-council/leeds,Leeds City Council,31/03/2016,Childrens Services,Learning Skills & Universal,Third Party Payments,Services Rendered By Other Organisations,511,18-Mar-16,1603-00020,0,125.4,R,A Hayes,No
Http://opendatacommunities.org/id/metropolitan-district-council/leeds,Leeds City Council,31/03/2016,Childrens Services,Learning Skills & Universal,Third Party Payments,Services Rendered By Other Organisations,511,18-Mar-16,1603-00021,0,250.8,R,A Hodgson,No
Http://opendatacommunities.org/id/metropolitan-district-council/leeds,Leeds City Council,31/03/2016,Central & Corporate,Commercial Services Trading Services,Supplies and Services,Operational Materials,205,01-Mar-16,1603-00022,0,123.82,R,A J H  Pump Supply & Repair Ltd,No
Http://opendatacommunities.org/id/metropolitan-district-council/leeds,Leeds City Council,31/03/2016,Central & Corporate,Commercial Services Trading Services,Supplies and Services,Operational Materials,205,01-Mar-16,1603-00023,0,61.84,R,A J H  Pump Supply & Repair Ltd,No
Http://opendatacommunities.org/id/metropolitan-district-council/leeds,Leeds City Council,31/03/2016,Central & Corporate,Commercial Services Trading Services,Supplies and Services,Operational Materials,205,01-Mar-16,1603-00024,0,146.88,R,A J H  Pump Supply & Repair Ltd,No
Http://opendatacommunities.org/id/metropolitan-district-council/leeds,Leeds City Council,31/03/2016,Central & Corporate,Commercial Services Trading Services,Supplies and Services,Operational Materials,205,01-Mar-16,1603-00025,0,395.26,R,A J H  Pump Supply & Repair Ltd,No
Http://opendatacommunities.org/id/metropolitan-district-council/leeds,Leeds City Council,31/03/2016,Central & Corporate,Commercial Services Trading Services,Supplies and Services,Operational Materials,205,01-Mar-16,1603-00026,0,24.5,R,A J H  Pump Supply & Repair Ltd,No
Http://opendatacommunities.org/id/metropolitan-district-council/leeds,Leeds City Council,31/03/2016,Central & Corporate,Commercial Services Trading Services,Supplies and Services,Operational Materials,205,01-Mar-16,1603-00027,0,34.51,R,A J H  Pump Supply & Repair Ltd,No
Http://opendatacommunities.org/id/metropolitan-district-council/leeds,Leeds City Council,31/03/2016,Central & Corporate,Commercial Services Trading Services,Supplies and Services,Operational Materials,205,01-Mar-16,1603-00028,0,157.84,R,A J H  Pump Supply & Repair Ltd,No
Http://opendatacommunities.org/id/metropolitan-district-council/leeds,Leeds City Council,31/03/2016,Central & Corporate,Commercial Services Trading Services,Supplies and Services,Operational Materials,205,01-Mar-16,1603-00029,0,950,R,A J H  Pump Supply & Repair Ltd,No
Http://opendatacommunities.org/id/metropolitan-district-council/leeds,Leeds City Council,31/03/2016,Central & Corporate,Commercial Services Trading Services,Supplies and Services,Operational Materials,205,01-Mar-16,1603-00030,0,211.25,R,A J H  Pump Supply & Repair Ltd,No
Http://opendatacommunities.org/id/metropolitan-district-council/leeds,Leeds City Council,31/03/2016,Central & Corporate,Commercial Services Trading Services,Supplies and Services,Operational Materials,205,01-Mar-16,1603-00031,0,131.26,R,A J H  Pump Supply & Repair Ltd,No
Http://opendatacommunities.org/id/metropolitan-district-council/leeds,Leeds City Council,31/03/2016,Central & Corporate,Commercial Services Trading Services,Supplies and Services,Operational Materials,205,01-Mar-16,1603-00032,0,356,R,A J H  Pump Supply & Repair Ltd,No
Http://opendatacommunities.org/id/metropolitan-district-council/leeds,Leeds City Council,31/03/2016,Central & Corporate,Commercial Services Trading Services,Supplies and Services,Operational Materials,205,01-Mar-16,1603-00033,0,930,R,A J H  Pump Supply & Repair Ltd,No
Http://opendatacommunities.org/id/metropolitan-district-council/leeds,Leeds City Council,31/03/2016,Central & Corporate,Commercial Services Trading Services,Supplies and Services,Operational Materials,205,04-Mar-16,1603-00034,0,64.6,R,A J H  Pump Supply & Repair Ltd,No
Http://opendatacommunities.org/id/metropolitan-district-council/leeds,Leeds City Council,31/03/2016,Central & Corporate,Commercial Services Trading Services,Supplies and Services,Operational Materials,205,04-Mar-16,1603-00035,0,191.02,R,A J H  Pump Supply & Repair Ltd,No
Http://opendatacommunities.org/id/metropolitan-district-council/leeds,Leeds City Council,31/03/2016,Central & Corporate,Commercial Services Trading Services,Supplies and Services,Operational Materials,205,04-Mar-16,1603-00036,0,61.92,R,A J H  Pump Supply & Repair Ltd,No
Http://opendatacommunities.org/id/metropolitan-district-council/leeds,Leeds City Council,31/03/2016,Central & Corporate,Commercial Services Trading Services,Supplies and Services,Operational Materials,205,04-Mar-16,1603-00037,0,445,R,A J H  Pump Supply & Repair Ltd,No
Http://opendatacommunities.org/id/metropolitan-district-council/leeds,Leeds City Council,31/03/2016,Central & Corporate,Commercial Services Trading Services,Supplies and Services,Operational Materials,205,04-Mar-16,1603-00038,0,345,R,A J H  Pump Supply & Repair Ltd,No
Http://opendatacommunities.org/id/metropolitan-district-council/leeds,Leeds City Council,31/03/2016,Central & Corporate,Commercial Services Trading Services,Supplies and Services,Operational Materials,205,04-Mar-16,1603-00039,0,1148,R,A J H  Pump Supply & Repair Ltd,No
Http://opendatacommunities.org/id/metropolitan-district-council/leeds,Leeds City Council,31/03/2016,Central & Corporate,Commercial Services Trading Services,Supplies and Services,Operational Materials,205,04-Mar-16,1603-00040,0,498.56,R,A J H  Pump Supply & Repair Ltd,No
Http://opendatacommunities.org/id/metropolitan-district-council/leeds,Leeds City Council,31/03/2016,Central & Corporate,Commercial Services Trading Services,Supplies and Services,Operational Materials,205,04-Mar-16,1603-00041,0,130,R,A J H  Pump Supply & Repair Ltd,No
Http://opendatacommunities.org/id/metropolitan-district-council/leeds,Leeds City Council,31/03/2016,Central & Corporate,Commercial Services Trading Services,Supplies and Services,Operational Materials,205,04-Mar-16,1603-00042,0,2151,R,A J H  Pump Supply & Repair Ltd,No
Http://opendatacommunities.org/id/metropolitan-district-council/leeds,Leeds City Council,31/03/2016,Central & Corporate,Commercial Services Trading Services,Supplies and Services,Operational Materials,205,04-Mar-16,1603-00043,0,885,R,A J H  Pump Supply & Repair Ltd,No
Http://opendatacommunities.org/id/metropolitan-district-council/leeds,Leeds City Council,31/03/2016,Central & Corporate,Commercial Services Trading Services,Supplies and Services,Operational Materials,205,04-Mar-16,1603-00044,0,1954.56,R,A J H  Pump Supply & Repair Ltd,No
Http://opendatacommunities.org/id/metropolitan-district-council/leeds,Leeds City Council,31/03/2016,Central & Corporate,Commercial Services Trading Services,Supplies and Services,Operational Materials,205,04-Mar-16,1603-00045,0,134.91,R,A J H  Pump Supply & Repair Ltd,No
Http://opendatacommunities.org/id/metropolitan-district-council/leeds,Leeds City Council,31/03/2016,Central & Corporate,Commercial Services Trading Services,Supplies and Services,Operational Materials,205,04-Mar-16,1603-00046,0,105.34,R,A J H  Pump Supply & Repair Ltd,No
Http://opendatacommunities.org/id/metropolitan-district-council/leeds,Leeds City Council,31/03/2016,Central & Corporate,Commercial Services Trading Services,Supplies and Services,Operational Materials,205,04-Mar-16,1603-00047,0,52.23,R,A J H  Pump Supply & Repair Ltd,No
Http://opendatacommunities.org/id/metropolitan-district-council/leeds,Leeds City Council,31/03/2016,Central & Corporate,Commercial Services Trading Services,Supplies and Services,Operational Materials,205,04-Mar-16,1603-00048,0,15.9,R,A J H  Pump Supply & Repair Ltd,No
Http://opendatacommunities.org/id/metropolitan-district-council/leeds,Leeds City Council,31/03/2016,Central & Corporate,Commercial Services Trading Services,Supplies and Services,Operational Materials,205,04-Mar-16,1603-00049,0,124.5,R,A J H  Pump Supply & Repair Ltd,No
Http://opendatacommunities.org/id/metropolitan-district-council/leeds,Leeds City Council,31/03/2016,Central & Corporate,Commercial Services Trading Services,Supplies and Services,Operational Materials,205,04-Mar-16,1603-00050,0,145,R,A J H  Pump Supply & Repair Ltd,No
Http://opendatacommunities.org/id/metropolitan-district-council/leeds,Leeds City Council,31/03/2016,Central & Corporate,Commercial Services Trading Services,Supplies and Services,Operational Materials,205,04-Mar-16,1603-00051,0,343.92,R,A J H  Pump Supply & Repair Ltd,No
Http://opendatacommunities.org/id/metropolitan-district-council/leeds,Leeds City Council,31/03/2016,Central & Corporate,Commercial Services Trading Services,Supplies and Services,Operational Materials,205,04-Mar-16,1603-00052,0,162.42,R,A J H  Pump Supply & Repair Ltd,No
Http://opendatacommunities.org/id/metropolitan-district-council/leeds,Leeds City Council,31/03/2016,Central & Corporate,Commercial Services Trading Services,Supplies and Services,Operational Materials,205,04-Mar-16,1603-00053,0,109,R,A J H  Pump Supply & Repair Ltd,No
Http://opendatacommunities.org/id/metropolitan-district-council/leeds,Leeds City Council,31/03/2016,Central & Corporate,Commercial Services Trading Services,Supplies and Services,Operational Materials,205,04-Mar-16,1603-00054,0,301,R,A J H  Pump Supply & Repair Ltd,No
Http://opendatacommunities.org/id/metropolitan-district-council/leeds,Leeds City Council,31/03/2016,Central & Corporate,Commercial Services Trading Services,Supplies and Services,Operational Materials,205,04-Mar-16,1603-00055,0,17.16,R,A J H  Pump Supply & Repair Ltd,No
Http://opendatacommunities.org/id/metropolitan-district-council/leeds,Leeds City Council,31/03/2016,Central & Corporate,Commercial Services Trading Services,Supplies and Services,Operational Materials,205,04-Mar-16,1603-00056,0,98.81,R,A J H  Pump Supply & Repair Ltd,No
Http://opendatacommunities.org/id/metropolitan-district-council/leeds,Leeds City Council,31/03/2016,Central & Corporate,Commercial Services Trading Services,Supplies and Services,Operational Materials,205,04-Mar-16,1603-00057,0,33.59,R,A J H  Pump Supply & Repair Ltd,No
Http://opendatacommunities.org/id/metropolitan-district-council/leeds,Leeds City Council,31/03/2016,Central & Corporate,Commercial Services Trading Services,Supplies and Services,Operational Materials,205,04-Mar-16,1603-00058,0,18.22,R,A J H  Pump Supply & Repair Ltd,No
Http://opendatacommunities.org/id/metropolitan-district-council/leeds,Leeds City Council,31/03/2016,Central & Corporate,Commercial Services Trading Services,Supplies and Services,Operational Materials,205,04-Mar-16,1603-00059,0,44.33,R,A J H  Pump Supply & Repair Ltd,No
Http://opendatacommunities.org/id/metropolitan-district-council/leeds,Leeds City Council,31/03/2016,Central & Corporate,Commercial Services Trading Services,Supplies and Services,Operational Materials,205,04-Mar-16,1603-00060,0,581,R,A J H  Pump Supply & Repair Ltd,No
Http://opendatacommunities.org/id/metropolitan-district-council/leeds,Leeds City Council,31/03/2016,Central & Corporate,Commercial Services Trading Services,Supplies and Services,Operational Materials,205,04-Mar-16,1603-00061,0,329.25,R,A J H  Pump Supply & Repair Ltd,No
Http://opendatacommunities.org/id/metropolitan-district-council/leeds,Leeds City Council,31/03/2016,Central & Corporate,Commercial Services Trading Services,Supplies and Services,Operational Materials,205,04-Mar-16,1603-00062,0,35,R,A J H  Pump Supply & Repair Ltd,No
Http://opendatacommunities.org/id/metropolitan-district-council/leeds,Leeds City Council,31/03/2016,Central & Corporate,Commercial Services Trading Services,Supplies and Services,Operational Materials,205,04-Mar-16,1603-00063,0,20.5,R,A J H  Pump Supply & Repair Ltd,No
Http://opendatacommunities.org/id/metropolitan-district-council/leeds,Leeds City Council,31/03/2016,Central & Corporate,Commercial Services Trading Services,Supplies and Services,Operational Materials,205,04-Mar-16,1603-00064,0,33.59,R,A J H  Pump Supply & Repair Ltd,No
Http://opendatacommunities.org/id/metropolitan-district-council/leeds,Leeds City Council,31/03/2016,Central & Corporate,Commercial Services Trading Services,Supplies and Services,Operational Materials,205,04-Mar-16,1603-00065,0,560,R,A J H  Pump Supply & Repair Ltd,No
Http://opendatacommunities.org/id/metropolitan-district-council/leeds,Leeds City Council,31/03/2016,Central & Corporate,Commercial Services Trading Services,Supplies and Services,Operational Materials,205,04-Mar-16,1603-00066,0,332.26,R,A J H  Pump Supply & Repair Ltd,No
Http://opendatacommunities.org/id/metropolitan-district-council/leeds,Leeds City Council,31/03/2016,Central & Corporate,Commercial Services Trading Services,Supplies and Services,Operational Materials,205,04-Mar-16,1603-00067,0,89.95,R,A J H  Pump Supply & Repair Ltd,No
Http://opendatacommunities.org/id/metropolitan-district-council/leeds,Leeds City Council,31/03/2016,Central & Corporate,Commercial Services Trading Services,Supplies and Services,Operational Materials,205,04-Mar-16,1603-00068,0,108,R,A J H  Pump Supply & Repair Ltd,No
Http://opendatacommunities.org/id/metropolitan-district-council/leeds,Leeds City Council,31/03/2016,Central & Corporate,Commercial Services Trading Services,Supplies and Services,Operational Materials,205,04-Mar-16,1603-00069,0,66.91,R,A J H  Pump Supply & Repair Ltd,No
Http://opendatacommunities.org/id/metropolitan-district-council/leeds,Leeds City Council,31/03/2016,Central & Corporate,Commercial Services Trading Services,Supplies and Services,Operational Materials,205,04-Mar-16,1603-00070,0,135,R,A J H  Pump Supply & Repair Ltd,No
Http://opendatacommunities.org/id/metropolitan-district-council/leeds,Leeds City Council,31/03/2016,Central & Corporate,Commercial Services Trading Services,Supplies and Services,Operational Materials,205,04-Mar-16,1603-00071,0,115,R,A J H  Pump Supply & Repair Ltd,No
Http://opendatacommunities.org/id/metropolitan-district-council/leeds,Leeds City Council,31/03/2016,Central & Corporate,Commercial Services Trading Services,Supplies and Services,Operational Materials,205,04-Mar-16,1603-00072,0,87.3,R,A J H  Pump Supply & Repair Ltd,No
Http://opendatacommunities.org/id/metropolitan-district-council/leeds,Leeds City Council,31/03/2016,Central & Corporate,Commercial Services Trading Services,Supplies and Services,Operational Materials,205,04-Mar-16,1603-00073,0,179.95,R,A J H  Pump Supply & Repair Ltd,No
Http://opendatacommunities.org/id/metropolitan-district-council/leeds,Leeds City Council,31/03/2016,Central & Corporate,Commercial Services Trading Services,Supplies and Services,Operational Materials,205,04-Mar-16,1603-00074,0,59.73,R,A J H  Pump Supply & Repair Ltd,No
Http://opendatacommunities.org/id/metropolitan-district-council/leeds,Leeds City Council,31/03/2016,Central & Corporate,Commercial Services Trading Services,Supplies and Services,Operational Materials,205,04-Mar-16,1603-00075,0,249.02,R,A J H  Pump Supply & Repair Ltd,No
Http://opendatacommunities.org/id/metropolitan-district-council/leeds,Leeds City Council,31/03/2016,Central & Corporate,Commercial Services Trading Services,Supplies and Services,Operational Materials,205,04-Mar-16,1603-00076,0,335,R,A J H  Pump Supply & Repair Ltd,No
Http://opendatacommunities.org/id/metropolitan-district-council/leeds,Leeds City Council,31/03/2016,Central & Corporate,Commercial Services Trading Services,Supplies and Services,Operational Materials,205,04-Mar-16,1603-00077,0,65,R,A J H  Pump Supply & Repair Ltd,No
Http://opendatacommunities.org/id/metropolitan-district-council/leeds,Leeds City Council,31/03/2016,Central & Corporate,Commercial Services Trading Services,Supplies and Services,Operational Materials,205,04-Mar-16,1603-00078,0,68.73,R,A J H  Pump Supply & Repair Ltd,No
Http://opendatacommunities.org/id/metropolitan-district-council/leeds,Leeds City Council,31/03/2016,Central & Corporate,Commercial Services Trading Services,Supplies and Services,Operational Materials,205,04-Mar-16,1603-00079,0,14.36,R,A J H  Pump Supply & Repair Ltd,No
Http://opendatacommunities.org/id/metropolitan-district-council/leeds,Leeds City Council,31/03/2016,Central & Corporate,Commercial Services Trading Services,Supplies and Services,Operational Materials,205,04-Mar-16,1603-00080,0,78,R,A J H  Pump Supply & Repair Ltd,No
Http://opendatacommunities.org/id/metropolitan-district-council/leeds,Leeds City Council,31/03/2016,Central & Corporate,Commercial Services Trading Services,Supplies and Services,Operational Materials,205,04-Mar-16,1603-00081,0,10.1,R,A J H  Pump Supply & Repair Ltd,No
Http://opendatacommunities.org/id/metropolitan-district-council/leeds,Leeds City Council,31/03/2016,Central & Corporate,Commercial Services Trading Services,Supplies and Services,Other Hired And Contracted Services,265,08-Mar-16,1603-00082,0,140,R,A J H  Pump Supply & Repair Ltd,No
Http://opendatacommunities.org/id/metropolitan-district-council/leeds,Leeds City Council,31/03/2016,Central & Corporate,Commercial Services Trading Services,Supplies and Services,Other Hired And Contracted Services,265,09-Mar-16,1603-00083,0,895,R,A J H  Pump Supply & Repair Ltd,No
Http://opendatacommunities.org/id/metropolitan-district-council/leeds,Leeds City Council,31/03/2016,Central & Corporate,Commercial Services Trading Services,Supplies and Services,Operational Materials,205,09-Mar-16,1603-00084,0,12.45,R,A J H  Pump Supply & Repair Ltd,No
Http://opendatacommunities.org/id/metropolitan-district-council/leeds,Leeds City Council,31/03/2016,Central & Corporate,Commercial Services Trading Services,Supplies and Services,Operational Materials,205,09-Mar-16,1603-00085,0,22.95,R,A J H  Pump Supply & Repair Ltd,No
Http://opendatacommunities.org/id/metropolitan-district-council/leeds,Leeds City Council,31/03/2016,Central & Corporate,Commercial Services Trading Services,Supplies and Services,Operational Materials,205,09-Mar-16,1603-00086,0,112.47,R,A J H  Pump Supply & Repair Ltd,No
Http://opendatacommunities.org/id/metropolitan-district-council/leeds,Leeds City Council,31/03/2016,Central & Corporate,Commercial Services Trading Services,Supplies and Services,Operational Materials,205,09-Mar-16,1603-00087,0,95,R,A J H  Pump Supply & Repair Ltd,No
Http://opendatacommunities.org/id/metropolitan-district-council/leeds,Leeds City Council,31/03/2016,Central & Corporate,Commercial Services Trading Services,Supplies and Services,Operational Materials,205,09-Mar-16,1603-00088,0,61.5,R,A J H  Pump Supply & Repair Ltd,No
Http://opendatacommunities.org/id/metropolitan-district-council/leeds,Leeds City Council,31/03/2016,Central & Corporate,Commercial Services Trading Services,Supplies and Services,Operational Materials,205,09-Mar-16,1603-00089,0,7.84,R,A J H  Pump Supply & Repair Ltd,No
Http://opendatacommunities.org/id/metropolitan-district-council/leeds,Leeds City Council,31/03/2016,Central & Corporate,Commercial Services Trading Services,Supplies and Services,Operational Materials,205,09-Mar-16,1603-00090,0,376,R,A J H  Pump Supply & Repair Ltd,No
Http://opendatacommunities.org/id/metropolitan-district-council/leeds,Leeds City Council,31/03/2016,Central & Corporate,Commercial Services Trading Services,Supplies and Services,Operational Materials,205,09-Mar-16,1603-00091,0,75,R,A J H  Pump Supply & Repair Ltd,No
Http://opendatacommunities.org/id/metropolitan-district-council/leeds,Leeds City Council,31/03/2016,Central & Corporate,Commercial Services Trading Services,Supplies and Services,Operational Materials,205,09-Mar-16,1603-00092,0,36.66,R,A J H  Pump Supply & Repair Ltd,No
Http://opendatacommunities.org/id/metropolitan-district-council/leeds,Leeds City Council,31/03/2016,Central & Corporate,Commercial Services Trading Services,Supplies and Services,Operational Materials,205,09-Mar-16,1603-00093,0,56.47,R,A J H  Pump Supply & Repair Ltd,No
Http://opendatacommunities.org/id/metropolitan-district-council/leeds,Leeds City Council,31/03/2016,Central & Corporate,Commercial Services Trading Services,Supplies and Services,Operational Materials,205,09-Mar-16,1603-00094,0,440,R,A J H  Pump Supply & Repair Ltd,No
Http://opendatacommunities.org/id/metropolitan-district-council/leeds,Leeds City Council,31/03/2016,Central & Corporate,Commercial Services Trading Services,Supplies and Services,Operational Materials,205,09-Mar-16,1603-00095,0,120,R,A J H  Pump Supply & Repair Ltd,No
Http://opendatacommunities.org/id/metropolitan-district-council/leeds,Leeds City Council,31/03/2016,Central & Corporate,Commercial Services Trading Services,Supplies and Services,Operational Materials,205,09-Mar-16,1603-00096,0,35,R,A J H  Pump Supply & Repair Ltd,No
Http://opendatacommunities.org/id/metropolitan-district-council/leeds,Leeds City Council,31/03/2016,Central & Corporate,Commercial Services Trading Services,Supplies and Services,Operational Materials,205,09-Mar-16,1603-00097,0,391,R,A J H  Pump Supply & Repair Ltd,No
Http://opendatacommunities.org/id/metropolitan-district-council/leeds,Leeds City Council,31/03/2016,Central & Corporate,Commercial Services Trading Services,Supplies and Services,Operational Materials,205,09-Mar-16,1603-00098,0,1405,R,A J H  Pump Supply & Repair Ltd,No
Http://opendatacommunities.org/id/metropolitan-district-council/leeds,Leeds City Council,31/03/2016,Central & Corporate,Commercial Services Trading Services,Supplies and Services,Operational Materials,205,09-Mar-16,1603-00099,0,15,R,A J H  Pump Supply & Repair Ltd,No
Http://opendatacommunities.org/id/metropolitan-district-council/leeds,Leeds City Council,31/03/2016,Central & Corporate,Commercial Services Trading Services,Supplies and Services,Operational Materials,205,09-Mar-16,1603-00100,0,126,R,A J H  Pump Supply & Repair Ltd,No
Http://opendatacommunities.org/id/metropolitan-district-council/leeds,Leeds City Council,31/03/2016,Central & Corporate,Commercial Services Trading Services,Supplies and Services,Operational Materials,205,09-Mar-16,1603-00101,0,198,R,A J H  Pump Supply & Repair Ltd,No
Http://opendatacommunities.org/id/metropolitan-district-council/leeds,Leeds City Council,31/03/2016,Central & Corporate,Commercial Services Trading Services,Supplies and Services,Operational Materials,205,09-Mar-16,1603-00102,0,48.54,R,A J H  Pump Supply & Repair Ltd,No
Http://opendatacommunities.org/id/metropolitan-district-council/leeds,Leeds City Council,31/03/2016,Central & Corporate,Commercial Services Trading Services,Supplies and Services,Operational Materials,205,09-Mar-16,1603-00103,0,108,R,A J H  Pump Supply & Repair Ltd,No
Http://opendatacommunities.org/id/metropolitan-district-council/leeds,Leeds City Council,31/03/2016,Central & Corporate,Commercial Services Trading Services,Supplies and Services,Operational Materials,205,09-Mar-16,1603-00104,0,145.95,R,A J H  Pump Supply & Repair Ltd,No
Http://opendatacommunities.org/id/metropolitan-district-council/leeds,Leeds City Council,31/03/2016,Central & Corporate,Commercial Services Trading Services,Supplies and Services,Operational Materials,205,09-Mar-16,1603-00105,0,49.9,R,A J H  Pump Supply & Repair Ltd,No
Http://opendatacommunities.org/id/metropolitan-district-council/leeds,Leeds City Council,31/03/2016,Central & Corporate,Commercial Services Trading Services,Supplies and Services,Operational Materials,205,09-Mar-16,1603-00106,0,28.17,R,A J H  Pump Supply & Repair Ltd,No
Http://opendatacommunities.org/id/metropolitan-district-council/leeds,Leeds City Council,31/03/2016,Central & Corporate,Commercial Services Trading Services,Supplies and Services,Operational Materials,205,09-Mar-16,1603-00107,0,106.87,R,A J H  Pump Supply & Repair Ltd,No
Http://opendatacommunities.org/id/metropolitan-district-council/leeds,Leeds City Council,31/03/2016,Central & Corporate,Commercial Services Trading Services,Supplies and Services,Operational Materials,205,09-Mar-16,1603-00108,0,33.59,R,A J H  Pump Supply & Repair Ltd,No
Http://opendatacommunities.org/id/metropolitan-district-council/leeds,Leeds City Council,31/03/2016,Central & Corporate,Commercial Services Trading Services,Supplies and Services,Operational Materials,205,09-Mar-16,1603-00109,0,11.7,R,A J H  Pump Supply & Repair Ltd,No
Http://opendatacommunities.org/id/metropolitan-district-council/leeds,Leeds City Council,31/03/2016,Central & Corporate,Commercial Services Trading Services,Supplies and Services,Operational Materials,205,09-Mar-16,1603-00110,0,50.95,R,A J H  Pump Supply & Repair Ltd,No
Http://opendatacommunities.org/id/metropolitan-district-council/leeds,Leeds City Council,31/03/2016,Central & Corporate,Commercial Services Trading Services,Supplies and Services,Operational Materials,205,09-Mar-16,1603-00111,0,64.54,R,A J H  Pump Supply & Repair Ltd,No
Http://opendatacommunities.org/id/metropolitan-district-council/leeds,Leeds City Council,31/03/2016,Central & Corporate,Commercial Services Trading Services,Supplies and Services,Operational Materials,205,09-Mar-16,1603-00112,0,209.7,R,A J H  Pump Supply & Repair Ltd,No
Http://opendatacommunities.org/id/metropolitan-district-council/leeds,Leeds City Council,31/03/2016,Central & Corporate,Commercial Services Trading Services,Supplies and Services,Operational Materials,205,09-Mar-16,1603-00113,0,333.47,R,A J H  Pump Supply & Repair Ltd,No
Http://opendatacommunities.org/id/metropolitan-district-council/leeds,Leeds City Council,31/03/2016,Central & Corporate,Commercial Services Trading Services,Supplies and Services,Operational Materials,205,09-Mar-16,1603-00114,0,178.65,R,A J H  Pump Supply & Repair Ltd,No
Http://opendatacommunities.org/id/metropolitan-district-council/leeds,Leeds City Council,31/03/2016,Central & Corporate,Commercial Services Trading Services,Supplies and Services,Operational Materials,205,09-Mar-16,1603-00115,0,99.7,R,A J H  Pump Supply & Repair Ltd,No
Http://opendatacommunities.org/id/metropolitan-district-council/leeds,Leeds City Council,31/03/2016,Central & Corporate,Commercial Services Trading Services,Supplies and Services,Operational Materials,205,09-Mar-16,1603-00116,0,88.9,R,A J H  Pump Supply & Repair Ltd,No
Http://opendatacommunities.org/id/metropolitan-district-council/leeds,Leeds City Council,31/03/2016,Central & Corporate,Commercial Services Trading Services,Supplies and Services,Operational Materials,205,09-Mar-16,1603-00117,0,75.25,R,A J H  Pump Supply & Repair Ltd,No
Http://opendatacommunities.org/id/metropolitan-district-council/leeds,Leeds City Council,31/03/2016,Central & Corporate,Commercial Services Trading Services,Supplies and Services,Operational Materials,205,11-Mar-16,1603-00118,0,73.42,R,A J H  Pump Supply & Repair Ltd,No
Http://opendatacommunities.org/id/metropolitan-district-council/leeds,Leeds City Council,31/03/2016,Central & Corporate,Commercial Services Trading Services,Supplies and Services,Operational Materials,205,11-Mar-16,1603-00119,0,265,R,A J H  Pump Supply & Repair Ltd,No
Http://opendatacommunities.org/id/metropolitan-district-council/leeds,Leeds City Council,31/03/2016,Central & Corporate,Commercial Services Trading Services,Supplies and Services,Operational Materials,205,11-Mar-16,1603-00120,0,144.52,R,A J H  Pump Supply & Repair Ltd,No
Http://opendatacommunities.org/id/metropolitan-district-council/leeds,Leeds City Council,31/03/2016,Central & Corporate,Commercial Services Trading Services,Supplies and Services,Operational Materials,205,11-Mar-16,1603-00121,0,63.5,R,A J H  Pump Supply & Repair Ltd,No
Http://opendatacommunities.org/id/metropolitan-district-council/leeds,Leeds City Council,31/03/2016,Central & Corporate,Commercial Services Trading Services,Supplies and Services,Operational Materials,205,11-Mar-16,1603-00122,0,61.69,R,A J H  Pump Supply & Repair Ltd,No
Http://opendatacommunities.org/id/metropolitan-district-council/leeds,Leeds City Council,31/03/2016,Central & Corporate,Commercial Services Trading Services,Supplies and Services,Operational Materials,205,11-Mar-16,1603-00123,0,71,R,A J H  Pump Supply & Repair Ltd,No
Http://opendatacommunities.org/id/metropolitan-district-council/leeds,Leeds City Council,31/03/2016,Central & Corporate,Commercial Services Trading Services,Supplies and Services,Operational Materials,205,11-Mar-16,1603-00124,0,396,R,A J H  Pump Supply & Repair Ltd,No
Http://opendatacommunities.org/id/metropolitan-district-council/leeds,Leeds City Council,31/03/2016,Central & Corporate,Commercial Services Trading Services,Supplies and Services,Operational Materials,205,11-Mar-16,1603-00125,0,149.1,R,A J H  Pump Supply & Repair Ltd,No
Http://opendatacommunities.org/id/metropolitan-district-council/leeds,Leeds City Council,31/03/2016,Central & Corporate,Commercial Services Trading Services,Supplies and Services,Operational Materials,205,11-Mar-16,1603-00126,0,337.72,R,A J H  Pump Supply & Repair Ltd,No
Http://opendatacommunities.org/id/metropolitan-district-council/leeds,Leeds City Council,31/03/2016,Central & Corporate,Commercial Services Trading Services,Supplies and Services,Operational Materials,205,11-Mar-16,1603-00127,0,60.5,R,A J H  Pump Supply & Repair Ltd,No
Http://opendatacommunities.org/id/metropolitan-district-council/leeds,Leeds City Council,31/03/2016,Central & Corporate,Commercial Services Trading Services,Supplies and Services,Other Hired And Contracted Services,265,11-Mar-16,1603-00128,0,224,R,A J H  Pump Supply & Repair Ltd,No
Http://opendatacommunities.org/id/metropolitan-district-council/leeds,Leeds City Council,31/03/2016,Central & Corporate,Commercial Services Trading Services,Supplies and Services,Operational Materials,205,11-Mar-16,1603-00129,0,88,R,A J H  Pump Supply & Repair Ltd,No
Http://opendatacommunities.org/id/metropolitan-district-council/leeds,Leeds City Council,31/03/2016,Central & Corporate,Commercial Services Trading Services,Supplies and Services,Operational Materials,205,11-Mar-16,1603-00130,0,3325,R,A J H  Pump Supply & Repair Ltd,No
Http://opendatacommunities.org/id/metropolitan-district-council/leeds,Leeds City Council,31/03/2016,Central & Corporate,Commercial Services Trading Services,Supplies and Services,Operational Materials,205,18-Mar-16,1603-00131,0,889,R,A J H  Pump Supply & Repair Ltd,No
Http://opendatacommunities.org/id/metropolitan-district-council/leeds,Leeds City Council,31/03/2016,Central & Corporate,Commercial Services Trading Services,Supplies and Services,Operational Materials,205,18-Mar-16,1603-00132,0,144.84,R,A J H  Pump Supply & Repair Ltd,No
Http://opendatacommunities.org/id/metropolitan-district-council/leeds,Leeds City Council,31/03/2016,Central & Corporate,Commercial Services Trading Services,Supplies and Services,Operational Materials,205,18-Mar-16,1603-00133,0,895,R,A J H  Pump Supply & Repair Ltd,No
Http://opendatacommunities.org/id/metropolitan-district-council/leeds,Leeds City Council,31/03/2016,Central & Corporate,Commercial Services Trading Services,Supplies and Services,Operational Materials,205,18-Mar-16,1603-00134,0,79.73,R,A J H  Pump Supply & Repair Ltd,No
Http://opendatacommunities.org/id/metropolitan-district-council/leeds,Leeds City Council,31/03/2016,Central & Corporate,Commercial Services Trading Services,Supplies and Services,Operational Materials,205,18-Mar-16,1603-00135,0,335.35,R,A J H  Pump Supply & Repair Ltd,No
Http://opendatacommunities.org/id/metropolitan-district-council/leeds,Leeds City Council,31/03/2016,Central & Corporate,Commercial Services Trading Services,Supplies and Services,Operational Materials,205,18-Mar-16,1603-00136,0,21,R,A J H  Pump Supply & Repair Ltd,No
Http://opendatacommunities.org/id/metropolitan-district-council/leeds,Leeds City Council,31/03/2016,Central & Corporate,Commercial Services Trading Services,Supplies and Services,Operational Materials,205,18-Mar-16,1603-00137,0,42,R,A J H  Pump Supply & Repair Ltd,No
Http://opendatacommunities.org/id/metropolitan-district-council/leeds,Leeds City Council,31/03/2016,Central & Corporate,Commercial Services Trading Services,Supplies and Services,Operational Materials,205,18-Mar-16,1603-00138,0,33.59,R,A J H  Pump Supply & Repair Ltd,No
Http://opendatacommunities.org/id/metropolitan-district-council/leeds,Leeds City Council,31/03/2016,Central & Corporate,Commercial Services Trading Services,Supplies and Services,Operational Materials,205,18-Mar-16,1603-00139,0,39,R,A J H  Pump Supply & Repair Ltd,No
Http://opendatacommunities.org/id/metropolitan-district-council/leeds,Leeds City Council,31/03/2016,Central & Corporate,Commercial Services Trading Services,Supplies and Services,Operational Materials,205,18-Mar-16,1603-00140,0,38.41,R,A J H  Pump Supply & Repair Ltd,No
Http://opendatacommunities.org/id/metropolitan-district-council/leeds,Leeds City Council,31/03/2016,Central & Corporate,Commercial Services Trading Services,Supplies and Services,Operational Materials,205,18-Mar-16,1603-00141,0,65,R,A J H  Pump Supply & Repair Ltd,No
Http://opendatacommunities.org/id/metropolitan-district-council/leeds,Leeds City Council,31/03/2016,Central & Corporate,Commercial Services Trading Services,Supplies and Services,Operational Materials,205,18-Mar-16,1603-00142,0,27.64,R,A J H  Pump Supply & Repair Ltd,No
Http://opendatacommunities.org/id/metropolitan-district-council/leeds,Leeds City Council,31/03/2016,Central & Corporate,Commercial Services Trading Services,Supplies and Services,Operational Materials,205,18-Mar-16,1603-00143,0,85,R,A J H  Pump Supply & Repair Ltd,No
Http://opendatacommunities.org/id/metropolitan-district-council/leeds,Leeds City Council,31/03/2016,Central & Corporate,Commercial Services Trading Services,Supplies and Services,Operational Materials,205,18-Mar-16,1603-00144,0,20.5,R,A J H  Pump Supply & Repair Ltd,No
Http://opendatacommunities.org/id/metropolitan-district-council/leeds,Leeds City Council,31/03/2016,Central & Corporate,Commercial Services Trading Services,Supplies and Services,Operational Materials,205,18-Mar-16,1603-00145,0,141.48,R,A J H  Pump Supply & Repair Ltd,No
Http://opendatacommunities.org/id/metropolitan-district-council/leeds,Leeds City Council,31/03/2016,Central & Corporate,Commercial Services Trading Services,Supplies and Services,Operational Materials,205,18-Mar-16,1603-00146,0,458,R,A J H  Pump Supply & Repair Ltd,No
Http://opendatacommunities.org/id/metropolitan-district-council/leeds,Leeds City Council,31/03/2016,Central & Corporate,Commercial Services Trading Services,Supplies and Services,Operational Materials,205,18-Mar-16,1603-00147,0,148.8,R,A J H  Pump Supply & Repair Ltd,No
Http://opendatacommunities.org/id/metropolitan-district-council/leeds,Leeds City Council,31/03/2016,Central & Corporate,Commercial Services Trading Services,Supplies and Services,Operational Materials,205,18-Mar-16,1603-00148,0,420,R,A J H  Pump Supply & Repair Ltd,No
Http://opendatacommunities.org/id/metropolitan-district-council/leeds,Leeds City Council,31/03/2016,Central & Corporate,Commercial Services Trading Services,Supplies and Services,Operational Materials,205,18-Mar-16,1603-00149,0,250,R,A J H  Pump Supply & Repair Ltd,No
Http://opendatacommunities.org/id/metropolitan-district-council/leeds,Leeds City Council,31/03/2016,Central & Corporate,Commercial Services Trading Services,Supplies and Services,Operational Materials,205,18-Mar-16,1603-00150,0,889,R,A J H  Pump Supply & Repair Ltd,No
Http://opendatacommunities.org/id/metropolitan-district-council/leeds,Leeds City Council,31/03/2016,Central & Corporate,Commercial Services Trading Services,Supplies and Services,Operational Materials,205,31-Mar-16,1603-00151,0,39.95,R,A J H  Pump Supply & Repair Ltd,No
Http://opendatacommunities.org/id/metropolitan-district-council/leeds,Leeds City Council,31/03/2016,Central & Corporate,Commercial Services Trading Services,Supplies and Services,Operational Materials,205,31-Mar-16,1603-00152,0,97.3,R,A J H  Pump Supply & Repair Ltd,No
Http://opendatacommunities.org/id/metropolitan-district-council/leeds,Leeds City Council,31/03/2016,Central & Corporate,Commercial Services Trading Services,Supplies and Services,Operational Materials,205,31-Mar-16,1603-00153,0,683.4,R,A J H  Pump Supply & Repair Ltd,No
Http://opendatacommunities.org/id/metropolitan-district-council/leeds,Leeds City Council,31/03/2016,Central & Corporate,Commercial Services Trading Services,Supplies and Services,Operational Materials,205,31-Mar-16,1603-00154,0,18,R,A J H  Pump Supply & Repair Ltd,No
Http://opendatacommunities.org/id/metropolitan-district-council/leeds,Leeds City Council,31/03/2016,Central & Corporate,Commercial Services Trading Services,Supplies and Services,Operational Materials,205,31-Mar-16,1603-00155,0,139,R,A J H  Pump Supply & Repair Ltd,No
Http://opendatacommunities.org/id/metropolitan-district-council/leeds,Leeds City Council,31/03/2016,Central & Corporate,Commercial Services Trading Services,Supplies and Services,Operational Materials,205,31-Mar-16,1603-00156,0,265,R,A J H  Pump Supply & Repair Ltd,No
Http://opendatacommunities.org/id/metropolitan-district-council/leeds,Leeds City Council,31/03/2016,Central & Corporate,Commercial Services Trading Services,Supplies and Services,Operational Materials,205,31-Mar-16,1603-00157,0,342.78,R,A J H  Pump Supply & Repair Ltd,No
Http://opendatacommunities.org/id/metropolitan-district-council/leeds,Leeds City Council,31/03/2016,Central & Corporate,Commercial Services Trading Services,Supplies and Services,Operational Materials,205,31-Mar-16,1603-00158,0,12,R,A J H  Pump Supply & Repair Ltd,No
Http://opendatacommunities.org/id/metropolitan-district-council/leeds,Leeds City Council,31/03/2016,Central & Corporate,Commercial Services Trading Services,Supplies and Services,Operational Materials,205,31-Mar-16,1603-00159,0,110.85,R,A J H  Pump Supply & Repair Ltd,No
Http://opendatacommunities.org/id/metropolitan-district-council/leeds,Leeds City Council,31/03/2016,Central & Corporate,Commercial Services Trading Services,Supplies and Services,Operational Materials,205,31-Mar-16,1603-00160,0,77.26,R,A J H  Pump Supply & Repair Ltd,No
Http://opendatacommunities.org/id/metropolitan-district-council/leeds,Leeds City Council,31/03/2016,Central & Corporate,Commercial Services Trading Services,Supplies and Services,Operational Materials,205,31-Mar-16,1603-00161,0,17.26,R,A J H  Pump Supply & Repair Ltd,No
Http://opendatacommunities.org/id/metropolitan-district-council/leeds,Leeds City Council,31/03/2016,Central & Corporate,Commercial Services Trading Services,Supplies and Services,Operational Materials,205,31-Mar-16,1603-00162,0,194.55,R,A J H  Pump Supply & Repair Ltd,No
Http://opendatacommunities.org/id/metropolitan-district-council/leeds,Leeds City Council,31/03/2016,Central & Corporate,Commercial Services Trading Services,Supplies and Services,Operational Materials,205,31-Mar-16,1603-00163,0,19.95,R,A J H  Pump Supply & Repair Ltd,No
Http://opendatacommunities.org/id/metropolitan-district-council/leeds,Leeds City Council,31/03/2016,Central & Corporate,Commercial Services Trading Services,Supplies and Services,Operational Materials,205,31-Mar-16,1603-00164,0,1388,R,A J H  Pump Supply & Repair Ltd,No
Http://opendatacommunities.org/id/metropolitan-district-council/leeds,Leeds City Council,31/03/2016,Central & Corporate,Commercial Services Trading Services,Supplies and Services,Operational Materials,205,31-Mar-16,1603-00165,0,3627,R,A J H  Pump Supply & Repair Ltd,No
Http://opendatacommunities.org/id/metropolitan-district-council/leeds,Leeds City Council,31/03/2016,City Development,Libraries  Arts & Heritage,Supplies and Services,Resaleable Materials,204,04-Mar-16,1603-00166,0,246.74,R,A J Promotions,No
Http://opendatacommunities.org/id/metropolitan-district-council/leeds,Leeds City Council,31/03/2016,City Development,Libraries  Arts & Heritage,Supplies and Services,Resaleable Materials,204,04-Mar-16,1603-00167,0,15.75,R,A J Promotions,No
Http://opendatacommunities.org/id/metropolitan-district-council/leeds,Leeds City Council,31/03/2016,Childrens Services,Learning Skills & Universal,Third Party Payments,Services Rendered By Other Organisations,511,18-Mar-16,1603-00168,0,536.56,R,A K Walsh,No
Http://opendatacommunities.org/id/metropolitan-district-council/leeds,Leeds City Council,31/03/2016,Public Health,Public Health,Third Party Payments,Public Health Commissioned Services,526,08-Mar-16,1603-00169,0,183,R,A Khan & K Muneer,No
Http://opendatacommunities.org/id/metropolitan-district-council/leeds,Leeds City Council,31/03/2016,Childrens Services,Learning Skills & Universal,Third Party Payments,Services Rendered By Voluntary Sector,505,03-Mar-16,1603-00170,0,600,R,A Little Something Extra Ltd,No
Http://opendatacommunities.org/id/metropolitan-district-council/leeds,Leeds City Council,31/03/2016,Childrens Services,Learning Skills & Universal,Supplies and Services,Teaching Materials,202,03-Mar-16,1603-00171,0,180,R,A Little Something Extra Ltd,No
Http://opendatacommunities.org/id/metropolitan-district-council/leeds,Leeds City Council,31/03/2016,Childrens Services,Partnership Development & Leadership,Employees,Training & Development,70,04-Mar-16,1603-00172,0,75,R,A Little Something Extra Ltd,No
Http://opendatacommunities.org/id/metropolitan-district-council/leeds,Leeds City Council,31/03/2016,Childrens Services,Learning Skills & Universal,Supplies and Services,Teaching Materials,202,23-Mar-16,1603-00173,0,135,R,A Little Something Extra Ltd,No
Http://opendatacommunities.org/id/metropolitan-district-council/leeds,Leeds City Council,31/03/2016,Childrens Services,Safeguarding Targeted & Specialist,Third Party Payments,Allowances,546,14-Mar-16,1603-00174,0,600,R,A M Foster,No
Http://opendatacommunities.org/id/metropolitan-district-council/leeds,Leeds City Council,31/03/2016,Environment & Housing,Parks and Countryside,Supplies and Services,Other Hired And Contracted Services,265,16-Mar-16,1603-00175,0,200,R,A M Jones Limited,No
Http://opendatacommunities.org/id/metropolitan-district-council/leeds,Leeds City Council,31/03/2016,City Development,Libraries  Arts & Heritage,Supplies and Services,Other Hired And Contracted Services,265,02-Mar-16,1603-00176,0,10000,R,A M Miller/Euco,No
Http://opendatacommunities.org/id/metropolitan-district-council/leeds,Leeds City Council,31/03/2016,Citizens and Communities,Benefits  Wlefare and Poverty,Supplies and Services,Grant Related Expenditure,298,01-Mar-16,1603-00177,0,500,R,A Miles,No
Http://opendatacommunities.org/id/metropolitan-district-council/leeds,Leeds City Council,31/03/2016,Citizens and Communities,Customer Access,Supplies and Services,Other Hired And Contracted Services,265,03-Mar-16,1603-00178,0,823,R,A Mohammed,No
Http://opendatacommunities.org/id/metropolitan-district-council/leeds,Leeds City Council,31/03/2016,Citizens and Communities,Customer Access,Supplies and Services,Other Hired And Contracted Services,265,03-Mar-16,1603-00179,0,36.5,R,A Musalam,No
Http://opendatacommunities.org/id/metropolitan-district-council/leeds,Leeds City Council,31/03/2016,Citizens and Communities,Customer Access,Supplies and Services,Other Hired And Contracted Services,265,31-Mar-16,1603-00180,0,30,R,A Musalam,No
Http://opendatacommunities.org/id/metropolitan-district-council/leeds,Leeds City Council,31/03/2016,Citizens and Communities,Customer Access,Supplies and Services,Other Hired And Contracted Services,265,03-Mar-16,1603-00181,0,179.5,R,A Namaki,No
Http://opendatacommunities.org/id/metropolitan-district-council/leeds,Leeds City Council,31/03/2016,Environment & Housing,Parks and Countryside,Supplies and Services,Operational Materials,205,08-Mar-16,1603-00182,0,948,R,A Newton,No
Http://opendatacommunities.org/id/metropolitan-district-council/leeds,Leeds City Council,31/03/2016,Environment & Housing,Parks and Countryside,Supplies and Services,Other Hired And Contracted Services,265,29-Mar-16,1603-00183,0,450,R,A Nicholls,No
Http://opendatacommunities.org/id/metropolitan-district-council/leeds,Leeds City Council,31/03/2016,Public Health,Public Health,Third Party Payments,Public Health Commissioned Services,526,04-Mar-16,1603-00184,0,2888.1,R,A P Health,No
Http://opendatacommunities.org/id/metropolitan-district-council/leeds,Leeds City Council,31/03/2016,City Development,Libraries  Arts & Heritage,Supplies and Services,Non-Recurring Grants,227,10-Mar-16,1603-00185,0,9000,R,A Quiet Word Ltd,No
Http://opendatacommunities.org/id/metropolitan-district-council/leeds,Leeds City Council,31/03/2016,City Development,Libraries  Arts & Heritage,Supplies and Services,Books & Audio-Visual Materials,206,02-Mar-16,1603-00186,0,142,R,A S Jhagra,No
Http://opendatacommunities.org/id/metropolitan-district-council/leeds,Leeds City Council,31/03/2016,Environment & Housing,Housing Leeds Service,Capital,Other Costs,7,17-Mar-16,1603-00187,0,802.6,C,REDACTED PERSONAL DATA,No
Http://opendatacommunities.org/id/metropolitan-district-council/leeds,Leeds City Council,31/03/2016,Civic Enterprise Leeds,Business Support Centre,Supplies and Services,Other Hired And Contracted Services,265,04-Mar-16,1603-00188,0,46.25,R,A Star Couriers Ltd,No
Http://opendatacommunities.org/id/metropolitan-district-council/leeds,Leeds City Council,31/03/2016,Environment & Housing,Waste Management,Supplies and Services,Other Hired And Contracted Services,265,03-Mar-16,1603-00189,0,481.55,R,A T Nerac Ltd,No
Http://opendatacommunities.org/id/metropolitan-district-council/leeds,Leeds City Council,31/03/2016,Environment & Housing,Waste Management,Supplies and Services,Bought In Professional Services,277,30-Mar-16,1603-00190,0,588.1,R,A T Nerac Ltd,No
Http://opendatacommunities.org/id/metropolitan-district-council/leeds,Leeds City Council,31/03/2016,City Development,Economic Development,Supplies and Services,Grants To Businesses,243,04-Mar-16,1603-00191,0,5000,R,A Taylor & Son Leeds Ltd,No
Http://opendatacommunities.org/id/metropolitan-district-council/leeds,Leeds City Council,31/03/2016,Citizens and Communities,Benefits  Wlefare and Poverty,Supplies and Services,Grant Related Expenditure,298,16-Mar-16,1603-00192,0,500,R,A Unwin,No
Http://opendatacommunities.org/id/metropolitan-district-council/leeds,Leeds City Council,31/03/2016,Childrens Services,Learning Skills & Universal,Third Party Payments,Services Rendered By Other Organisations,511,11-Mar-16,1603-00193,0,800.25,R,A Walding,No
Http://opendatacommunities.org/id/metropolitan-district-council/leeds,Leeds City Council,31/03/2016,Childrens Services,Learning Skills & Universal,Third Party Payments,Services Rendered By Other Organisations,511,30-Mar-16,1603-00194,0,654.75,R,A Walding,No
Http://opendatacommunities.org/id/metropolitan-district-council/leeds,Leeds City Council,31/03/2016,Environment & Housing,Housing Leeds Service,Capital,Other Costs,7,14-Mar-16,1603-00195,0,14,C,REDACTED PERSONAL DATA,No
Http://opendatacommunities.org/id/metropolitan-district-council/leeds,Leeds City Council,31/03/2016,Environment & Housing,Housing Leeds Service,Capital,Other Costs,7,31-Mar-16,1603-00196,0,250,C,REDACTED PERSONAL DATA,No
Http://opendatacommunities.org/id/metropolitan-district-council/leeds,Leeds City Council,31/03/2016,Environment & Housing,Waste Management,Capital,Furniture And Equipment,5,29-Mar-16,1603-00197,0,683.5,C,A&C Weber Uk Ltd,No
Http://opendatacommunities.org/id/metropolitan-district-council/leeds,Leeds City Council,31/03/2016,City Development,Recreation,Income,Income from Hire Of Rooms & Equipment,956,24-Mar-16,1603-00198,0,20.5,R,REDACTED PERSONAL DATA,No
Http://opendatacommunities.org/id/metropolitan-district-council/leeds,Leeds City Council,31/03/2016,City Development,Recreation,Income,Income from Hire Of Rooms & Equipment,956,24-Mar-16,1603-00199,0,22.5,R,REDACTED PERSONAL DATA,No
Http://opendatacommunities.org/id/metropolitan-district-council/leeds,Leeds City Council,31/03/2016,Public Health,Public Health,Third Party Payments,Public Health Commissioned Services,526,07-Mar-16,1603-00200,0,64.96,R,Aaa Healthcare Ltd,No
Http://opendatacommunities.org/id/metropolitan-district-council/leeds,Leeds City Council,31/03/2016,Childrens Services,Learning Skills & Universal  ,Supplies and Services,Operational Materials,205,04-Feb-16,1603-00201,0,58.54,R,Aardvark Archery,Yes
Http://opendatacommunities.org/id/metropolitan-district-council/leeds,Leeds City Council as Accountable Body,31/03/2016,Social Services Pooled Budgets,Leeds Community Equip Store Pooled Budgt,Supplies and Services,Other Equipment,203,04-Mar-16,1603-00202,0,108,R,Aat (Gb) Ltd,No
Http://opendatacommunities.org/id/metropolitan-district-council/leeds,Leeds City Council as Accountable Body,31/03/2016,Social Services Pooled Budgets,Leeds Community Equip Store Pooled Budgt,Supplies and Services,Other Equipment,203,11-Mar-16,1603-00203,0,1525,R,Aat (Gb) Ltd,No
Http://opendatacommunities.org/id/metropolitan-district-council/leeds,Leeds City Council as Accountable Body,31/03/2016,Social Services Pooled Budgets,Leeds Community Equip Store Pooled Budgt,Supplies and Services,Other Equipment,203,30-Mar-16,1603-00204,0,1533,R,Aat (Gb) Ltd,No
Http://opendatacommunities.org/id/metropolitan-district-council/leeds,Leeds City Council,31/03/2016,Central & Corporate,Finance,Transport,Public Transport Expenses,310,09-Mar-16,1603-00205,0,544,R,Ab Cars (Garforth) Ltd,No
Http://opendatacommunities.org/id/metropolitan-district-council/leeds,Leeds City Council,31/03/2016,Environment & Housing,Streetscene Environmental Services  ,Supplies and Services,Postages,212,09-Feb-16,1603-00206,0,16.5,R,Abacus Express,Yes
Http://opendatacommunities.org/id/metropolitan-district-council/leeds,Leeds City Council,31/03/2016,Insurance,Insurance,Support Services,Legal Disbursements,411,02-Mar-16,1603-00207,0,18.81,R,Abacus Express Limited,No
Http://opendatacommunities.org/id/metropolitan-district-council/leeds,Leeds City Council,31/03/2016,Childrens Services,Safeguarding Targeted & Specialist,Support Services,Legal Disbursements,411,04-Mar-16,1603-00208,0,31.02,R,Abacus Express Limited,No
Http://opendatacommunities.org/id/metropolitan-district-council/leeds,Leeds City Council,31/03/2016,Childrens Services,Safeguarding Targeted & Specialist,Support Services,Legal Disbursements,411,04-Mar-16,1603-00209,0,16.66,R,Abacus Express Limited,No
Http://opendatacommunities.org/id/metropolitan-district-council/leeds,Leeds City Council,31/03/2016,Childrens Services,Safeguarding Targeted & Specialist,Support Services,Legal Disbursements,411,10-Mar-16,1603-00210,0,31.02,R,Abacus Express Limited,No
Http://opendatacommunities.org/id/metropolitan-district-council/leeds,Leeds City Council,31/03/2016,Childrens Services,Safeguarding Targeted & Specialist,Support Services,Legal Disbursements,411,18-Mar-16,1603-00211,0,231.5,R,Abacus Express Limited,No
Http://opendatacommunities.org/id/metropolitan-district-council/leeds,Leeds City Council,31/03/2016,Childrens Services,Safeguarding Targeted & Specialist,Support Services,Legal Disbursements,411,18-Mar-16,1603-00212,0,31.02,R,Abacus Express Limited,No
Http://opendatacommunities.org/id/metropolitan-district-council/leeds,Leeds City Council,31/03/2016,Childrens Services,Safeguarding Targeted & Specialist,Support Services,Legal Disbursements,411,18-Mar-16,1603-00213,0,31.02,R,Abacus Express Limited,No
Http://opendatacommunities.org/id/metropolitan-district-council/leeds,Leeds City Council,31/03/2016,City Development,Planning & Sustainable Development,Supplies and Services,Other Hired And Contracted Services,265,24-Mar-16,1603-00214,0,14.51,R,Abacus Express Limited,No
Http://opendatacommunities.org/id/metropolitan-district-council/leeds,Leeds City Council,31/03/2016,City Development,Planning & Sustainable Development,Supplies and Services,Other Hired And Contracted Services,265,24-Mar-16,1603-00215,0,14.51,R,Abacus Express Limited,No
Http://opendatacommunities.org/id/metropolitan-district-council/leeds,Leeds City Council,31/03/2016,City Development,Planning & Sustainable Development,Support Services,Legal Disbursements,411,30-Mar-16,1603-00216,0,14.51,R,Abacus Express Limited,No
Http://opendatacommunities.org/id/metropolitan-district-council/leeds,Leeds City Council,31/03/2016,Citizens and Communities,Communities,Premises,Furniture And Fittings,195,24-Mar-16,1603-00217,0,582.6,R,Abaseen Super Store Uk Ltd,No
Http://opendatacommunities.org/id/metropolitan-district-council/leeds,Leeds City Council,31/03/2016,City Development,Libraries  Arts & Heritage  ,Supplies and Services,Subsistence,256,02-Feb-16,1603-00218,0,41.67,R,Abbey House Museum Caf,Yes
Http://opendatacommunities.org/id/metropolitan-district-council/leeds,Leeds City Council,31/03/2016,City Development,Libraries  Arts & Heritage  ,Supplies and Services,Food & Drink,231,04-Feb-16,1603-00219,0,41.67,R,Abbey House Museum Caf,Yes
Http://opendatacommunities.org/id/metropolitan-district-council/leeds,Leeds City Council,31/03/2016,Environment & Housing,Environmental Action (South),Supplies and Services,Other Hired And Contracted Services,265,16-Mar-16,1603-00220,0,31.34,R,Abbey House Veterinary Hospital,No
Http://opendatacommunities.org/id/metropolitan-district-council/leeds,Leeds City Council,31/03/2016,Childrens Services,Safeguarding Targeted & Specialist  ,Transport,Public Transport Expenses,310,01-Feb-16,1603-00221,0,13,R,Abbeycars (Wakefield) Lt,Yes
Http://opendatacommunities.org/id/metropolitan-district-council/leeds,Leeds City Council,31/03/2016,Childrens Services,Learning Skills & Universal,Third Party Payments,Services Rendered By Other Organisations,511,11-Mar-16,1603-00222,0,1600.5,R,Abc Daycare And Ozone Out Of School,No
Http://opendatacommunities.org/id/metropolitan-district-council/leeds,Leeds City Council,31/03/2016,Childrens Services,Learning Skills & Universal,Third Party Payments,Services Rendered By Other Organisations,511,18-Mar-16,1603-00223,0,630.9,R,Abc Daycare And Ozone Out Of School,No
Http://opendatacommunities.org/id/metropolitan-district-council/leeds,Leeds City Council,31/03/2016,Childrens Services,Learning Skills & Universal,Third Party Payments,Services Rendered By Other Organisations,511,11-Mar-16,1603-00224,0,814.8,R,Abc Nursery At Lufc,No
Http://opendatacommunities.org/id/metropolitan-district-council/leeds,Leeds City Council,31/03/2016,Childrens Services,Learning Skills & Universal,Third Party Payments,Services Rendered By Other Organisations,511,18-Mar-16,1603-00225,0,2808.3,R,Abc Nursery At Lufc,No
Http://opendatacommunities.org/id/metropolitan-district-council/leeds,Leeds City Council,31/03/2016,Childrens Services,Learning Skills & Universal,Third Party Payments,Services Rendered By Other Organisations,511,30-Mar-16,1603-00226,0,480.15,R,Abc@D'S Childcare Services,No
Http://opendatacommunities.org/id/metropolitan-district-council/leeds,Leeds City Council,31/03/2016,Childrens Services,Learning Skills & Universal,Third Party Payments,Services Rendered By Other Organisations,511,30-Mar-16,1603-00227,0,125.4,R,Abc@D'S Childcare Services,No
Http://opendatacommunities.org/id/metropolitan-district-council/leeds,Leeds City Council,31/03/2016,Citizens and Communities,Customer Access,Supplies and Services,Other Hired And Contracted Services,265,03-Mar-16,1603-00228,0,163.5,R,Abdur Rahman Khan,No
Http://opendatacommunities.org/id/metropolitan-district-council/leeds,Leeds City Council,31/03/2016,Adult Social Care,Services For Older People - 65 And Over,Third Party Payments,Nursing Home,570,09-Mar-16,1603-00229,0,14988.32,R,Aberford Hall,No
Http://opendatacommunities.org/id/metropolitan-district-council/leeds,Leeds City Council,31/03/2016,Adult Social Care,Services For Older People - 65 And Over,Third Party Payments,Nursing Care Dementia,574,09-Mar-16,1603-00230,0,3920.6,R,Aberford Hall,No
Http://opendatacommunities.org/id/metropolitan-district-council/leeds,Leeds City Council,31/03/2016,Adult Social Care,Services For Older People - 65 And Over,Third Party Payments,Residential,580,09-Mar-16,1603-00231,0,5930.56,R,Aberford Hall,No
Http://opendatacommunities.org/id/metropolitan-district-council/leeds,Leeds City Council,31/03/2016,Central & Corporate,Commercial Services Trading Services,Supplies and Services,Operational Materials,205,02-Mar-16,1603-00232,0,16,R,Abi Garage Doors Ltd,No
Http://opendatacommunities.org/id/metropolitan-district-council/leeds,Leeds City Council,31/03/2016,Central & Corporate,Commercial Services Trading Services,Supplies and Services,Operational Materials,205,11-Mar-16,1603-00233,0,8,R,Abi Garage Doors Ltd,No
Http://opendatacommunities.org/id/metropolitan-district-council/leeds,Leeds City Council,31/03/2016,Central & Corporate,Commercial Services Trading Services,Supplies and Services,Operational Materials,205,11-Mar-16,1603-00234,0,10,R,Abi Garage Doors Ltd,No
Http://opendatacommunities.org/id/metropolitan-district-council/leeds,Leeds City Council,31/03/2016,Central & Corporate,Commercial Services Trading Services,Supplies and Services,Operational Materials,205,11-Mar-16,1603-00235,0,8,R,Abi Garage Doors Ltd,No
Http://opendatacommunities.org/id/metropolitan-district-council/leeds,Leeds City Council,31/03/2016,Central & Corporate,Commercial Services Trading Services,Supplies and Services,Operational Materials,205,11-Mar-16,1603-00236,0,48,R,Abi Garage Doors Ltd,No
Http://opendatacommunities.org/id/metropolitan-district-council/leeds,Leeds City Council,31/03/2016,Central & Corporate,Commercial Services Trading Services,Supplies and Services,Operational Materials,205,31-Mar-16,1603-00237,0,225,R,Abi Garage Doors Ltd,No
Http://opendatacommunities.org/id/metropolitan-district-council/leeds,Leeds City Council,31/03/2016,Central & Corporate,Commercial Services Trading Services,Supplies and Services,Operational Materials,205,31-Mar-16,1603-00238,0,8,R,Abi Garage Doors Ltd,No
Http://opendatacommunities.org/id/metropolitan-district-council/leeds,Leeds City Council,31/03/2016,City Development,Libraries  Arts & Heritage,Supplies and Services,Operational Furniture And Equipment,203,17-Mar-16,1603-00239,0,774.25,R,Abloom Limited,No
Http://opendatacommunities.org/id/metropolitan-district-council/leeds,Leeds City Council,31/03/2016,Environment & Housing,Parks and Countryside,Supplies and Services,Operational Materials,205,30-Mar-16,1603-00240,0,122.5,R,Abram Pulman & Sons Limited,No
Http://opendatacommunities.org/id/metropolitan-district-council/leeds,Leeds City Council,31/03/2016,City Development,Libraries  Arts & Heritage  ,Supplies and Services,Operational Materials,205,23-Feb-16,1603-00241,0,248.34,R,Absoluteproduct.Co,Yes
Http://opendatacommunities.org/id/metropolitan-district-council/leeds,Leeds City Council,31/03/2016,Childrens Services,Safeguarding Targeted & Specialist,Employees,Agency Staff,8,03-Mar-16,1603-00242,0,1101.58,R,Academic Appointments Ltd,No
Http://opendatacommunities.org/id/metropolitan-district-council/leeds,Leeds City Council,31/03/2016,Childrens Services,Learning Skills & Universal,Employees,Basic Pay,1,03-Mar-16,1603-00243,0,1731.3,R,Academic Appointments Ltd,No
Http://opendatacommunities.org/id/metropolitan-district-council/leeds,Leeds City Council,31/03/2016,Childrens Services,Safeguarding Targeted & Specialist,Employees,Agency Staff,8,11-Mar-16,1603-00244,0,1071.1,R,Academic Appointments Ltd,No
Http://opendatacommunities.org/id/metropolitan-district-council/leeds,Leeds City Council,31/03/2016,Childrens Services,Safeguarding Targeted & Specialist,Employees,Agency Staff,8,18-Mar-16,1603-00245,0,1071.1,R,Academic Appointments Ltd,No
Http://opendatacommunities.org/id/metropolitan-district-council/leeds,Leeds City Council,31/03/2016,Environment & Housing,Environmental Health,Capital,Construction,3,24-Mar-16,1603-00246,0,1560.6,C,Accent Homes Ltd,No
Http://opendatacommunities.org/id/metropolitan-district-council/leeds,Leeds City Council,31/03/2016,Environment & Housing,Community Safety,Transport,Hire Of Movable Plant & Machinery,315,02-Mar-16,1603-00247,0,1350.71,R,Access Hire Nationwide Ltd,No
Http://opendatacommunities.org/id/metropolitan-district-council/leeds,Leeds City Council,31/03/2016,Strategic Landlord,Property and Contracts,Premises,General Maintenance,104,02-Mar-16,1603-00248,0,36.6,R,Access Locksmiths (Leeds) Limited,No
Http://opendatacommunities.org/id/metropolitan-district-council/leeds,Leeds City Council,31/03/2016,Strategic Landlord,Housing Management,Premises,General Maintenance,104,02-Mar-16,1603-00249,0,207.4,R,Access Locksmiths (Leeds) Limited,No
Http://opendatacommunities.org/id/metropolitan-district-council/leeds,Leeds City Council,31/03/2016,Strategic Landlord,Housing Management,Premises,General Maintenance,104,02-Mar-16,1603-00250,0,103.7,R,Access Locksmiths (Leeds) Limited,No
Http://opendatacommunities.org/id/metropolitan-district-council/leeds,Leeds City Council,31/03/2016,Strategic Landlord,Housing Management,Premises,General Maintenance,104,02-Mar-16,1603-00251,0,51.85,R,Access Locksmiths (Leeds) Limited,No
Http://opendatacommunities.org/id/metropolitan-district-council/leeds,Leeds City Council,31/03/2016,Strategic Landlord,Housing Management,Premises,General Maintenance,104,02-Mar-16,1603-00252,0,207.4,R,Access Locksmiths (Leeds) Limited,No
Http://opendatacommunities.org/id/metropolitan-district-council/leeds,Leeds City Council,31/03/2016,Strategic Landlord,Property and Contracts,Premises,General Maintenance,104,03-Mar-16,1603-00253,0,138.12,R,Access Locksmiths (Leeds) Limited,No
Http://opendatacommunities.org/id/metropolitan-district-council/leeds,Leeds City Council,31/03/2016,Strategic Landlord,Property and Contracts,Premises,General Maintenance,104,03-Mar-16,1603-00254,0,210.57,R,Access Locksmiths (Leeds) Limited,No
Http://opendatacommunities.org/id/metropolitan-district-council/leeds,Leeds City Council,31/03/2016,Strategic Landlord,Property and Contracts,Premises,General Maintenance,104,03-Mar-16,1603-00255,0,114.87,R,Access Locksmiths (Leeds) Limited,No
Http://opendatacommunities.org/id/metropolitan-district-council/leeds,Leeds City Council,31/03/2016,Central & Corporate,Commercial Services Trading Services,Supplies and Services,Operational Materials,205,04-Mar-16,1603-00256,0,80,R,Access Locksmiths (Leeds) Limited,No
Http://opendatacommunities.org/id/metropolitan-district-council/leeds,Leeds City Council,31/03/2016,Central & Corporate,Commercial Services Trading Services,Supplies and Services,Operational Materials,205,04-Mar-16,1603-00257,0,102.94,R,Access Locksmiths (Leeds) Limited,No
Http://opendatacommunities.org/id/metropolitan-district-council/leeds,Leeds City Council,31/03/2016,Central & Corporate,Commercial Services Trading Services,Supplies and Services,Operational Materials,205,04-Mar-16,1603-00258,0,148.35,R,Access Locksmiths (Leeds) Limited,No
Http://opendatacommunities.org/id/metropolitan-district-council/leeds,Leeds City Council,31/03/2016,Central & Corporate,Commercial Services Trading Services,Supplies and Services,Operational Materials,205,04-Mar-16,1603-00259,0,27.36,R,Access Locksmiths (Leeds) Limited,No
Http://opendatacommunities.org/id/metropolitan-district-council/leeds,Leeds City Council,31/03/2016,Central & Corporate,Commercial Services Trading Services,Supplies and Services,Operational Materials,205,04-Mar-16,1603-00260,0,79.99,R,Access Locksmiths (Leeds) Limited,No
Http://opendatacommunities.org/id/metropolitan-district-council/leeds,Leeds City Council,31/03/2016,Central & Corporate,Commercial Services Trading Services,Supplies and Services,Operational Materials,205,04-Mar-16,1603-00261,0,80,R,Access Locksmiths (Leeds) Limited,No
Http://opendatacommunities.org/id/metropolitan-district-council/leeds,Leeds City Council,31/03/2016,Central & Corporate,Commercial Services Trading Services,Supplies and Services,Operational Materials,205,04-Mar-16,1603-00262,0,57.24,R,Access Locksmiths (Leeds) Limited,No
Http://opendatacommunities.org/id/metropolitan-district-council/leeds,Leeds City Council,31/03/2016,Central & Corporate,Commercial Services Trading Services,Supplies and Services,Operational Materials,205,11-Mar-16,1603-00263,0,92.85,R,Access Locksmiths (Leeds) Limited,No
Http://opendatacommunities.org/id/metropolitan-district-council/leeds,Leeds City Council,31/03/2016,Central & Corporate,Commercial Services Trading Services,Supplies and Services,Operational Materials,205,11-Mar-16,1603-00264,0,18,R,Access Locksmiths (Leeds) Limited,No
Http://opendatacommunities.org/id/metropolitan-district-council/leeds,Leeds City Council,31/03/2016,Central & Corporate,Commercial Services Trading Services,Supplies and Services,Operational Materials,205,11-Mar-16,1603-00265,0,85.14,R,Access Locksmiths (Leeds) Limited,No
Http://opendatacommunities.org/id/metropolitan-district-council/leeds,Leeds City Council,31/03/2016,Central & Corporate,Commercial Services Trading Services,Supplies and Services,Operational Materials,205,11-Mar-16,1603-00266,0,40,R,Access Locksmiths (Leeds) Limited,No
Http://opendatacommunities.org/id/metropolitan-district-council/leeds,Leeds City Council,31/03/2016,Central & Corporate,Commercial Services Trading Services,Supplies and Services,Operational Materials,205,11-Mar-16,1603-00267,0,152.91,R,Access Locksmiths (Leeds) Limited,No
Http://opendatacommunities.org/id/metropolitan-district-council/leeds,Leeds City Council,31/03/2016,Central & Corporate,Commercial Services Trading Services,Supplies and Services,Operational Materials,205,11-Mar-16,1603-00268,0,45.05,R,Access Locksmiths (Leeds) Limited,No
Http://opendatacommunities.org/id/metropolitan-district-council/leeds,Leeds City Council,31/03/2016,Central & Corporate,Commercial Services Trading Services,Supplies and Services,Operational Materials,205,11-Mar-16,1603-00269,0,10.44,R,Access Locksmiths (Leeds) Limited,No
Http://opendatacommunities.org/id/metropolitan-district-council/leeds,Leeds City Council,31/03/2016,Central & Corporate,Commercial Services Trading Services,Supplies and Services,Operational Materials,205,11-Mar-16,1603-00270,0,37.63,R,Access Locksmiths (Leeds) Limited,No
Http://opendatacommunities.org/id/metropolitan-district-council/leeds,Leeds City Council,31/03/2016,Central & Corporate,Commercial Services Trading Services,Supplies and Services,Operational Materials,205,11-Mar-16,1603-00271,0,23.5,R,Access Locksmiths (Leeds) Limited,No
Http://opendatacommunities.org/id/metropolitan-district-council/leeds,Leeds City Council,31/03/2016,Central & Corporate,Commercial Services Trading Services,Supplies and Services,Operational Materials,205,11-Mar-16,1603-00272,0,235.95,R,Access Locksmiths (Leeds) Limited,No
Http://opendatacommunities.org/id/metropolitan-district-council/leeds,Leeds City Council,31/03/2016,Central & Corporate,Commercial Services Trading Services,Supplies and Services,Operational Materials,205,11-Mar-16,1603-00273,0,351.44,R,Access Locksmiths (Leeds) Limited,No
Http://opendatacommunities.org/id/metropolitan-district-council/leeds,Leeds City Council,31/03/2016,Central & Corporate,Commercial Services Trading Services,Supplies and Services,Operational Materials,205,11-Mar-16,1603-00274,0,6.98,R,Access Locksmiths (Leeds) Limited,No
Http://opendatacommunities.org/id/metropolitan-district-council/leeds,Leeds City Council,31/03/2016,Central & Corporate,Commercial Services Trading Services,Supplies and Services,Operational Materials,205,11-Mar-16,1603-00275,0,72.24,R,Access Locksmiths (Leeds) Limited,No
Http://opendatacommunities.org/id/metropolitan-district-council/leeds,Leeds City Council,31/03/2016,Central & Corporate,Commercial Services Trading Services,Supplies and Services,Operational Materials,205,11-Mar-16,1603-00276,0,182.33,R,Access Locksmiths (Leeds) Limited,No
Http://opendatacommunities.org/id/metropolitan-district-council/leeds,Leeds City Council,31/03/2016,Central & Corporate,Commercial Services Trading Services,Supplies and Services,Operational Materials,205,11-Mar-16,1603-00277,0,14.8,R,Access Locksmiths (Leeds) Limited,No
Http://opendatacommunities.org/id/metropolitan-district-council/leeds,Leeds City Council,31/03/2016,Strategic Landlord,Housing Management,Supplies and Services,Grants To Voluntary Organisations,293,11-Mar-16,1603-00278,0,123.17,R,Access Locksmiths (Leeds) Limited,No
Http://opendatacommunities.org/id/metropolitan-district-council/leeds,Leeds City Council,31/03/2016,Strategic Landlord,Property and Contracts,Premises,General Maintenance,104,16-Mar-16,1603-00279,0,22.5,R,Access Locksmiths (Leeds) Limited,No
Http://opendatacommunities.org/id/metropolitan-district-council/leeds,Leeds City Council,31/03/2016,Strategic Landlord,Housing Management,Premises,General Maintenance,104,17-Mar-16,1603-00280,0,103.7,R,Access Locksmiths (Leeds) Limited,No
Http://opendatacommunities.org/id/metropolitan-district-council/leeds,Leeds City Council,31/03/2016,Central & Corporate,Commercial Services Trading Services,Supplies and Services,Operational Materials,205,18-Mar-16,1603-00281,0,8,R,Access Locksmiths (Leeds) Limited,No
Http://opendatacommunities.org/id/metropolitan-district-council/leeds,Leeds City Council,31/03/2016,Central & Corporate,Commercial Services Trading Services,Supplies and Services,Operational Materials,205,18-Mar-16,1603-00282,0,31.38,R,Access Locksmiths (Leeds) Limited,No
Http://opendatacommunities.org/id/metropolitan-district-council/leeds,Leeds City Council,31/03/2016,Central & Corporate,Commercial Services Trading Services,Supplies and Services,Operational Materials,205,18-Mar-16,1603-00283,0,4.6,R,Access Locksmiths (Leeds) Limited,No
Http://opendatacommunities.org/id/metropolitan-district-council/leeds,Leeds City Council,31/03/2016,Central & Corporate,Commercial Services Trading Services,Supplies and Services,Operational Materials,205,18-Mar-16,1603-00284,0,33.33,R,Access Locksmiths (Leeds) Limited,No
Http://opendatacommunities.org/id/metropolitan-district-council/leeds,Leeds City Council,31/03/2016,Central & Corporate,Commercial Services Trading Services,Supplies and Services,Operational Materials,205,18-Mar-16,1603-00285,0,25.31,R,Access Locksmiths (Leeds) Limited,No
Http://opendatacommunities.org/id/metropolitan-district-council/leeds,Leeds City Council,31/03/2016,Central & Corporate,Commercial Services Trading Services,Supplies and Services,Operational Materials,205,18-Mar-16,1603-00286,0,22.46,R,Access Locksmiths (Leeds) Limited,No
Http://opendatacommunities.org/id/metropolitan-district-council/leeds,Leeds City Council,31/03/2016,Central & Corporate,Commercial Services Trading Services,Supplies and Services,Operational Materials,205,18-Mar-16,1603-00287,0,75.4,R,Access Locksmiths (Leeds) Limited,No
Http://opendatacommunities.org/id/metropolitan-district-council/leeds,Leeds City Council,31/03/2016,Central & Corporate,Commercial Services Trading Services,Supplies and Services,Operational Materials,205,18-Mar-16,1603-00288,0,6.75,R,Access Locksmiths (Leeds) Limited,No
Http://opendatacommunities.org/id/metropolitan-district-council/leeds,Leeds City Council,31/03/2016,Strategic Landlord,Property and Contracts,Premises,General Maintenance,104,18-Mar-16,1603-00289,0,47.45,R,Access Locksmiths (Leeds) Limited,No
Http://opendatacommunities.org/id/metropolitan-district-council/leeds,Leeds City Council,31/03/2016,Central & Corporate,Commercial Services Trading Services,Supplies and Services,Operational Materials,205,18-Mar-16,1603-00290,0,155,R,Access Locksmiths (Leeds) Limited,No
Http://opendatacommunities.org/id/metropolitan-district-council/leeds,Leeds City Council,31/03/2016,Central & Corporate,Commercial Services Trading Services,Supplies and Services,Operational Materials,205,18-Mar-16,1603-00291,0,165.26,R,Access Locksmiths (Leeds) Limited,No
Http://opendatacommunities.org/id/metropolitan-district-council/leeds,Leeds City Council,31/03/2016,Central & Corporate,Commercial Services Trading Services,Supplies and Services,Operational Materials,205,18-Mar-16,1603-00292,0,28.8,R,Access Locksmiths (Leeds) Limited,No
Http://opendatacommunities.org/id/metropolitan-district-council/leeds,Leeds City Council,31/03/2016,Central & Corporate,Commercial Services Trading Services,Supplies and Services,Operational Materials,205,18-Mar-16,1603-00293,0,20.28,R,Access Locksmiths (Leeds) Limited,No
Http://opendatacommunities.org/id/metropolitan-district-council/leeds,Leeds City Council,31/03/2016,Central & Corporate,Commercial Services Trading Services,Supplies and Services,Operational Materials,205,18-Mar-16,1603-00294,0,42.53,R,Access Locksmiths (Leeds) Limited,No
Http://opendatacommunities.org/id/metropolitan-district-council/leeds,Leeds City Council,31/03/2016,City Development,Libraries  Arts & Heritage,Supplies and Services,Bought In Professional Services,277,23-Mar-16,1603-00295,0,2392,R,Access Moving Image Ltd,No
Http://opendatacommunities.org/id/metropolitan-district-council/leeds,Leeds City Council,31/03/2016,Central & Corporate,Commercial Services Trading Services,Supplies and Services,Operational Materials,205,02-Mar-16,1603-00296,0,445,R,Access Opening Systems Limited,No
Http://opendatacommunities.org/id/metropolitan-district-council/leeds,Leeds City Council,31/03/2016,Central & Corporate,Commercial Services Trading Services,Supplies and Services,Operational Materials,205,02-Mar-16,1603-00297,0,112.5,R,Access Opening Systems Limited,No
Http://opendatacommunities.org/id/metropolitan-district-council/leeds,Leeds City Council,31/03/2016,Central & Corporate,Commercial Services Trading Services,Supplies and Services,Operational Materials,205,02-Mar-16,1603-00298,0,180,R,Access Opening Systems Limited,No
Http://opendatacommunities.org/id/metropolitan-district-council/leeds,Leeds City Council,31/03/2016,Central & Corporate,Commercial Services Trading Services,Supplies and Services,Operational Materials,205,04-Mar-16,1603-00299,0,143.5,R,Access Opening Systems Limited,No
Http://opendatacommunities.org/id/metropolitan-district-council/leeds,Leeds City Council,31/03/2016,Central & Corporate,Commercial Services Trading Services,Supplies and Services,Operational Materials,205,04-Mar-16,1603-00300,0,135,R,Access Opening Systems Limited,No
Http://opendatacommunities.org/id/metropolitan-district-council/leeds,Leeds City Council,31/03/2016,Central & Corporate,Commercial Services Trading Services,Supplies and Services,Operational Materials,205,04-Mar-16,1603-00301,0,135,R,Access Opening Systems Limited,No
Http://opendatacommunities.org/id/metropolitan-district-council/leeds,Leeds City Council,31/03/2016,Central & Corporate,Commercial Services Trading Services,Supplies and Services,Operational Materials,205,04-Mar-16,1603-00302,0,12.5,R,Access Opening Systems Limited,No
Http://opendatacommunities.org/id/metropolitan-district-council/leeds,Leeds City Council,31/03/2016,Central & Corporate,Commercial Services Trading Services,Supplies and Services,Operational Materials,205,04-Mar-16,1603-00303,0,25.49,R,Access Opening Systems Limited,No
Http://opendatacommunities.org/id/metropolitan-district-council/leeds,Leeds City Council,31/03/2016,Central & Corporate,Commercial Services Trading Services,Supplies and Services,Other Hired And Contracted Services,265,07-Mar-16,1603-00304,0,110,R,Access Opening Systems Limited,No
Http://opendatacommunities.org/id/metropolitan-district-council/leeds,Leeds City Council,31/03/2016,Central & Corporate,Commercial Services Trading Services,Supplies and Services,Other Hired And Contracted Services,265,07-Mar-16,1603-00305,0,110,R,Access Opening Systems Limited,No
Http://opendatacommunities.org/id/metropolitan-district-council/leeds,Leeds City Council,31/03/2016,Central & Corporate,Commercial Services Trading Services,Supplies and Services,Other Hired And Contracted Services,265,07-Mar-16,1603-00306,0,135,R,Access Opening Systems Limited,No
Http://opendatacommunities.org/id/metropolitan-district-council/leeds,Leeds City Council,31/03/2016,Central & Corporate,Commercial Services Trading Services,Supplies and Services,Other Hired And Contracted Services,265,07-Mar-16,1603-00307,0,135,R,Access Opening Systems Limited,No
Http://opendatacommunities.org/id/metropolitan-district-council/leeds,Leeds City Council,31/03/2016,Central & Corporate,Commercial Services Trading Services,Supplies and Services,Other Hired And Contracted Services,265,08-Mar-16,1603-00308,0,128,R,Access Opening Systems Limited,No
Http://opendatacommunities.org/id/metropolitan-district-council/leeds,Leeds City Council,31/03/2016,Central & Corporate,Commercial Services Trading Services,Supplies and Services,Other Hired And Contracted Services,265,08-Mar-16,1603-00309,0,354.21,R,Access Opening Systems Limited,No
Http://opendatacommunities.org/id/metropolitan-district-council/leeds,Leeds City Council,31/03/2016,Central & Corporate,Commercial Services Trading Services,Supplies and Services,Operational Materials,205,11-Mar-16,1603-00310,0,1660,R,Access Opening Systems Limited,No
Http://opendatacommunities.org/id/metropolitan-district-council/leeds,Leeds City Council,31/03/2016,Central & Corporate,Commercial Services Trading Services,Supplies and Services,Operational Materials,205,11-Mar-16,1603-00311,0,80,R,Access Opening Systems Limited,No
Http://opendatacommunities.org/id/metropolitan-district-council/leeds,Leeds City Council,31/03/2016,Central & Corporate,Commercial Services Trading Services,Supplies and Services,Operational Materials,205,11-Mar-16,1603-00312,0,135.37,R,Access Opening Systems Limited,No
Http://opendatacommunities.org/id/metropolitan-district-council/leeds,Leeds City Council,31/03/2016,Central & Corporate,Commercial Services Trading Services,Supplies and Services,Other Hired And Contracted Services,265,15-Mar-16,1603-00313,0,85,R,Access Opening Systems Limited,No
Http://opendatacommunities.org/id/metropolitan-district-council/leeds,Leeds City Council,31/03/2016,Central & Corporate,Commercial Services Trading Services,Supplies and Services,Other Hired And Contracted Services,265,15-Mar-16,1603-00314,0,85,R,Access Opening Systems Limited,No
Http://opendatacommunities.org/id/metropolitan-district-council/leeds,Leeds City Council,31/03/2016,Central & Corporate,Commercial Services Trading Services,Supplies and Services,Other Hired And Contracted Services,265,15-Mar-16,1603-00315,0,85,R,Access Opening Systems Limited,No
Http://opendatacommunities.org/id/metropolitan-district-council/leeds,Leeds City Council,31/03/2016,Central & Corporate,Commercial Services Trading Services,Supplies and Services,Other Hired And Contracted Services,265,15-Mar-16,1603-00316,0,85,R,Access Opening Systems Limited,No
Http://opendatacommunities.org/id/metropolitan-district-council/leeds,Leeds City Council,31/03/2016,Central & Corporate,Commercial Services Trading Services,Supplies and Services,Other Hired And Contracted Services,265,15-Mar-16,1603-00317,0,85,R,Access Opening Systems Limited,No
Http://opendatacommunities.org/id/metropolitan-district-council/leeds,Leeds City Council,31/03/2016,Central & Corporate,Commercial Services Trading Services,Supplies and Services,Other Hired And Contracted Services,265,15-Mar-16,1603-00318,0,218.5,R,Access Opening Systems Limited,No
Http://opendatacommunities.org/id/metropolitan-district-council/leeds,Leeds City Council,31/03/2016,Central & Corporate,Commercial Services Trading Services,Supplies and Services,Other Hired And Contracted Services,265,15-Mar-16,1603-00319,0,85,R,Access Opening Systems Limited,No
Http://opendatacommunities.org/id/metropolitan-district-council/leeds,Leeds City Council,31/03/2016,Central & Corporate,Commercial Services Trading Services,Supplies and Services,Other Hired And Contracted Services,265,24-Mar-16,1603-00320,0,249.6,R,Access Opening Systems Limited,No
Http://opendatacommunities.org/id/metropolitan-district-council/leeds,Leeds City Council,31/03/2016,Central & Corporate,Commercial Services Trading Services,Supplies and Services,Other Hired And Contracted Services,265,31-Mar-16,1603-00321,0,85,R,Access Opening Systems Limited,No
Http://opendatacommunities.org/id/metropolitan-district-council/leeds,Leeds City Council,31/03/2016,Central & Corporate,Commercial Services Trading Services,Supplies and Services,Operational Materials,205,31-Mar-16,1603-00322,0,240,R,Access Opening Systems Limited,No
Http://opendatacommunities.org/id/metropolitan-district-council/leeds,Leeds City Council,31/03/2016,Central & Corporate,Commercial Services Trading Services,Supplies and Services,Other Hired And Contracted Services,265,31-Mar-16,1603-00323,0,550.7,R,Access Opening Systems Limited,No
Http://opendatacommunities.org/id/metropolitan-district-council/leeds,Leeds City Council,31/03/2016,Central & Corporate,Commercial Services Trading Services,Supplies and Services,Other Hired And Contracted Services,265,31-Mar-16,1603-00324,0,170,R,Access Opening Systems Limited,No
Http://opendatacommunities.org/id/metropolitan-district-council/leeds,Leeds City Council,31/03/2016,Central & Corporate,Commercial Services Trading Services,Supplies and Services,Other Hired And Contracted Services,265,31-Mar-16,1603-00325,0,516.5,R,Access Opening Systems Limited,No
Http://opendatacommunities.org/id/metropolitan-district-council/leeds,Leeds City Council,31/03/2016,Central & Corporate,Commercial Services Trading Services,Supplies and Services,Other Hired And Contracted Services,265,31-Mar-16,1603-00326,0,85,R,Access Opening Systems Limited,No
Http://opendatacommunities.org/id/metropolitan-district-council/leeds,Leeds City Council,31/03/2016,Central & Corporate,Commercial Services Trading Services,Supplies and Services,Other Hired And Contracted Services,265,31-Mar-16,1603-00327,0,256,R,Access Opening Systems Limited,No
Http://opendatacommunities.org/id/metropolitan-district-council/leeds,Leeds City Council,31/03/2016,Central & Corporate,Commercial Services Trading Services,Supplies and Services,Operational Materials,205,31-Mar-16,1603-00328,0,850,R,Access Opening Systems Limited,No
Http://opendatacommunities.org/id/metropolitan-district-council/leeds,Leeds City Council,31/03/2016,Central & Corporate,Commercial Services Trading Services,Supplies and Services,Other Hired And Contracted Services,265,31-Mar-16,1603-00329,0,85,R,Access Opening Systems Limited,No
Http://opendatacommunities.org/id/metropolitan-district-council/leeds,Leeds City Council,31/03/2016,Central & Corporate,Commercial Services Trading Services,Supplies and Services,Other Hired And Contracted Services,265,31-Mar-16,1603-00330,0,85,R,Access Opening Systems Limited,No
Http://opendatacommunities.org/id/metropolitan-district-council/leeds,Leeds City Council,31/03/2016,Central & Corporate,Commercial Services Trading Services,Supplies and Services,Other Hired And Contracted Services,265,31-Mar-16,1603-00331,0,88.5,R,Access Opening Systems Limited,No
Http://opendatacommunities.org/id/metropolitan-district-council/leeds,Leeds City Council,31/03/2016,Central & Corporate,Commercial Services Trading Services,Supplies and Services,Other Hired And Contracted Services,265,31-Mar-16,1603-00332,0,1823.14,R,Access Opening Systems Limited,No
Http://opendatacommunities.org/id/metropolitan-district-council/leeds,Leeds City Council,31/03/2016,Insurance,Insurance,Supplies and Services,Insurance Claims,248,24-Mar-16,1603-00333,0,1874.73,R,Accident Aftercare Group,No
Http://opendatacommunities.org/id/metropolitan-district-council/leeds,Leeds City Council,31/03/2016,Insurance,Insurance,Supplies and Services,Insurance Claims,248,03-Mar-16,1603-00334,0,1100,R,Accountant General Of The Senior Courts,No
Http://opendatacommunities.org/id/metropolitan-district-council/leeds,Leeds City Council,31/03/2016,Insurance,Insurance,Supplies and Services,Insurance Claims,248,03-Mar-16,1603-00335,0,1750,R,Accountant General Of The Senior Courts,No
Http://opendatacommunities.org/id/metropolitan-district-council/leeds,Leeds City Council,31/03/2016,Insurance,Insurance,Supplies and Services,Insurance Claims,248,03-Mar-16,1603-00336,0,1750,R,Accountant General Of The Senior Courts,No
Http://opendatacommunities.org/id/metropolitan-district-council/leeds,Leeds City Council,31/03/2016,Insurance,Insurance,Supplies and Services,Insurance Claims,248,10-Mar-16,1603-00337,0,1600,R,Accountant General Of The Senior Courts,No
Http://opendatacommunities.org/id/metropolitan-district-council/leeds,Leeds City Council,31/03/2016,Environment & Housing,Community Safety  ,Supplies and Services,Operational Furniture And Equipment,203,22-Feb-16,1603-00338,0,234.99,R,Accutime.Co.Uk,Yes
Http://opendatacommunities.org/id/metropolitan-district-council/leeds,Leeds City Council,31/03/2016,City Development,Recreation,Transport,External Hire -Occasional,304,01-Mar-16,1603-00339,0,120.35,R,Ace Container Services Limited,No
Http://opendatacommunities.org/id/metropolitan-district-council/leeds,Leeds City Council,31/03/2016,City Development,Libraries  Arts & Heritage,Transport,Hire Of Movable Plant & Machinery,315,03-Mar-16,1603-00340,0,43.5,R,Ace Container Services Limited,No
Http://opendatacommunities.org/id/metropolitan-district-council/leeds,Leeds City Council,31/03/2016,City Development,Economic Development,Supplies and Services,Grants To Businesses,243,04-Mar-16,1603-00341,0,2500,R,Ace Container Services Limited,No
Http://opendatacommunities.org/id/metropolitan-district-council/leeds,Leeds City Council,31/03/2016,City Development,Recreation,Supplies and Services,Other Hired And Contracted Services,265,09-Mar-16,1603-00342,0,130.5,R,Ace Container Services Limited,No
Http://opendatacommunities.org/id/metropolitan-district-council/leeds,Leeds City Council,31/03/2016,City Development,Economic Development,Supplies and Services,Grants To Businesses,243,11-Mar-16,1603-00343,0,2500,R,Ace Container Services Limited,No
Http://opendatacommunities.org/id/metropolitan-district-council/leeds,Leeds City Council,31/03/2016,City Development,Libraries  Arts & Heritage,Transport,Hire Of Movable Plant & Machinery,315,30-Mar-16,1603-00344,0,46.5,R,Ace Container Services Limited,No
Http://opendatacommunities.org/id/metropolitan-district-council/leeds,Leeds City Council,31/03/2016,Environment & Housing,Parks and Countryside,Supplies and Services,Operational Materials,205,29-Mar-16,1603-00345,0,3947.6,R,Ace Engineers (Morley) Ltd,No
Http://opendatacommunities.org/id/metropolitan-district-council/leeds,Leeds City Council,31/03/2016,Citizens and Communities,Communities,Supplies and Services,'Well Being' Large Grants Projects,230,11-Mar-16,1603-00346,0,900,R,Aces,No
Http://opendatacommunities.org/id/metropolitan-district-council/leeds,Leeds City Council,31/03/2016,City Development,Asset Management Services,Employees,Training & Development,70,23-Mar-16,1603-00347,0,25,R,Aces (North East Branch ),No
Http://opendatacommunities.org/id/metropolitan-district-council/leeds,Leeds City Council,31/03/2016,City Development,Libraries  Arts & Heritage,Supplies and Services,Art Galleries Total Stores,3,16-Mar-16,1603-00348,0,251.4,R,Ackerman International Trading Ltd,No
Http://opendatacommunities.org/id/metropolitan-district-council/leeds,Leeds City Council,31/03/2016,City Development,Libraries  Arts & Heritage,Supplies and Services,Art Galleries Total Stores,3,16-Mar-16,1603-00349,0,122.5,R,Ackerman International Trading Ltd,No
Http://opendatacommunities.org/id/metropolitan-district-council/leeds,Leeds City Council,31/03/2016,Environment & Housing,Parks and Countryside,Supplies and Services,Operational Materials,205,24-Mar-16,1603-00350,0,120,R,Acm,No
Http://opendatacommunities.org/id/metropolitan-district-council/leeds,Leeds City Council,31/03/2016,Civic Enterprise Leeds,Commercial Services,Supplies and Services,Operational Furniture And Equipment,203,04-Mar-16,1603-00351,0,1902,R,Acme Facilities Group Ltd,No
Http://opendatacommunities.org/id/metropolitan-district-council/leeds,Leeds City Council,31/03/2016,Childrens Services,Safeguarding Targeted & Specialist,Third Party Payments,SEN Placements,566,02-Mar-16,1603-00352,0,18138.67,R,Acorn Care And Education Ltd,No
Http://opendatacommunities.org/id/metropolitan-district-council/leeds,Leeds City Council,31/03/2016,Childrens Services,Safeguarding Targeted & Specialist,Third Party Payments,Independent Fostering Agencies,509,15-Mar-16,1603-00353,0,18138.67,R,Acorn Care And Education Ltd,No
Http://opendatacommunities.org/id/metropolitan-district-council/leeds,Leeds City Council,31/03/2016,Adult Social Care,Services For Older People - 65 And Over,Third Party Payments,Nursing Home,570,17-Mar-16,1603-00354,0,3977.16,R,Acorn Nursing Home,No
Http://opendatacommunities.org/id/metropolitan-district-council/leeds,Leeds City Council,31/03/2016,Adult Social Care,Other Adult Services,Third Party Payments,Residential - Drugs & Alcohol,583,11-Mar-16,1603-00355,0,14255.18,R,Acorn Treatment & Housing,No
Http://opendatacommunities.org/id/metropolitan-district-council/leeds,Leeds City Council,31/03/2016,Childrens Services,Learning Skills & Universal,Third Party Payments,Services Rendered By Other Organisations,511,18-Mar-16,1603-00356,0,3457.95,R,Acorns Nursery,No
Http://opendatacommunities.org/id/metropolitan-district-council/leeds,Leeds City Council,31/03/2016,Environment & Housing,Environmental Health,Supplies and Services,Other Hired And Contracted Services,265,14-Mar-16,1603-00357,0,311,R,Acoustic Calibration Services Limited,No
Http://opendatacommunities.org/id/metropolitan-district-council/leeds,Leeds City Council,31/03/2016,Adult Social Care,Services For Older People Under 65 P/Dis,Third Party Payments,Nursing Home,570,09-Mar-16,1603-00358,0,4829.44,R,Acre Green,No
Http://opendatacommunities.org/id/metropolitan-district-council/leeds,Leeds City Council,31/03/2016,Adult Social Care,Services For Older People - 65 And Over,Third Party Payments,Nursing Home,570,09-Mar-16,1603-00359,0,9568.62,R,Acre Green,No
Http://opendatacommunities.org/id/metropolitan-district-council/leeds,Leeds City Council,31/03/2016,Adult Social Care,Services For Older People - 65 And Over,Third Party Payments,Residential Care Dementia,571,09-Mar-16,1603-00360,0,1378.64,R,Acre Green,No
Http://opendatacommunities.org/id/metropolitan-district-council/leeds,Leeds City Council,31/03/2016,Adult Social Care,Services For Older People Under 65 P/Dis,Third Party Payments,Nursing Care Dementia,574,09-Mar-16,1603-00361,0,1036.8,R,Acre Green,No
Http://opendatacommunities.org/id/metropolitan-district-council/leeds,Leeds City Council,31/03/2016,Adult Social Care,Services For Older People - 65 And Over,Third Party Payments,Residential,580,09-Mar-16,1603-00362,0,12034.95,R,Acre Green,No
Http://opendatacommunities.org/id/metropolitan-district-council/leeds,Leeds City Council,31/03/2016,Adult Social Care,Services For Adults Under 65 Mental/Dis,Third Party Payments,Residential,580,09-Mar-16,1603-00363,0,1351.2,R,Acre Green,No
Http://opendatacommunities.org/id/metropolitan-district-council/leeds,Leeds City Council,31/03/2016,Childrens Services,Learning Skills & Universal,Third Party Payments,Services Rendered By Other Organisations,511,11-Mar-16,1603-00364,0,647.72,R,Acre Wood Day Nursery,No
Http://opendatacommunities.org/id/metropolitan-district-council/leeds,Leeds City Council,31/03/2016,Strategic Landlord,Strategic,Supplies and Services,Conference Meetings,253,04-Mar-16,1603-00365,0,265,R,Act Now Training Ltd,No
Http://opendatacommunities.org/id/metropolitan-district-council/leeds,Leeds City Council,31/03/2016,Strategic Landlord,Strategic,Supplies and Services,Conference Meetings,253,04-Mar-16,1603-00366,0,265,R,Act Now Training Ltd,No
Http://opendatacommunities.org/id/metropolitan-district-council/leeds,Leeds City Council,31/03/2016,City Development,Economic Development,Supplies and Services,Grants To Businesses,243,08-Mar-16,1603-00367,0,2500,R,Actaccom Limited T/A Actiform Hire Ltd,No
Http://opendatacommunities.org/id/metropolitan-district-council/leeds,Leeds City Council,31/03/2016,Adult Social Care,Services For Older People Under 65 P/Dis,Third Party Payments,Payments To Voluntary Organisations,561,04-Mar-16,1603-00368,0,116838,R,Action For Blind People,No
Http://opendatacommunities.org/id/metropolitan-district-council/leeds,Leeds City Council,31/03/2016,Childrens Services,Safeguarding Targeted & Specialist,Third Party Payments,Independent Fostering Agencies,509,09-Mar-16,1603-00369,0,4468.32,R,Action For Children,No
Http://opendatacommunities.org/id/metropolitan-district-council/leeds,Leeds City Council,31/03/2016,Childrens Services,Safeguarding Targeted & Specialist,Third Party Payments,Independent Fostering Agencies,509,09-Mar-16,1603-00370,0,4830.53,R,Action For Children,No
Http://opendatacommunities.org/id/metropolitan-district-council/leeds,Leeds City Council,31/03/2016,Childrens Services,Safeguarding Targeted & Specialist,Third Party Payments,Independent Fostering Agencies,509,09-Mar-16,1603-00371,0,4468.32,R,Action For Children,No
Http://opendatacommunities.org/id/metropolitan-district-council/leeds,Leeds City Council,31/03/2016,Childrens Services,Safeguarding Targeted & Specialist,Third Party Payments,Independent Fostering Agencies,509,09-Mar-16,1603-00372,0,4830.53,R,Action For Children,No
Http://opendatacommunities.org/id/metropolitan-district-council/leeds,Leeds City Council,31/03/2016,Childrens Services,Safeguarding Targeted & Specialist,Third Party Payments,Interagency Adoptions,559,15-Mar-16,1603-00373,0,18000,R,Action For Children,No
Http://opendatacommunities.org/id/metropolitan-district-council/leeds,Leeds City Council,31/03/2016,Childrens Services,Learning Skills & Universal,Third Party Payments,Services Rendered By Other Organisations,511,11-Mar-16,1603-00374,0,426.8,R,Active Kids Day Nursery,No
Http://opendatacommunities.org/id/metropolitan-district-council/leeds,Leeds City Council,31/03/2016,Childrens Services,Learning Skills & Universal,Third Party Payments,Services Rendered By Other Organisations,511,17-Mar-16,1603-00375,0,1007.05,R,Active Kids Day Nursery,No
Http://opendatacommunities.org/id/metropolitan-district-council/leeds,Leeds City Council,31/03/2016,Childrens Services,Safeguarding Targeted & Specialist,Third Party Payments,Section 17,551,18-Mar-16,1603-00376,0,338,R,Active Kids Day Nursery,No
Http://opendatacommunities.org/id/metropolitan-district-council/leeds,Leeds City Council as Accountable Body,31/03/2016,Social Services Pooled Budgets,Leeds Community Equip Store Pooled Budgt,Supplies and Services,Other Equipment,203,18-Mar-16,1603-00377,0,34.99,R,Active Mobility Centre Ltd,No
Http://opendatacommunities.org/id/metropolitan-district-council/leeds,Leeds City Council,31/03/2016,Environment & Housing,Parks and Countryside,Supplies and Services,Resaleable Materials,204,31-Mar-16,1603-00378,0,181,R,Acushnet Europe Limited,No
Http://opendatacommunities.org/id/metropolitan-district-council/leeds,Leeds City Council,31/03/2016,Civic Enterprise Leeds,Business Support Centre,Supplies and Services,Operational Materials,205,09-Mar-16,1603-00379,0,645,R,Ad3 Envelope Printers Limited,No
Http://opendatacommunities.org/id/metropolitan-district-council/leeds,Leeds City Council,31/03/2016,Civic Enterprise Leeds,Business Support Centre,Supplies and Services,Other Hired And Contracted Services,265,11-Mar-16,1603-00380,0,212.16,R,Ad3 Envelope Printers Limited,No
Http://opendatacommunities.org/id/metropolitan-district-council/leeds,Leeds City Council,31/03/2016,City Development,Libraries  Arts & Heritage,Income,Admissions  Booking Fees & Ticket Sales,933,29-Mar-16,1603-00381,0,12,R,REDACTED PERSONAL DATA,No
Http://opendatacommunities.org/id/metropolitan-district-council/leeds,Leeds City Council,31/03/2016,City Development,Libraries  Arts & Heritage,Supplies and Services,Other Hired And Contracted Services,265,10-Mar-16,1603-00382,0,100,R,Adam Nodwell,No
Http://opendatacommunities.org/id/metropolitan-district-council/leeds,Leeds City Council,31/03/2016,Adult Social Care,Services For Older People Under 65 P/Dis,Support Services,Professional Legal Services Charges,410,02-Mar-16,1603-00383,0,750,R,Addleshaw Goddard Llp,No
Http://opendatacommunities.org/id/metropolitan-district-council/leeds,Leeds City Council,31/03/2016,Public Health,Public Health,Third Party Payments,Public Health Commissioned Services,526,08-Mar-16,1603-00384,0,3979.18,R,Addlestone & Partners,No
Http://opendatacommunities.org/id/metropolitan-district-council/leeds,Leeds City Council,31/03/2016,Public Health,Public Health,Third Party Payments,Public Health Commissioned Services,526,31-Mar-16,1603-00385,0,196,R,Addlestone & Partners,No
Http://opendatacommunities.org/id/metropolitan-district-council/leeds,Leeds City Council,31/03/2016,Central & Corporate,Technology  ,Employees,Agency Staff,8,11-Feb-16,1603-00386,0,1916.67,R,Adecco Alfred Marks,Yes
Http://opendatacommunities.org/id/metropolitan-district-council/leeds,Leeds City Council,31/03/2016,Central & Corporate,Technology  ,Employees,Agency Staff,8,11-Feb-16,1603-00387,0,1916.67,R,Adecco Alfred Marks,Yes
Http://opendatacommunities.org/id/metropolitan-district-council/leeds,Leeds City Council,31/03/2016,Central & Corporate,Technology  ,Employees,Agency Staff,8,19-Feb-16,1603-00388,0,920,R,Adecco Alfred Marks,Yes
Http://opendatacommunities.org/id/metropolitan-district-council/leeds,Leeds City Council,31/03/2016,Childrens Services,Learning Skills & Universal,Third Party Payments,Services Rendered By Voluntary Sector,505,18-Mar-16,1603-00389,0,4773.03,R,Adel Pre School,No
Http://opendatacommunities.org/id/metropolitan-district-council/leeds,Leeds City Council,31/03/2016,Childrens Services,Safeguarding Targeted & Specialist,Third Party Payments,Placement Support,550,21-Mar-16,1603-00390,0,0,R,Adel Quaker Meeting,No
Http://opendatacommunities.org/id/metropolitan-district-council/leeds,Leeds City Council,31/03/2016,Adult Social Care,Services For Older People - 65 And Over,Third Party Payments,Residential,580,09-Mar-16,1603-00391,0,1191.28,R,Adeline Lodge,No
Http://opendatacommunities.org/id/metropolitan-district-council/leeds,Leeds City Council,31/03/2016,Adult Social Care,Services For Older People - 65 And Over,Third Party Payments,Nursing Home,570,09-Mar-16,1603-00392,0,1110.68,R,Aden House,No
Http://opendatacommunities.org/id/metropolitan-district-council/leeds,Leeds City Council,31/03/2016,Adult Social Care,Services For Older People - 65 And Over,Third Party Payments,Residential Care Dementia,571,09-Mar-16,1603-00393,0,1378.12,R,Aden House,No
Http://opendatacommunities.org/id/metropolitan-district-council/leeds,Leeds City Council,31/03/2016,Central & Corporate,Commercial Services Trading Services,Supplies and Services,Operational Materials,205,01-Mar-16,1603-00394,0,63.91,R,Adi Global,No
Http://opendatacommunities.org/id/metropolitan-district-council/leeds,Leeds City Council,31/03/2016,Central & Corporate,Commercial Services Trading Services,Supplies and Services,Operational Materials,205,04-Mar-16,1603-00395,0,1339.62,R,Adi Global,No
Http://opendatacommunities.org/id/metropolitan-district-council/leeds,Leeds City Council,31/03/2016,Central & Corporate,Commercial Services Trading Services,Supplies and Services,Operational Materials,205,04-Mar-16,1603-00396,0,1339.62,R,Adi Global,No
Http://opendatacommunities.org/id/metropolitan-district-council/leeds,Leeds City Council,31/03/2016,Central & Corporate,Commercial Services Trading Services,Supplies and Services,Operational Materials,205,04-Mar-16,1603-00397,0,1718.93,R,Adi Global,No
Http://opendatacommunities.org/id/metropolitan-district-council/leeds,Leeds City Council,31/03/2016,Central & Corporate,Commercial Services Trading Services,Supplies and Services,Operational Materials,205,08-Mar-16,1603-00398,0,249.98,R,Adi Global,No
Http://opendatacommunities.org/id/metropolitan-district-council/leeds,Leeds City Council,31/03/2016,Central & Corporate,Commercial Services Trading Services,Supplies and Services,Operational Materials,205,09-Mar-16,1603-00399,0,109.56,R,Adi Global,No
Http://opendatacommunities.org/id/metropolitan-district-council/leeds,Leeds City Council,31/03/2016,Central & Corporate,Commercial Services Trading Services,Supplies and Services,Operational Materials,205,09-Mar-16,1603-00400,0,143.96,R,Adi Global,No
Http://opendatacommunities.org/id/metropolitan-district-council/leeds,Leeds City Council,31/03/2016,Central & Corporate,Commercial Services Trading Services,Supplies and Services,Operational Materials,205,09-Mar-16,1603-00401,0,71.74,R,Adi Global,No
Http://opendatacommunities.org/id/metropolitan-district-council/leeds,Leeds City Council,31/03/2016,Central & Corporate,Commercial Services Trading Services,Supplies and Services,Operational Materials,205,11-Mar-16,1603-00402,0,6.01,R,Adi Global,No
Http://opendatacommunities.org/id/metropolitan-district-council/leeds,Leeds City Council,31/03/2016,Central & Corporate,Commercial Services Trading Services,Supplies and Services,Operational Materials,205,11-Mar-16,1603-00403,0,57.07,R,Adi Global,No
Http://opendatacommunities.org/id/metropolitan-district-council/leeds,Leeds City Council,31/03/2016,Central & Corporate,Commercial Services Trading Services,Supplies and Services,Operational Materials,205,11-Mar-16,1603-00404,0,78.23,R,Adi Global,No
Http://opendatacommunities.org/id/metropolitan-district-council/leeds,Leeds City Council,31/03/2016,Central & Corporate,Commercial Services Trading Services,Supplies and Services,Operational Materials,205,11-Mar-16,1603-00405,0,27.12,R,Adi Global,No
Http://opendatacommunities.org/id/metropolitan-district-council/leeds,Leeds City Council,31/03/2016,Central & Corporate,Commercial Services Trading Services,Supplies and Services,Operational Materials,205,11-Mar-16,1603-00406,0,1304.76,R,Adi Global,No
Http://opendatacommunities.org/id/metropolitan-district-council/leeds,Leeds City Council,31/03/2016,Central & Corporate,Commercial Services Trading Services,Supplies and Services,Operational Materials,205,11-Mar-16,1603-00407,0,1043.31,R,Adi Global,No
Http://opendatacommunities.org/id/metropolitan-district-council/leeds,Leeds City Council,31/03/2016,Central & Corporate,Commercial Services Trading Services,Supplies and Services,Operational Materials,205,11-Mar-16,1603-00408,0,928.92,R,Adi Global,No
Http://opendatacommunities.org/id/metropolitan-district-council/leeds,Leeds City Council,31/03/2016,Central & Corporate,Commercial Services Trading Services,Supplies and Services,Operational Materials,205,18-Mar-16,1603-00409,0,11.62,R,Adi Global,No
Http://opendatacommunities.org/id/metropolitan-district-council/leeds,Leeds City Council,31/03/2016,Central & Corporate,Commercial Services Trading Services,Supplies and Services,Operational Materials,205,18-Mar-16,1603-00410,0,118.69,R,Adi Global,No
Http://opendatacommunities.org/id/metropolitan-district-council/leeds,Leeds City Council,31/03/2016,Central & Corporate,Commercial Services Trading Services,Supplies and Services,Operational Materials,205,29-Mar-16,1603-00411,0,173.98,R,Adi Global,No
Http://opendatacommunities.org/id/metropolitan-district-council/leeds,Leeds City Council,31/03/2016,Central & Corporate,Commercial Services Trading Services,Supplies and Services,Operational Materials,205,29-Mar-16,1603-00412,0,9.96,R,Adi Global,No
Http://opendatacommunities.org/id/metropolitan-district-council/leeds,Leeds City Council,31/03/2016,Environment & Housing,Community Safety  ,Supplies and Services,Other Hired And Contracted Services,265,10-Feb-16,1603-00413,0,99.49,R,Adi-Gardiner Ltd,Yes
Http://opendatacommunities.org/id/metropolitan-district-council/leeds,Leeds City Council,31/03/2016,Environment & Housing,Community Safety  ,Supplies and Services,Other Hired And Contracted Services,265,11-Feb-16,1603-00414,0,113.12,R,Adi-Gardiner Ltd,Yes
Http://opendatacommunities.org/id/metropolitan-district-council/leeds,Leeds City Council,31/03/2016,Environment & Housing,Community Safety  ,Supplies and Services,Other Hired And Contracted Services,265,12-Feb-16,1603-00415,0,70.55,R,Adi-Gardiner Ltd,Yes
Http://opendatacommunities.org/id/metropolitan-district-council/leeds,Leeds City Council,31/03/2016,Environment & Housing,Environmental Health,Capital,Other Costs,7,01-Mar-16,1603-00416,0,450,C,Admas Limited,No
Http://opendatacommunities.org/id/metropolitan-district-council/leeds,Leeds City Council,31/03/2016,Environment & Housing,Environmental Health,Capital,Other Costs,7,01-Mar-16,1603-00417,0,360,C,Admas Limited,No
Http://opendatacommunities.org/id/metropolitan-district-council/leeds,Leeds City Council,31/03/2016,Central & Corporate,Commercial Services Trading Services,Supplies and Services,Other Hired And Contracted Services,265,01-Mar-16,1603-00418,0,180,R,Admas Limited,No
Http://opendatacommunities.org/id/metropolitan-district-council/leeds,Leeds City Council,31/03/2016,Environment & Housing,Environmental Health,Capital,Other Costs,7,02-Mar-16,1603-00419,0,760,C,Admas Limited,No
Http://opendatacommunities.org/id/metropolitan-district-council/leeds,Leeds City Council,31/03/2016,Central & Corporate,Commercial Services Trading Services,Supplies and Services,Other Hired And Contracted Services,265,14-Mar-16,1603-00420,0,340,R,Admas Limited,No
Http://opendatacommunities.org/id/metropolitan-district-council/leeds,Leeds City Council,31/03/2016,Central & Corporate,Commercial Services Trading Services,Supplies and Services,Other Hired And Contracted Services,265,14-Mar-16,1603-00421,0,422.5,R,Admas Limited,No
Http://opendatacommunities.org/id/metropolitan-district-council/leeds,Leeds City Council,31/03/2016,Central & Corporate,Commercial Services Trading Services,Supplies and Services,Other Hired And Contracted Services,265,14-Mar-16,1603-00422,0,180,R,Admas Limited,No
Http://opendatacommunities.org/id/metropolitan-district-council/leeds,Leeds City Council,31/03/2016,Central & Corporate,Commercial Services Trading Services,Supplies and Services,Other Hired And Contracted Services,265,14-Mar-16,1603-00423,0,180,R,Admas Limited,No
Http://opendatacommunities.org/id/metropolitan-district-council/leeds,Leeds City Council,31/03/2016,Central & Corporate,Commercial Services Trading Services,Supplies and Services,Other Hired And Contracted Services,265,16-Mar-16,1603-00424,0,180,R,Admas Limited,No
Http://opendatacommunities.org/id/metropolitan-district-council/leeds,Leeds City Council,31/03/2016,Central & Corporate,Commercial Services Trading Services,Supplies and Services,Other Hired And Contracted Services,265,23-Mar-16,1603-00425,0,180,R,Admas Limited,No
Http://opendatacommunities.org/id/metropolitan-district-council/leeds,Leeds City Council,31/03/2016,Central & Corporate,Commercial Services Trading Services,Supplies and Services,Other Hired And Contracted Services,265,23-Mar-16,1603-00426,0,180,R,Admas Limited,No
Http://opendatacommunities.org/id/metropolitan-district-council/leeds,Leeds City Council,31/03/2016,Central & Corporate,Commercial Services Trading Services,Supplies and Services,Other Hired And Contracted Services,265,24-Mar-16,1603-00427,0,310,R,Admas Limited,No
Http://opendatacommunities.org/id/metropolitan-district-council/leeds,Leeds City Council,31/03/2016,Central & Corporate,Commercial Services Trading Services,Supplies and Services,Other Hired And Contracted Services,265,31-Mar-16,1603-00428,0,180,R,Admas Limited,No
Http://opendatacommunities.org/id/metropolitan-district-council/leeds,Leeds City Council,31/03/2016,Childrens Services,Safeguarding Targeted & Specialist,Third Party Payments,Independent Fostering Agencies,509,04-Mar-16,1603-00429,0,3100,R,Adolescent And Childrens Trust,No
Http://opendatacommunities.org/id/metropolitan-district-council/leeds,Leeds City Council,31/03/2016,Childrens Services,Safeguarding Targeted & Specialist,Third Party Payments,Independent Fostering Agencies,509,04-Mar-16,1603-00430,0,2100,R,Adolescent And Childrens Trust,No
Http://opendatacommunities.org/id/metropolitan-district-council/leeds,Leeds City Council,31/03/2016,Childrens Services,Safeguarding Targeted & Specialist,Third Party Payments,Independent Fostering Agencies,509,04-Mar-16,1603-00431,0,3100,R,Adolescent And Childrens Trust,No
Http://opendatacommunities.org/id/metropolitan-district-council/leeds,Leeds City Council,31/03/2016,Childrens Services,Safeguarding Targeted & Specialist,Third Party Payments,Independent Fostering Agencies,509,04-Mar-16,1603-00432,0,3100,R,Adolescent And Childrens Trust,No
Http://opendatacommunities.org/id/metropolitan-district-council/leeds,Leeds City Council,31/03/2016,Childrens Services,Safeguarding Targeted & Specialist,Third Party Payments,Independent Fostering Agencies,509,04-Mar-16,1603-00433,0,3100,R,Adolescent And Childrens Trust,No
Http://opendatacommunities.org/id/metropolitan-district-council/leeds,Leeds City Council,31/03/2016,Childrens Services,Safeguarding Targeted & Specialist,Third Party Payments,Independent Fostering Agencies,509,04-Mar-16,1603-00434,0,3100,R,Adolescent And Childrens Trust,No
Http://opendatacommunities.org/id/metropolitan-district-council/leeds,Leeds City Council,31/03/2016,Childrens Services,Safeguarding Targeted & Specialist,Third Party Payments,Independent Fostering Agencies,509,11-Mar-16,1603-00435,0,2300,R,Adolescent And Childrens Trust,No
Http://opendatacommunities.org/id/metropolitan-district-council/leeds,Leeds City Council,31/03/2016,Childrens Services,Safeguarding Targeted & Specialist,Supplies and Services,Memberships,226,04-Mar-16,1603-00436,0,2080,R,Adoption Uk,No
Http://opendatacommunities.org/id/metropolitan-district-council/leeds,Leeds City Council as Accountable Body,31/03/2016,Social Services Pooled Budgets,Jcs For People With Learning Disabilitie,Third Party Payments,Residential,580,17-Mar-16,1603-00437,0,2609.36,R,Adrian House,No
Http://opendatacommunities.org/id/metropolitan-district-council/leeds,Leeds City Council,31/03/2016,Childrens Services,Learning Skills & Universal,Third Party Payments,Services Rendered By Other Organisations,511,11-Mar-16,1603-00438,0,800.25,R,Adriana Wrzol,No
Http://opendatacommunities.org/id/metropolitan-district-council/leeds,Leeds City Council,31/03/2016,Childrens Services,Learning Skills & Universal,Third Party Payments,Services Rendered By Other Organisations,511,18-Mar-16,1603-00439,0,836,R,Adriana Wrzol,No
Http://opendatacommunities.org/id/metropolitan-district-council/leeds,Leeds City Council,31/03/2016,City Development,Libraries  Arts & Heritage,Premises,Premises Security Services,162,03-Mar-16,1603-00440,0,1358.19,R,Adt Fire And Security Plc,No
Http://opendatacommunities.org/id/metropolitan-district-council/leeds,Leeds City Council,31/03/2016,City Development,Libraries  Arts & Heritage,Premises,Premises Security Services,162,03-Mar-16,1603-00441,0,1143.51,R,Adt Fire And Security Plc,No
Http://opendatacommunities.org/id/metropolitan-district-council/leeds,Leeds City Council,31/03/2016,Civic Enterprise Leeds,Corporate Property Management,Premises,Maintenance Of Buildings,101,08-Mar-16,1603-00442,0,416,R,Adt Fire And Security Plc,No
Http://opendatacommunities.org/id/metropolitan-district-council/leeds,Leeds City Council,31/03/2016,Civic Enterprise Leeds,Corporate Property Management,Premises,Maintenance Of Buildings,101,08-Mar-16,1603-00443,0,-416,R,Adt Fire And Security Plc,No
Http://opendatacommunities.org/id/metropolitan-district-council/leeds,Leeds City Council,31/03/2016,Civic Enterprise Leeds,Corporate Property Management,Premises,Maintenance Of Buildings,101,14-Mar-16,1603-00444,0,233,R,Adt Fire And Security Plc,No
Http://opendatacommunities.org/id/metropolitan-district-council/leeds,Leeds City Council,31/03/2016,Civic Enterprise Leeds,Corporate Property Management,Premises,Maintenance Of Buildings,101,18-Mar-16,1603-00445,0,142,R,Adt Fire And Security Plc,No
Http://opendatacommunities.org/id/metropolitan-district-council/leeds,Leeds City Council,31/03/2016,Strategic Landlord,Housing Management,Premises,Premises Security Services,162,23-Mar-16,1603-00446,0,332.15,R,Adt Fire And Security Plc,No
Http://opendatacommunities.org/id/metropolitan-district-council/leeds,Leeds City Council,31/03/2016,Civic Enterprise Leeds,Facilities Management  ,Supplies and Services,Other Hired And Contracted Services,265,12-Feb-16,1603-00447,0,452.17,R,Adt Loughton Cc,Yes
Http://opendatacommunities.org/id/metropolitan-district-council/leeds,Leeds City Council as Accountable Body,31/03/2016,Social Services Pooled Budgets,Jcs For People With Learning Disabilitie,Third Party Payments,Sheltered Accommodation,569,24-Mar-16,1603-00448,0,1332.2,R,Adult Placement Services,No
Http://opendatacommunities.org/id/metropolitan-district-council/leeds,Leeds City Council,31/03/2016,Adult Social Care,Services For Adults Under 65 Mental/Dis,Third Party Payments,Nursing Home,570,09-Mar-16,1603-00449,0,1541.96,R,Adult Supported Living Ltd,No
Http://opendatacommunities.org/id/metropolitan-district-council/leeds,Leeds City Council,31/03/2016,City Development,Libraries  Arts & Heritage,Supplies and Services,External Audit Fees,261,04-Mar-16,1603-00450,0,85,R,Advance Stocks Ltd,No
Http://opendatacommunities.org/id/metropolitan-district-council/leeds,Leeds City Council,31/03/2016,City Development,Libraries  Arts & Heritage,Supplies and Services,External Audit Fees,261,10-Mar-16,1603-00451,0,85,R,Advance Stocks Ltd,No
Http://opendatacommunities.org/id/metropolitan-district-council/leeds,Leeds City Council,31/03/2016,City Development,Libraries  Arts & Heritage,Supplies and Services,External Audit Fees,261,10-Mar-16,1603-00452,0,85,R,Advance Stocks Ltd,No
Http://opendatacommunities.org/id/metropolitan-district-council/leeds,Leeds City Council,31/03/2016,City Development,Recreation,Supplies and Services,External Audit Fees,261,24-Mar-16,1603-00453,0,235,R,Advance Stocks Ltd,No
Http://opendatacommunities.org/id/metropolitan-district-council/leeds,Leeds City Council,31/03/2016,City Development,Recreation,Supplies and Services,External Audit Fees,261,24-Mar-16,1603-00454,0,85,R,Advance Stocks Ltd,No
Http://opendatacommunities.org/id/metropolitan-district-council/leeds,Leeds City Council,31/03/2016,Childrens Services,Safeguarding Targeted & Specialist,Support Services,Legal Disbursements,411,10-Mar-16,1603-00455,0,406.13,R,Advanced Child Care Assessments Ltd,No
Http://opendatacommunities.org/id/metropolitan-district-council/leeds,Leeds City Council,31/03/2016,Central & Corporate,Commercial Services Trading Services,Supplies and Services,Operational Materials,205,18-Mar-16,1603-00456,0,85.8,R,Advanced Labelling Limited,No
Http://opendatacommunities.org/id/metropolitan-district-council/leeds,Leeds City Council as Accountable Body,31/03/2016,Social Services Pooled Budgets,Jcs For People With Learning Disabilitie,Third Party Payments,Residential,580,09-Mar-16,1603-00457,0,20248.68,R,Advitam Ltd,No
Http://opendatacommunities.org/id/metropolitan-district-council/leeds,Leeds City Council as Accountable Body,31/03/2016,Social Services Pooled Budgets,Jcs For People With Learning Disabilitie,Third Party Payments,Day Centre,564,14-Mar-16,1603-00458,0,624.3,R,Advitam Ltd,No
Http://opendatacommunities.org/id/metropolitan-district-council/leeds,Leeds City Council,31/03/2016,Adult Social Care,Services For Older People - 65 And Over,Third Party Payments,Payments To Voluntary Organisations,561,10-Mar-16,1603-00459,0,84422.93,R,Advonet,No
Http://opendatacommunities.org/id/metropolitan-district-council/leeds,Leeds City Council,31/03/2016,City Development,Economic Development,Capital,Other Costs,7,15-Mar-16,1603-00460,0,10033,C,Aecom Limited,No
Http://opendatacommunities.org/id/metropolitan-district-council/leeds,Leeds City Council,31/03/2016,City Development,Economic Development,Capital,Other Costs,7,21-Mar-16,1603-00461,0,3892.8,C,Aecom Limited,No
Http://opendatacommunities.org/id/metropolitan-district-council/leeds,Leeds City Council,31/03/2016,City Development,Economic Development,Capital,Other Costs,7,30-Mar-16,1603-00462,0,13132,C,Aecom Limited,No
Http://opendatacommunities.org/id/metropolitan-district-council/leeds,Leeds City Council as Accountable Body,31/03/2016,Social Services Pooled Budgets,Jcs For People With Learning Disabilitie,Third Party Payments,Day Centre,564,01-Mar-16,1603-00463,0,-271.4,R,Affinity Trust,No
Http://opendatacommunities.org/id/metropolitan-district-council/leeds,Leeds City Council as Accountable Body,31/03/2016,Social Services Pooled Budgets,Jcs For People With Learning Disabilitie,Third Party Payments,Day Centre,564,01-Mar-16,1603-00464,0,-2539.35,R,Affinity Trust,No
Http://opendatacommunities.org/id/metropolitan-district-council/leeds,Leeds City Council as Accountable Body,31/03/2016,Social Services Pooled Budgets,Jcs For People With Learning Disabilitie,Third Party Payments,Day Centre,564,01-Mar-16,1603-00465,0,-2031.48,R,Affinity Trust,No
Http://opendatacommunities.org/id/metropolitan-district-council/leeds,Leeds City Council as Accountable Body,31/03/2016,Social Services Pooled Budgets,Jcs For People With Learning Disabilitie,Third Party Payments,Home Care,568,01-Mar-16,1603-00466,0,1560,R,Affinity Trust,No
Http://opendatacommunities.org/id/metropolitan-district-council/leeds,Leeds City Council as Accountable Body,31/03/2016,Social Services Pooled Budgets,Jcs For People With Learning Disabilitie,Third Party Payments,Home Care,568,01-Mar-16,1603-00467,0,2752.8,R,Affinity Trust,No
Http://opendatacommunities.org/id/metropolitan-district-council/leeds,Leeds City Council,31/03/2016,Adult Social Care,Services For Older People Under 65 P/Dis,Third Party Payments,Home Care,568,01-Mar-16,1603-00468,0,168.2,R,Affinity Trust,No
Http://opendatacommunities.org/id/metropolitan-district-council/leeds,Leeds City Council,31/03/2016,Adult Social Care,Services For Older People Under 65 P/Dis,Third Party Payments,Home Care,568,01-Mar-16,1603-00469,0,454.14,R,Affinity Trust,No
Http://opendatacommunities.org/id/metropolitan-district-council/leeds,Leeds City Council as Accountable Body,31/03/2016,Social Services Pooled Budgets,Jcs For People With Learning Disabilitie,Third Party Payments,Day Centre,564,01-Mar-16,1603-00470,0,1440,R,Affinity Trust,No
Http://opendatacommunities.org/id/metropolitan-district-council/leeds,Leeds City Council as Accountable Body,31/03/2016,Social Services Pooled Budgets,Jcs For People With Learning Disabilitie,Third Party Payments,Day Centre,564,01-Mar-16,1603-00471,0,1080,R,Affinity Trust,No
Http://opendatacommunities.org/id/metropolitan-district-council/leeds,Leeds City Council,31/03/2016,Adult Social Care,Services For Older People Under 65 P/Dis,Third Party Payments,Home Care,568,01-Mar-16,1603-00472,0,526.68,R,Affinity Trust,No
Http://opendatacommunities.org/id/metropolitan-district-council/leeds,Leeds City Council as Accountable Body,31/03/2016,Social Services Pooled Budgets,Jcs For People With Learning Disabilitie,Third Party Payments,Home Care,568,08-Mar-16,1603-00473,0,767.04,R,Affinity Trust,No
Http://opendatacommunities.org/id/metropolitan-district-council/leeds,Leeds City Council,31/03/2016,Adult Social Care,Services For Older People Under 65 P/Dis,Third Party Payments,Home Care,568,08-Mar-16,1603-00474,0,134.56,R,Affinity Trust,No
Http://opendatacommunities.org/id/metropolitan-district-council/leeds,Leeds City Council as Accountable Body,31/03/2016,Social Services Pooled Budgets,Jcs For People With Learning Disabilitie,Third Party Payments,Day Centre,564,09-Mar-16,1603-00475,0,1080,R,Affinity Trust,No
Http://opendatacommunities.org/id/metropolitan-district-council/leeds,Leeds City Council as Accountable Body,31/03/2016,Social Services Pooled Budgets,Jcs For People With Learning Disabilitie,Third Party Payments,Day Centre,564,09-Mar-16,1603-00476,0,990,R,Affinity Trust,No
Http://opendatacommunities.org/id/metropolitan-district-council/leeds,Leeds City Council as Accountable Body,31/03/2016,Social Services Pooled Budgets,Jcs For People With Learning Disabilitie,Third Party Payments,Day Centre,564,10-Mar-16,1603-00477,0,17538,R,Affinity Trust,No
Http://opendatacommunities.org/id/metropolitan-district-council/leeds,Leeds City Council as Accountable Body,31/03/2016,Social Services Pooled Budgets,Jcs For People With Learning Disabilitie,Third Party Payments,Home Care,568,10-Mar-16,1603-00478,0,14162.33,R,Affinity Trust,No
Http://opendatacommunities.org/id/metropolitan-district-council/leeds,Leeds City Council as Accountable Body,31/03/2016,Social Services Pooled Budgets,Jcs For People With Learning Disabilitie,Third Party Payments,Home Care,568,10-Mar-16,1603-00479,0,47.94,R,Affinity Trust,No
Http://opendatacommunities.org/id/metropolitan-district-council/leeds,Leeds City Council as Accountable Body,31/03/2016,Social Services Pooled Budgets,Jcs For People With Learning Disabilitie,Third Party Payments,Home Care,568,10-Mar-16,1603-00480,0,383.52,R,Affinity Trust,No
Http://opendatacommunities.org/id/metropolitan-district-council/leeds,Leeds City Council as Accountable Body,31/03/2016,Social Services Pooled Budgets,Jcs For People With Learning Disabilitie,Third Party Payments,Home Care,568,10-Mar-16,1603-00481,0,336.4,R,Affinity Trust,No
Http://opendatacommunities.org/id/metropolitan-district-council/leeds,Leeds City Council as Accountable Body,31/03/2016,Social Services Pooled Budgets,Jcs For People With Learning Disabilitie,Third Party Payments,Home Care,568,10-Mar-16,1603-00482,0,816,R,Affinity Trust,No
Http://opendatacommunities.org/id/metropolitan-district-council/leeds,Leeds City Council as Accountable Body,31/03/2016,Social Services Pooled Budgets,Jcs For People With Learning Disabilitie,Third Party Payments,Home Care,568,10-Mar-16,1603-00483,0,69.16,R,Affinity Trust,No
Http://opendatacommunities.org/id/metropolitan-district-council/leeds,Leeds City Council as Accountable Body,31/03/2016,Social Services Pooled Budgets,Jcs For People With Learning Disabilitie,Third Party Payments,Home Care,568,10-Mar-16,1603-00484,0,191.76,R,Affinity Trust,No
Http://opendatacommunities.org/id/metropolitan-district-council/leeds,Leeds City Council as Accountable Body,31/03/2016,Social Services Pooled Budgets,Jcs For People With Learning Disabilitie,Third Party Payments,Day Centre,564,10-Mar-16,1603-00485,0,312.48,R,Affinity Trust,No
Http://opendatacommunities.org/id/metropolitan-district-council/leeds,Leeds City Council as Accountable Body,31/03/2016,Social Services Pooled Budgets,Jcs For People With Learning Disabilitie,Third Party Payments,Home Care,568,10-Mar-16,1603-00486,0,862.92,R,Affinity Trust,No
Http://opendatacommunities.org/id/metropolitan-district-council/leeds,Leeds City Council as Accountable Body,31/03/2016,Social Services Pooled Budgets,Jcs For People With Learning Disabilitie,Third Party Payments,Home Care,568,10-Mar-16,1603-00487,0,1452,R,Affinity Trust,No
Http://opendatacommunities.org/id/metropolitan-district-council/leeds,Leeds City Council as Accountable Body,31/03/2016,Social Services Pooled Budgets,Jcs For People With Learning Disabilitie,Third Party Payments,Home Care,568,10-Mar-16,1603-00488,0,1101.71,R,Affinity Trust,No
Http://opendatacommunities.org/id/metropolitan-district-council/leeds,Leeds City Council as Accountable Body,31/03/2016,Social Services Pooled Budgets,Jcs For People With Learning Disabilitie,Third Party Payments,Home Care,568,10-Mar-16,1603-00489,0,327.59,R,Affinity Trust,No
Http://opendatacommunities.org/id/metropolitan-district-council/leeds,Leeds City Council as Accountable Body,31/03/2016,Social Services Pooled Budgets,Jcs For People With Learning Disabilitie,Third Party Payments,Home Care,568,10-Mar-16,1603-00490,0,814.98,R,Affinity Trust,No
Http://opendatacommunities.org/id/metropolitan-district-council/leeds,Leeds City Council as Accountable Body,31/03/2016,Social Services Pooled Budgets,Jcs For People With Learning Disabilitie,Third Party Payments,Home Care,568,10-Mar-16,1603-00491,0,511.36,R,Affinity Trust,No
Http://opendatacommunities.org/id/metropolitan-district-council/leeds,Leeds City Council as Accountable Body,31/03/2016,Social Services Pooled Budgets,Jcs For People With Learning Disabilitie,Third Party Payments,Home Care,568,10-Mar-16,1603-00492,0,830.96,R,Affinity Trust,No
Http://opendatacommunities.org/id/metropolitan-district-council/leeds,Leeds City Council as Accountable Body,31/03/2016,Social Services Pooled Budgets,Jcs For People With Learning Disabilitie,Third Party Payments,Home Care,568,10-Mar-16,1603-00493,0,575.28,R,Affinity Trust,No
Http://opendatacommunities.org/id/metropolitan-district-council/leeds,Leeds City Council as Accountable Body,31/03/2016,Social Services Pooled Budgets,Jcs For People With Learning Disabilitie,Third Party Payments,Home Care,568,10-Mar-16,1603-00494,0,559.3,R,Affinity Trust,No
Http://opendatacommunities.org/id/metropolitan-district-council/leeds,Leeds City Council as Accountable Body,31/03/2016,Social Services Pooled Budgets,Jcs For People With Learning Disabilitie,Third Party Payments,Home Care,568,10-Mar-16,1603-00495,0,306,R,Affinity Trust,No
Http://opendatacommunities.org/id/metropolitan-district-council/leeds,Leeds City Council as Accountable Body,31/03/2016,Social Services Pooled Budgets,Jcs For People With Learning Disabilitie,Third Party Payments,Home Care,568,10-Mar-16,1603-00496,0,1118.6,R,Affinity Trust,No
Http://opendatacommunities.org/id/metropolitan-district-council/leeds,Leeds City Council as Accountable Body,31/03/2016,Social Services Pooled Budgets,Jcs For People With Learning Disabilitie,Third Party Payments,Home Care,568,10-Mar-16,1603-00497,0,3243.94,R,Affinity Trust,No
Http://opendatacommunities.org/id/metropolitan-district-council/leeds,Leeds City Council,31/03/2016,Adult Social Care,Services For Older People Under 65 P/Dis,Third Party Payments,Home Care,568,10-Mar-16,1603-00498,0,403.68,R,Affinity Trust,No
Http://opendatacommunities.org/id/metropolitan-district-council/leeds,Leeds City Council as Accountable Body,31/03/2016,Social Services Pooled Budgets,Jcs For People With Learning Disabilitie,Third Party Payments,Home Care,568,10-Mar-16,1603-00499,0,225,R,Affinity Trust,No
Http://opendatacommunities.org/id/metropolitan-district-council/leeds,Leeds City Council as Accountable Body,31/03/2016,Social Services Pooled Budgets,Jcs For People With Learning Disabilitie,Third Party Payments,Home Care,568,10-Mar-16,1603-00500,0,799,R,Affinity Trust,No
Http://opendatacommunities.org/id/metropolitan-district-council/leeds,Leeds City Council as Accountable Body,31/03/2016,Social Services Pooled Budgets,Jcs For People With Learning Disabilitie,Third Party Payments,Home Care,568,10-Mar-16,1603-00501,0,431.46,R,Affinity Trust,No
Http://opendatacommunities.org/id/metropolitan-district-council/leeds,Leeds City Council as Accountable Body,31/03/2016,Social Services Pooled Budgets,Jcs For People With Learning Disabilitie,Third Party Payments,Home Care,568,10-Mar-16,1603-00502,0,511.36,R,Affinity Trust,No
Http://opendatacommunities.org/id/metropolitan-district-council/leeds,Leeds City Council as Accountable Body,31/03/2016,Social Services Pooled Budgets,Jcs For People With Learning Disabilitie,Third Party Payments,Home Care,568,10-Mar-16,1603-00503,0,127.84,R,Affinity Trust,No
Http://opendatacommunities.org/id/metropolitan-district-council/leeds,Leeds City Council as Accountable Body,31/03/2016,Social Services Pooled Budgets,Jcs For People With Learning Disabilitie,Third Party Payments,Home Care,568,10-Mar-16,1603-00504,0,306.48,R,Affinity Trust,No
Http://opendatacommunities.org/id/metropolitan-district-council/leeds,Leeds City Council as Accountable Body,31/03/2016,Social Services Pooled Budgets,Jcs For People With Learning Disabilitie,Third Party Payments,Home Care,568,10-Mar-16,1603-00505,0,285,R,Affinity Trust,No
Http://opendatacommunities.org/id/metropolitan-district-council/leeds,Leeds City Council as Accountable Body,31/03/2016,Social Services Pooled Budgets,Jcs For People With Learning Disabilitie,Third Party Payments,Home Care,568,10-Mar-16,1603-00506,0,941.92,R,Affinity Trust,No
Http://opendatacommunities.org/id/metropolitan-district-council/leeds,Leeds City Council,31/03/2016,Adult Social Care,Services For Older People Under 65 P/Dis,Third Party Payments,Home Care,568,10-Mar-16,1603-00507,0,658.35,R,Affinity Trust,No
Http://opendatacommunities.org/id/metropolitan-district-council/leeds,Leeds City Council as Accountable Body,31/03/2016,Social Services Pooled Budgets,Jcs For People With Learning Disabilitie,Third Party Payments,Home Care,568,11-Mar-16,1603-00508,0,603.36,R,Affinity Trust,No
Http://opendatacommunities.org/id/metropolitan-district-council/leeds,Leeds City Council as Accountable Body,31/03/2016,Social Services Pooled Budgets,Jcs For People With Learning Disabilitie,Third Party Payments,Home Care,568,11-Mar-16,1603-00509,0,776.58,R,Affinity Trust,No
Http://opendatacommunities.org/id/metropolitan-district-council/leeds,Leeds City Council as Accountable Body,31/03/2016,Social Services Pooled Budgets,Jcs For People With Learning Disabilitie,Third Party Payments,Home Care,568,11-Mar-16,1603-00510,0,360,R,Affinity Trust,No
Http://opendatacommunities.org/id/metropolitan-district-council/leeds,Leeds City Council as Accountable Body,31/03/2016,Social Services Pooled Budgets,Jcs For People With Learning Disabilitie,Third Party Payments,Home Care,568,11-Mar-16,1603-00511,0,1710,R,Affinity Trust,No
Http://opendatacommunities.org/id/metropolitan-district-council/leeds,Leeds City Council as Accountable Body,31/03/2016,Social Services Pooled Budgets,Jcs For People With Learning Disabilitie,Third Party Payments,Home Care,568,11-Mar-16,1603-00512,0,3507.54,R,Affinity Trust,No
Http://opendatacommunities.org/id/metropolitan-district-council/leeds,Leeds City Council as Accountable Body,31/03/2016,Social Services Pooled Budgets,Jcs For People With Learning Disabilitie,Third Party Payments,Home Care,568,11-Mar-16,1603-00513,0,1810.08,R,Affinity Trust,No
Http://opendatacommunities.org/id/metropolitan-district-council/leeds,Leeds City Council as Accountable Body,31/03/2016,Social Services Pooled Budgets,Jcs For People With Learning Disabilitie,Third Party Payments,Home Care,568,11-Mar-16,1603-00514,0,1005.6,R,Affinity Trust,No
Http://opendatacommunities.org/id/metropolitan-district-council/leeds,Leeds City Council as Accountable Body,31/03/2016,Social Services Pooled Budgets,Jcs For People With Learning Disabilitie,Third Party Payments,Home Care,568,11-Mar-16,1603-00515,0,1755,R,Affinity Trust,No
Http://opendatacommunities.org/id/metropolitan-district-council/leeds,Leeds City Council as Accountable Body,31/03/2016,Social Services Pooled Budgets,Jcs For People With Learning Disabilitie,Third Party Payments,Home Care,568,11-Mar-16,1603-00516,0,450,R,Affinity Trust,No
Http://opendatacommunities.org/id/metropolitan-district-council/leeds,Leeds City Council as Accountable Body,31/03/2016,Social Services Pooled Budgets,Jcs For People With Learning Disabilitie,Third Party Payments,Home Care,568,11-Mar-16,1603-00517,0,298.31,R,Affinity Trust,No
Http://opendatacommunities.org/id/metropolitan-district-council/leeds,Leeds City Council as Accountable Body,31/03/2016,Social Services Pooled Budgets,Jcs For People With Learning Disabilitie,Third Party Payments,Home Care,568,11-Mar-16,1603-00518,0,2572.8,R,Affinity Trust,No
Http://opendatacommunities.org/id/metropolitan-district-council/leeds,Leeds City Council as Accountable Body,31/03/2016,Social Services Pooled Budgets,Jcs For People With Learning Disabilitie,Third Party Payments,Day Centre,564,11-Mar-16,1603-00519,0,1181.76,R,Affinity Trust,No
Http://opendatacommunities.org/id/metropolitan-district-council/leeds,Leeds City Council as Accountable Body,31/03/2016,Social Services Pooled Budgets,Jcs For People With Learning Disabilitie,Third Party Payments,Home Care,568,11-Mar-16,1603-00520,0,804.48,R,Affinity Trust,No
Http://opendatacommunities.org/id/metropolitan-district-council/leeds,Leeds City Council as Accountable Body,31/03/2016,Social Services Pooled Budgets,Jcs For People With Learning Disabilitie,Third Party Payments,Day Centre,564,11-Mar-16,1603-00521,0,780.62,R,Affinity Trust,No
Http://opendatacommunities.org/id/metropolitan-district-council/leeds,Leeds City Council as Accountable Body,31/03/2016,Social Services Pooled Budgets,Jcs For People With Learning Disabilitie,Third Party Payments,Day Centre,564,11-Mar-16,1603-00522,0,2581.04,R,Affinity Trust,No
Http://opendatacommunities.org/id/metropolitan-district-council/leeds,Leeds City Council as Accountable Body,31/03/2016,Social Services Pooled Budgets,Jcs For People With Learning Disabilitie,Third Party Payments,Home Care,568,11-Mar-16,1603-00523,0,465.06,R,Affinity Trust,No
Http://opendatacommunities.org/id/metropolitan-district-council/leeds,Leeds City Council as Accountable Body,31/03/2016,Social Services Pooled Budgets,Jcs For People With Learning Disabilitie,Third Party Payments,Home Care,568,11-Mar-16,1603-00524,0,720,R,Affinity Trust,No
Http://opendatacommunities.org/id/metropolitan-district-council/leeds,Leeds City Council as Accountable Body,31/03/2016,Social Services Pooled Budgets,Jcs For People With Learning Disabilitie,Third Party Payments,Home Care,568,11-Mar-16,1603-00525,0,3767.68,R,Affinity Trust,No
Http://opendatacommunities.org/id/metropolitan-district-council/leeds,Leeds City Council as Accountable Body,31/03/2016,Social Services Pooled Budgets,Jcs For People With Learning Disabilitie,Third Party Payments,Day Centre,564,11-Mar-16,1603-00526,0,3922.56,R,Affinity Trust,No
Http://opendatacommunities.org/id/metropolitan-district-council/leeds,Leeds City Council as Accountable Body,31/03/2016,Social Services Pooled Budgets,Jcs For People With Learning Disabilitie,Third Party Payments,Day Centre,564,11-Mar-16,1603-00527,0,1530,R,Affinity Trust,No
Http://opendatacommunities.org/id/metropolitan-district-council/leeds,Leeds City Council as Accountable Body,31/03/2016,Social Services Pooled Budgets,Jcs For People With Learning Disabilitie,Third Party Payments,Home Care,568,11-Mar-16,1603-00528,0,972.08,R,Affinity Trust,No
Http://opendatacommunities.org/id/metropolitan-district-council/leeds,Leeds City Council as Accountable Body,31/03/2016,Social Services Pooled Budgets,Jcs For People With Learning Disabilitie,Third Party Payments,Home Care,568,11-Mar-16,1603-00529,0,1199.99,R,Affinity Trust,No
Http://opendatacommunities.org/id/metropolitan-district-council/leeds,Leeds City Council as Accountable Body,31/03/2016,Social Services Pooled Budgets,Jcs For People With Learning Disabilitie,Third Party Payments,Home Care,568,11-Mar-16,1603-00530,0,1080,R,Affinity Trust,No
Http://opendatacommunities.org/id/metropolitan-district-council/leeds,Leeds City Council as Accountable Body,31/03/2016,Social Services Pooled Budgets,Jcs For People With Learning Disabilitie,Third Party Payments,Home Care,568,21-Mar-16,1603-00531,0,3937.5,R,Affinity Trust,No
Http://opendatacommunities.org/id/metropolitan-district-council/leeds,Leeds City Council as Accountable Body,31/03/2016,Social Services Pooled Budgets,Jcs For People With Learning Disabilitie,Third Party Payments,Home Care,568,21-Mar-16,1603-00532,0,671.16,R,Affinity Trust,No
Http://opendatacommunities.org/id/metropolitan-district-council/leeds,Leeds City Council as Accountable Body,31/03/2016,Social Services Pooled Budgets,Jcs For People With Learning Disabilitie,Third Party Payments,Home Care,568,21-Mar-16,1603-00533,0,6240,R,Affinity Trust,No
Http://opendatacommunities.org/id/metropolitan-district-council/leeds,Leeds City Council,31/03/2016,Adult Social Care,Services For Older People Under 65 P/Dis,Third Party Payments,Home Care,568,22-Mar-16,1603-00534,0,498.3,R,Affinity Trust,No
Http://opendatacommunities.org/id/metropolitan-district-council/leeds,Leeds City Council,31/03/2016,Adult Social Care,Services For Older People Under 65 P/Dis,Third Party Payments,Home Care,568,22-Mar-16,1603-00535,0,575.28,R,Affinity Trust,No
Http://opendatacommunities.org/id/metropolitan-district-council/leeds,Leeds City Council,31/03/2016,Adult Social Care,Services For Older People Under 65 P/Dis,Third Party Payments,Home Care,568,22-Mar-16,1603-00536,0,255.68,R,Affinity Trust,No
Http://opendatacommunities.org/id/metropolitan-district-council/leeds,Leeds City Council,31/03/2016,Adult Social Care,Services For Older People Under 65 P/Dis,Third Party Payments,Home Care,568,22-Mar-16,1603-00537,0,1887.18,R,Affinity Trust,No
Http://opendatacommunities.org/id/metropolitan-district-council/leeds,Leeds City Council,31/03/2016,Adult Social Care,Services For Older People - 65 And Over,Third Party Payments,Home Care,568,22-Mar-16,1603-00538,0,1076.48,R,Affinity Trust,No
Http://opendatacommunities.org/id/metropolitan-district-council/leeds,Leeds City Council as Accountable Body,31/03/2016,Social Services Pooled Budgets,Jcs For People With Learning Disabilitie,Third Party Payments,Home Care,568,22-Mar-16,1603-00539,0,1346.32,R,Affinity Trust,No
Http://opendatacommunities.org/id/metropolitan-district-council/leeds,Leeds City Council,31/03/2016,Adult Social Care,Services For Older People - 65 And Over,Third Party Payments,Home Care,568,30-Mar-16,1603-00540,0,1076.48,R,Affinity Trust,No
Http://opendatacommunities.org/id/metropolitan-district-council/leeds,Leeds City Council,31/03/2016,Childrens Services,Safeguarding Targeted & Specialist,Third Party Payments,Section 17,551,31-Mar-16,1603-00541,0,1563.75,R,Affinity Trust,No
Http://opendatacommunities.org/id/metropolitan-district-council/leeds,Leeds City Council as Accountable Body,31/03/2016,Social Services Pooled Budgets,Jcs For People With Learning Disabilitie,Third Party Payments,Sheltered Accommodation,569,09-Mar-16,1603-00542,0,83849.72,R,Affinity Trust North Divisional Office,No
Http://opendatacommunities.org/id/metropolitan-district-council/leeds,Leeds City Council as Accountable Body,31/03/2016,Social Services Pooled Budgets,Jcs For People With Learning Disabilitie,Third Party Payments,Residential,580,09-Mar-16,1603-00543,0,2194.42,R,Affinity Trust North Divisional Office,No
Http://opendatacommunities.org/id/metropolitan-district-council/leeds,Leeds City Council,31/03/2016,Environment & Housing,Parks And Countryside  ,Transport,Hire Of Movable Plant & Machinery,315,17-Feb-16,1603-00544,0,2280,R,Afi Uplift Ltd,Yes
Http://opendatacommunities.org/id/metropolitan-district-council/leeds,Leeds City Council,31/03/2016,Environment & Housing,Parks And Countryside  ,Supplies and Services,Operational Materials,205,17-Feb-16,1603-00545,0,40.24,R,Afs Animal Care Lt,Yes
Http://opendatacommunities.org/id/metropolitan-district-council/leeds,Leeds City Council,31/03/2016,Environment & Housing,SP Contracts & SECC,Third Party Payments,Supporting Ppl - Block Gross Chargeable,514,18-Mar-16,1603-00546,0,3816.33,R,Age Uk Leeds,No
Http://opendatacommunities.org/id/metropolitan-district-council/leeds,Leeds City Council,31/03/2016,City Development,Libraries  Arts & Heritage,Supplies and Services,Bought In Professional Services,277,15-Mar-16,1603-00547,0,1500,R,Agere Learning,No
Http://opendatacommunities.org/id/metropolitan-district-council/leeds,Leeds City Council,31/03/2016,City Development,Libraries  Arts & Heritage,Supplies and Services,Bought In Professional Services,277,24-Mar-16,1603-00548,0,200,R,Agere Learning,No
Http://opendatacommunities.org/id/metropolitan-district-council/leeds,Leeds City Council,31/03/2016,Adult Social Care,Services For Older People Under 65 P/Dis,Third Party Payments,Residential,580,09-Mar-16,1603-00549,0,5598.4,R,Agricola House,No
Http://opendatacommunities.org/id/metropolitan-district-council/leeds,Leeds City Council,31/03/2016,Environment & Housing,Parks And Countryside  ,Supplies and Services,Other Hired And Contracted Services,265,15-Feb-16,1603-00550,0,307.38,R,Ahdb.Org.Uk,Yes
Http://opendatacommunities.org/id/metropolitan-district-council/leeds,Leeds City Council,31/03/2016,Childrens Services,Learning Skills & Universal,Supplies and Services,Office Consumables,210,31-Mar-16,1603-00551,0,21.91,R,Aid Training & Operations Ltd,No
Http://opendatacommunities.org/id/metropolitan-district-council/leeds,Leeds City Council as Accountable Body,31/03/2016,Social Services Pooled Budgets,Leeds Community Equip Store Pooled Budgt,Supplies and Services,Other Equipment,203,02-Mar-16,1603-00552,0,400,R,Aidapt Bathrooms Ltd,No
Http://opendatacommunities.org/id/metropolitan-district-council/leeds,Leeds City Council as Accountable Body,31/03/2016,Social Services Pooled Budgets,Leeds Community Equip Store Pooled Budgt,Supplies and Services,Other Equipment,203,04-Mar-16,1603-00553,0,560,R,Aidapt Bathrooms Ltd,No
Http://opendatacommunities.org/id/metropolitan-district-council/leeds,Leeds City Council as Accountable Body,31/03/2016,Social Services Pooled Budgets,Leeds Community Equip Store Pooled Budgt,Supplies and Services,Other Equipment,203,11-Mar-16,1603-00554,0,903,R,Aidapt Bathrooms Ltd,No
Http://opendatacommunities.org/id/metropolitan-district-council/leeds,Leeds City Council as Accountable Body,31/03/2016,Social Services Pooled Budgets,Leeds Community Equip Store Pooled Budgt,Supplies and Services,Other Equipment,203,22-Mar-16,1603-00555,0,2061.56,R,Aidapt Bathrooms Ltd,No
Http://opendatacommunities.org/id/metropolitan-district-council/leeds,Leeds City Council as Accountable Body,31/03/2016,Social Services Pooled Budgets,Leeds Community Equip Store Pooled Budgt,Supplies and Services,Other Equipment,203,22-Mar-16,1603-00556,0,449.4,R,Aidapt Bathrooms Ltd,No
Http://opendatacommunities.org/id/metropolitan-district-council/leeds,Leeds City Council as Accountable Body,31/03/2016,Social Services Pooled Budgets,Leeds Community Equip Store Pooled Budgt,Supplies and Services,Other Equipment,203,22-Mar-16,1603-00557,0,172,R,Aidapt Bathrooms Ltd,No
Http://opendatacommunities.org/id/metropolitan-district-council/leeds,Leeds City Council as Accountable Body,31/03/2016,Social Services Pooled Budgets,Leeds Community Equip Store Pooled Budgt,Supplies and Services,Other Equipment,203,30-Mar-16,1603-00558,0,200,R,Aidapt Bathrooms Ltd,No
Http://opendatacommunities.org/id/metropolitan-district-council/leeds,Leeds City Council as Accountable Body,31/03/2016,Social Services Pooled Budgets,Jcs For People With Learning Disabilitie,Third Party Payments,Home Care,568,04-Mar-16,1603-00559,0,54.9,R,Aid-Call Ltd,No
Http://opendatacommunities.org/id/metropolitan-district-council/leeds,Leeds City Council as Accountable Body,31/03/2016,Social Services Pooled Budgets,Jcs For People With Learning Disabilitie,Supplies and Services,Other Equipment,203,04-Mar-16,1603-00560,0,60,R,Aidservice Ltd,No
Http://opendatacommunities.org/id/metropolitan-district-council/leeds,Leeds City Council,31/03/2016,Strategic Accounts,Miscellaneous,Supplies and Services,Non-Recurring Grants,227,24-Mar-16,1603-00561,0,50,R,Air Cadets,No
Http://opendatacommunities.org/id/metropolitan-district-council/leeds,Leeds City Council,31/03/2016,Central & Corporate,Commercial Services Trading Services,Supplies and Services,Operational Materials,205,04-Mar-16,1603-00562,0,163.82,R,Air Conditioning Accessories,No
Http://opendatacommunities.org/id/metropolitan-district-council/leeds,Leeds City Council,31/03/2016,Central & Corporate,Commercial Services Trading Services,Supplies and Services,Operational Materials,205,04-Mar-16,1603-00563,0,223.88,R,Air Conditioning Accessories,No
Http://opendatacommunities.org/id/metropolitan-district-council/leeds,Leeds City Council,31/03/2016,Central & Corporate,Commercial Services Trading Services,Supplies and Services,Operational Materials,205,04-Mar-16,1603-00564,0,9.38,R,Air Conditioning Accessories,No
Http://opendatacommunities.org/id/metropolitan-district-council/leeds,Leeds City Council,31/03/2016,Central & Corporate,Commercial Services Trading Services,Supplies and Services,Operational Materials,205,11-Mar-16,1603-00565,0,37.41,R,Air Conditioning Accessories,No
Http://opendatacommunities.org/id/metropolitan-district-council/leeds,Leeds City Council,31/03/2016,Central & Corporate,Commercial Services Trading Services,Supplies and Services,Operational Materials,205,11-Mar-16,1603-00566,0,116.63,R,Air Conditioning Accessories,No
Http://opendatacommunities.org/id/metropolitan-district-council/leeds,Leeds City Council,31/03/2016,Central & Corporate,Commercial Services Trading Services,Supplies and Services,Operational Materials,205,11-Mar-16,1603-00567,0,39.52,R,Air Conditioning Accessories,No
Http://opendatacommunities.org/id/metropolitan-district-council/leeds,Leeds City Council,31/03/2016,Central & Corporate,Commercial Services Trading Services,Supplies and Services,Operational Materials,205,18-Mar-16,1603-00568,0,275.34,R,Air Conditioning Accessories,No
Http://opendatacommunities.org/id/metropolitan-district-council/leeds,Leeds City Council,31/03/2016,Central & Corporate,Commercial Services Trading Services,Supplies and Services,Operational Materials,205,18-Mar-16,1603-00569,0,105.01,R,Air Conditioning Accessories,No
Http://opendatacommunities.org/id/metropolitan-district-council/leeds,Leeds City Council,31/03/2016,Central & Corporate,Commercial Services Trading Services,Supplies and Services,Operational Materials,205,18-Mar-16,1603-00570,0,66.85,R,Air Conditioning Accessories,No
Http://opendatacommunities.org/id/metropolitan-district-council/leeds,Leeds City Council,31/03/2016,Central & Corporate,Commercial Services Trading Services,Supplies and Services,Operational Materials,205,18-Mar-16,1603-00571,0,307.99,R,Air Conditioning Accessories,No
Http://opendatacommunities.org/id/metropolitan-district-council/leeds,Leeds City Council,31/03/2016,Central & Corporate,Commercial Services Trading Services,Supplies and Services,Operational Materials,205,18-Mar-16,1603-00572,0,214.33,R,Air Conditioning Accessories,No
Http://opendatacommunities.org/id/metropolitan-district-council/leeds,Leeds City Council,31/03/2016,Central & Corporate,Commercial Services Trading Services,Supplies and Services,Operational Materials,205,18-Mar-16,1603-00573,0,42,R,Air Conditioning Accessories,No
Http://opendatacommunities.org/id/metropolitan-district-council/leeds,Leeds City Council,31/03/2016,Central & Corporate,Commercial Services Trading Services,Supplies and Services,Operational Materials,205,18-Mar-16,1603-00574,0,94.98,R,Air Conditioning Accessories,No
Http://opendatacommunities.org/id/metropolitan-district-council/leeds,Leeds City Council,31/03/2016,Central & Corporate,Commercial Services Trading Services,Supplies and Services,Operational Materials,205,18-Mar-16,1603-00575,0,42.89,R,Air Conditioning Accessories,No
Http://opendatacommunities.org/id/metropolitan-district-council/leeds,Leeds City Council,31/03/2016,Environment & Housing,Parks And Countryside  ,Transport,Plant Spares,346,11-Feb-16,1603-00576,0,28.9,R,Air Force Pneumati,Yes
Http://opendatacommunities.org/id/metropolitan-district-council/leeds,Leeds City Council,31/03/2016,Central & Corporate,Commercial Services Trading Services,Supplies and Services,Operational Materials,205,04-Mar-16,1603-00577,0,6.05,R,Air Force Pneumatics & Hydraulics,No
Http://opendatacommunities.org/id/metropolitan-district-council/leeds,Leeds City Council,31/03/2016,Central & Corporate,Commercial Services Trading Services,Supplies and Services,Operational Materials,205,04-Mar-16,1603-00578,0,15,R,Air Force Pneumatics & Hydraulics,No
Http://opendatacommunities.org/id/metropolitan-district-council/leeds,Leeds City Council,31/03/2016,Central & Corporate,Commercial Services Trading Services,Supplies and Services,Operational Materials,205,01-Mar-16,1603-00579,0,146.7,R,Air Liquide Uk,No
Http://opendatacommunities.org/id/metropolitan-district-council/leeds,Leeds City Council,31/03/2016,Environment & Housing,Environmental Health,Supplies and Services,Other Hired And Contracted Services,265,03-Mar-16,1603-00580,0,13.63,R,Air Liquide Uk,No
Http://opendatacommunities.org/id/metropolitan-district-council/leeds,Leeds City Council,31/03/2016,Environment & Housing,Environmental Health,Supplies and Services,Other Hired And Contracted Services,265,03-Mar-16,1603-00581,0,13.63,R,Air Liquide Uk,No
Http://opendatacommunities.org/id/metropolitan-district-council/leeds,Leeds City Council,31/03/2016,Environment & Housing,Environmental Health,Supplies and Services,Other Hired And Contracted Services,265,03-Mar-16,1603-00582,0,62.58,R,Air Liquide Uk,No
Http://opendatacommunities.org/id/metropolitan-district-council/leeds,Leeds City Council,31/03/2016,Central & Corporate,Commercial Services Trading Services,Supplies and Services,Operational Furniture And Equipment,203,11-Mar-16,1603-00583,0,10,R,Air Liquide Uk,No
Http://opendatacommunities.org/id/metropolitan-district-council/leeds,Leeds City Council,31/03/2016,Central & Corporate,Commercial Services Trading Services,Supplies and Services,Operational Materials,205,16-Mar-16,1603-00584,0,40.81,R,Air Liquide Uk,No
Http://opendatacommunities.org/id/metropolitan-district-council/leeds,Leeds City Council,31/03/2016,City Development,Economic Development,Supplies and Services,Grants To Businesses,243,30-Mar-16,1603-00585,0,2500,R,Aire Auto Repairs,No
Http://opendatacommunities.org/id/metropolitan-district-council/leeds,Leeds City Council,31/03/2016,Adult Social Care,Services For Adults Under 65 Mental/Dis,Third Party Payments,Residential,580,09-Mar-16,1603-00586,0,6028,R,Aire House,No
Http://opendatacommunities.org/id/metropolitan-district-council/leeds,Leeds City Council as Accountable Body,31/03/2016,Social Services Pooled Budgets,Jcs For People With Learning Disabilitie,Third Party Payments,Residential,580,09-Mar-16,1603-00587,0,3059.84,R,Aire House,No
Http://opendatacommunities.org/id/metropolitan-district-council/leeds,Leeds City Council,31/03/2016,City Development,Libraries  Arts & Heritage,Supplies and Services,Operational Furniture And Equipment,203,02-Mar-16,1603-00588,0,323.8,R,Aire Valley Gas Ltd,No
Http://opendatacommunities.org/id/metropolitan-district-council/leeds,Leeds City Council,31/03/2016,City Development,Economic Development,Capital,Other Costs,7,17-Mar-16,1603-00589,0,203716.15,C,Aire Valley Land Llp,No
Http://opendatacommunities.org/id/metropolitan-district-council/leeds,Leeds City Council,31/03/2016,Adult Social Care,Services For Older People - 65 And Over,Third Party Payments,Residential,580,08-Mar-16,1603-00590,0,331.7,R,Aire View Residential Home,No
Http://opendatacommunities.org/id/metropolitan-district-council/leeds,Leeds City Council,31/03/2016,Adult Social Care,Services For Older People - 65 And Over,Third Party Payments,Residential,580,08-Mar-16,1603-00591,0,1847.42,R,Aire View Residential Home,No
Http://opendatacommunities.org/id/metropolitan-district-council/leeds,Leeds City Council,31/03/2016,Adult Social Care,Services For Older People - 65 And Over,Third Party Payments,Residential Care Dementia,571,09-Mar-16,1603-00592,0,30472.06,R,Aire View Residential Home,No
Http://opendatacommunities.org/id/metropolitan-district-council/leeds,Leeds City Council,31/03/2016,Adult Social Care,Services For Older People - 65 And Over,Third Party Payments,Residential,580,09-Mar-16,1603-00593,0,41245.51,R,Aire View Residential Home,No
Http://opendatacommunities.org/id/metropolitan-district-council/leeds,Leeds City Council,31/03/2016,Strategic Accounts,Miscellaneous,Supplies and Services,Non-Recurring Grants,227,21-Mar-16,1603-00594,0,700,R,Aireborough & District Angling Assoc,No
Http://opendatacommunities.org/id/metropolitan-district-council/leeds,Leeds City Council,31/03/2016,Public Health,Public Health,Third Party Payments,Public Health Commissioned Services,526,08-Mar-16,1603-00595,0,2186.34,R,Aireborough Family Practice,No
Http://opendatacommunities.org/id/metropolitan-district-council/leeds,Leeds City Council,31/03/2016,Adult Social Care,Services For Older People - 65 And Over,Third Party Payments,Residential Care Dementia,571,09-Mar-16,1603-00596,0,1275.08,R,Airedale (Goldsborough),No
Http://opendatacommunities.org/id/metropolitan-district-council/leeds,Leeds City Council,31/03/2016,Adult Social Care,Services For Older People - 65 And Over,Third Party Payments,Residential,580,09-Mar-16,1603-00597,0,18333.65,R,Airedale (Goldsborough),No
Http://opendatacommunities.org/id/metropolitan-district-council/leeds,Leeds City Council,31/03/2016,Adult Social Care,Services For Older People Under 65 P/Dis,Third Party Payments,Residential,580,09-Mar-16,1603-00598,0,1891.68,R,Airedale (Goldsborough),No
Http://opendatacommunities.org/id/metropolitan-district-council/leeds,Leeds City Council,31/03/2016,Adult Social Care,Services For Older People - 65 And Over,Third Party Payments,Residential,580,16-Mar-16,1603-00599,0,269.84,R,Airedale (Goldsborough),No
Http://opendatacommunities.org/id/metropolitan-district-council/leeds,Leeds City Council,31/03/2016,Civic Enterprise Leeds,Commercial Services,Supplies and Services,Operational Furniture And Equipment,203,16-Mar-16,1603-00600,0,460,R,Airedale Catering Equipment Ltd,No
Http://opendatacommunities.org/id/metropolitan-district-council/leeds,Leeds City Council,31/03/2016,City Development,Economic Development,Supplies and Services,Grants To Businesses,243,08-Mar-16,1603-00601,0,7500,R,Airedale House Ltd,No
Http://opendatacommunities.org/id/metropolitan-district-council/leeds,Leeds City Council,31/03/2016,City Development,Economic Development,Supplies and Services,Grants To Businesses,243,01-Mar-16,1603-00602,0,1900,R,Aireline Private Hire,No
Http://opendatacommunities.org/id/metropolitan-district-council/leeds,Leeds City Council,31/03/2016,Adult Social Care,Services For Adults Under 65 Mental/Dis,Third Party Payments,Fees - Level 4,520,14-Mar-16,1603-00603,0,175,R,Ait Mitra,No
Http://opendatacommunities.org/id/metropolitan-district-council/leeds,Leeds City Council,31/03/2016,Adult Social Care,Services For Adults Under 65 Mental/Dis,Third Party Payments,Fees - Level 4,520,17-Mar-16,1603-00604,0,175,R,Ait Mitra,No
Http://opendatacommunities.org/id/metropolitan-district-council/leeds,Leeds City Council,31/03/2016,Adult Social Care,Services For Adults Under 65 Mental/Dis,Third Party Payments,Services Provided By Other NHS Bodies,522,30-Mar-16,1603-00605,0,239.5,R,Ait Mitra,No
Http://opendatacommunities.org/id/metropolitan-district-council/leeds,Leeds City Council,31/03/2016,Adult Social Care,Services For Adults Under 65 Mental/Dis,Third Party Payments,Fees - Level 4,520,30-Mar-16,1603-00606,0,175,R,Ait Mitra,No
Http://opendatacommunities.org/id/metropolitan-district-council/leeds,Leeds City Council,31/03/2016,Adult Social Care,Services For Adults Under 65 Mental/Dis,Third Party Payments,Fees - Level 4,520,30-Mar-16,1603-00607,0,175,R,Ait Mitra,No
Http://opendatacommunities.org/id/metropolitan-district-council/leeds,Leeds City Council,31/03/2016,Adult Social Care,Services For Adults Under 65 Mental/Dis,Third Party Payments,Fees - Level 4,520,30-Mar-16,1603-00608,0,175,R,Ait Mitra,No
Http://opendatacommunities.org/id/metropolitan-district-council/leeds,Leeds City Council,31/03/2016,Adult Social Care,Services For Adults Under 65 Mental/Dis,Third Party Payments,Fees - Level 4,520,30-Mar-16,1603-00609,0,175,R,Ait Mitra,No
Http://opendatacommunities.org/id/metropolitan-district-council/leeds,Leeds City Council,31/03/2016,Adult Social Care,Services For Adults Under 65 Mental/Dis,Third Party Payments,Services Provided By Other NHS Bodies,522,30-Mar-16,1603-00610,0,175,R,Ait Mitra,No
Http://opendatacommunities.org/id/metropolitan-district-council/leeds,Leeds City Council,31/03/2016,Adult Social Care,Services For Adults Under 65 Mental/Dis,Third Party Payments,Fees - Level 4,520,30-Mar-16,1603-00611,0,175,R,Ait Mitra,No
Http://opendatacommunities.org/id/metropolitan-district-council/leeds,Leeds City Council,31/03/2016,Adult Social Care,Services For Adults Under 65 Mental/Dis,Third Party Payments,Fees - Level 4,520,30-Mar-16,1603-00612,0,175,R,Ait Mitra,No
Http://opendatacommunities.org/id/metropolitan-district-council/leeds,Leeds City Council,31/03/2016,Adult Social Care,Services For Adults Under 65 Mental/Dis,Third Party Payments,Services Provided By Other NHS Bodies,522,30-Mar-16,1603-00613,0,175,R,Ait Mitra,No
Http://opendatacommunities.org/id/metropolitan-district-council/leeds,Leeds City Council,31/03/2016,Adult Social Care,Services For Adults Under 65 Mental/Dis,Third Party Payments,Fees - Level 4,520,30-Mar-16,1603-00614,0,175,R,Ait Mitra,No
Http://opendatacommunities.org/id/metropolitan-district-council/leeds,Leeds City Council,31/03/2016,Adult Social Care,Services For Adults Under 65 Mental/Dis,Third Party Payments,Fees - Level 4,520,30-Mar-16,1603-00615,0,175,R,Ait Mitra,No
Http://opendatacommunities.org/id/metropolitan-district-council/leeds,Leeds City Council,31/03/2016,Adult Social Care,Services For Adults Under 65 Mental/Dis,Third Party Payments,Fees - Level 4,520,30-Mar-16,1603-00616,0,175,R,Ait Mitra,No
Http://opendatacommunities.org/id/metropolitan-district-council/leeds,Leeds City Council,31/03/2016,Adult Social Care,Services For Adults Under 65 Mental/Dis,Third Party Payments,Fees - Level 4,520,30-Mar-16,1603-00617,0,175,R,Ait Mitra,No
Http://opendatacommunities.org/id/metropolitan-district-council/leeds,Leeds City Council,31/03/2016,Adult Social Care,Services For Adults Under 65 Mental/Dis,Third Party Payments,Fees - Level 4,520,30-Mar-16,1603-00618,0,175,R,Ait Mitra,No
Http://opendatacommunities.org/id/metropolitan-district-council/leeds,Leeds City Council,31/03/2016,Adult Social Care,Services For Adults Under 65 Mental/Dis,Third Party Payments,Fees - Level 4,520,30-Mar-16,1603-00619,0,175,R,Ait Mitra,No
Http://opendatacommunities.org/id/metropolitan-district-council/leeds,Leeds City Council,31/03/2016,Adult Social Care,Services For Adults Under 65 Mental/Dis,Third Party Payments,Fees - Level 4,520,30-Mar-16,1603-00620,0,175,R,Ait Mitra,No
Http://opendatacommunities.org/id/metropolitan-district-council/leeds,Leeds City Council,31/03/2016,Adult Social Care,Services For Adults Under 65 Mental/Dis,Third Party Payments,Fees - Level 4,520,30-Mar-16,1603-00621,0,175,R,Ait Mitra,No
Http://opendatacommunities.org/id/metropolitan-district-council/leeds,Leeds City Council,31/03/2016,Adult Social Care,Services For Adults Under 65 Mental/Dis,Third Party Payments,Fees - Level 4,520,30-Mar-16,1603-00622,0,175,R,Ait Mitra,No
Http://opendatacommunities.org/id/metropolitan-district-council/leeds,Leeds City Council,31/03/2016,Adult Social Care,Services For Adults Under 65 Mental/Dis,Third Party Payments,Fees - Level 4,520,30-Mar-16,1603-00623,0,175,R,Ait Mitra,No
Http://opendatacommunities.org/id/metropolitan-district-council/leeds,Leeds City Council,31/03/2016,Adult Social Care,Services For Adults Under 65 Mental/Dis,Third Party Payments,Fees - Level 4,520,30-Mar-16,1603-00624,0,175,R,Ait Mitra,No
Http://opendatacommunities.org/id/metropolitan-district-council/leeds,Leeds City Council,31/03/2016,Adult Social Care,Services For Adults Under 65 Mental/Dis,Third Party Payments,Fees - Level 4,520,30-Mar-16,1603-00625,0,175,R,Ait Mitra,No
Http://opendatacommunities.org/id/metropolitan-district-council/leeds,Leeds City Council as Accountable Body,31/03/2016,Social Services Pooled Budgets,Jcs For People With Learning Disabilitie,Third Party Payments,Residential,580,09-Mar-16,1603-00626,0,6173.24,R,Aitch Care Homes,No
Http://opendatacommunities.org/id/metropolitan-district-council/leeds,Leeds City Council,31/03/2016,Environment & Housing,Parks and Countryside,Supplies and Services,Operational Materials,205,24-Mar-16,1603-00627,0,175,R,Aitkens Sportsturf Ltd,No
Http://opendatacommunities.org/id/metropolitan-district-council/leeds,Leeds City Council,31/03/2016,Environment & Housing,Parks and Countryside,Supplies and Services,Operational Materials,205,24-Mar-16,1603-00628,0,738,R,Aitkens Sportsturf Ltd,No
Http://opendatacommunities.org/id/metropolitan-district-council/leeds,Leeds City Council,31/03/2016,Adult Social Care,Services For Older People - 65 And Over,Third Party Payments,Home Care,568,04-Mar-16,1603-00629,0,10737.7,R,Aj Social Care,No
Http://opendatacommunities.org/id/metropolitan-district-council/leeds,Leeds City Council,31/03/2016,Adult Social Care,Services For Older People Under 65 P/Dis,Third Party Payments,Home Care,568,04-Mar-16,1603-00630,0,9817.88,R,Aj Social Care,No
Http://opendatacommunities.org/id/metropolitan-district-council/leeds,Leeds City Council,31/03/2016,Environment & Housing,Parks And Countryside  ,Supplies and Services,Operational Furniture And Equipment,203,17-Feb-16,1603-00631,0,807.75,R,Ajh Pump Supply & Repa,Yes
Http://opendatacommunities.org/id/metropolitan-district-council/leeds,Leeds City Council,31/03/2016,Central & Corporate,Commercial Services Trading Services,Supplies and Services,Operational Materials,205,01-Mar-16,1603-00632,0,-228.28,R,Ajm Fixings & Power Tools Ltd,No
Http://opendatacommunities.org/id/metropolitan-district-council/leeds,Leeds City Council,31/03/2016,Central & Corporate,Commercial Services Trading Services,Supplies and Services,Operational Furniture And Equipment,203,01-Mar-16,1603-00633,0,425,R,Ajm Fixings & Power Tools Ltd,No
Http://opendatacommunities.org/id/metropolitan-district-council/leeds,Leeds City Council,31/03/2016,Environment & Housing,Leeds Building Services,Supplies and Services,Operational Furniture And Equipment,203,03-Mar-16,1603-00634,0,2895.9,R,Ajm Fixings & Power Tools Ltd,No
Http://opendatacommunities.org/id/metropolitan-district-council/leeds,Leeds City Council,31/03/2016,Environment & Housing,Leeds Building Services,Supplies and Services,Operational Furniture And Equipment,203,03-Mar-16,1603-00635,0,228.4,R,Ajm Fixings & Power Tools Ltd,No
Http://opendatacommunities.org/id/metropolitan-district-council/leeds,Leeds City Council,31/03/2016,Environment & Housing,Leeds Building Services,Supplies and Services,Operational Furniture And Equipment,203,03-Mar-16,1603-00636,0,47.5,R,Ajm Fixings & Power Tools Ltd,No
Http://opendatacommunities.org/id/metropolitan-district-council/leeds,Leeds City Council,31/03/2016,Environment & Housing,Leeds Building Services,Supplies and Services,Stores - Central And Other Depots,5,04-Mar-16,1603-00637,0,754.8,R,Ajm Fixings & Power Tools Ltd,No
Http://opendatacommunities.org/id/metropolitan-district-council/leeds,Leeds City Council,31/03/2016,Environment & Housing,Leeds Building Services,Supplies and Services,Stores - Central And Other Depots,5,04-Mar-16,1603-00638,0,345,R,Ajm Fixings & Power Tools Ltd,No
Http://opendatacommunities.org/id/metropolitan-district-council/leeds,Leeds City Council,31/03/2016,Environment & Housing,Leeds Building Services,Supplies and Services,Stores - Central And Other Depots,5,09-Mar-16,1603-00639,0,662.23,R,Ajm Fixings & Power Tools Ltd,No
Http://opendatacommunities.org/id/metropolitan-district-council/leeds,Leeds City Council,31/03/2016,Environment & Housing,Leeds Building Services,Supplies and Services,Stores - Central And Other Depots,5,11-Mar-16,1603-00640,0,356.5,R,Ajm Fixings & Power Tools Ltd,No
Http://opendatacommunities.org/id/metropolitan-district-council/leeds,Leeds City Council,31/03/2016,Environment & Housing,Leeds Building Services,Supplies and Services,Operational Furniture And Equipment,203,30-Mar-16,1603-00641,0,53.42,R,Ajm Fixings & Power Tools Ltd,No
Http://opendatacommunities.org/id/metropolitan-district-council/leeds,Leeds City Council,31/03/2016,Environment & Housing,Leeds Building Services,Supplies and Services,Operational Furniture And Equipment,203,30-Mar-16,1603-00642,0,317.06,R,Ajm Fixings & Power Tools Ltd,No
Http://opendatacommunities.org/id/metropolitan-district-council/leeds,Leeds City Council,31/03/2016,City Development,Economic Development,Supplies and Services,Grants To Businesses,243,11-Mar-16,1603-00643,0,5000,R,Ak Gas Appliance 2 Spares Ltd,No
Http://opendatacommunities.org/id/metropolitan-district-council/leeds,Leeds City Council,31/03/2016,Adult Social Care,Services For Older People - 65 And Over,Third Party Payments,Nursing Home,570,09-Mar-16,1603-00644,0,1279.08,R,Akari Care Ltd,No
Http://opendatacommunities.org/id/metropolitan-district-council/leeds,Leeds City Council,31/03/2016,Childrens Services,Safeguarding Targeted & Specialist,Supplies and Services,General Amenity For Clients/Residents,285,24-Mar-16,1603-00645,0,20,R,REDACTED PERSONAL DATA,No
Http://opendatacommunities.org/id/metropolitan-district-council/leeds,Leeds City Council,31/03/2016,Childrens Services,Safeguarding Targeted & Specialist,Transport,Public Transport Expenses,310,24-Mar-16,1603-00646,0,24,R,REDACTED PERSONAL DATA,No
Http://opendatacommunities.org/id/metropolitan-district-council/leeds,Leeds City Council,31/03/2016,Adult Social Care,Social Services Support Services,Employees,Training & Development,70,10-Mar-16,1603-00647,0,13500,R,Akd Solutions Ltd,No
Http://opendatacommunities.org/id/metropolitan-district-council/leeds,Leeds City Council,31/03/2016,Public Health,Public Health,Third Party Payments,Public Health Commissioned Services,526,04-Mar-16,1603-00648,0,5904.7,R,Al Shafa Pharmacy,No
Http://opendatacommunities.org/id/metropolitan-district-council/leeds,Leeds City Council,31/03/2016,Public Health,Public Health,Third Party Payments,Public Health Commissioned Services,526,29-Mar-16,1603-00649,0,4885.5,R,Al Shafa Pharmacy,No
Http://opendatacommunities.org/id/metropolitan-district-council/leeds,Leeds City Council,31/03/2016,Citizens and Communities,Benefits  Wlefare and Poverty,Supplies and Services,Non-Recurring Grants,227,30-Mar-16,1603-00650,0,5000,R,Alan & Bernice Ashworth,No
Http://opendatacommunities.org/id/metropolitan-district-council/leeds,Leeds City Council,31/03/2016,Civic Enterprise Leeds,Commercial Services,Transport,Private Hire,360,01-Mar-16,1603-00651,0,15,R,REDACTED PERSONAL DATA,No
Http://opendatacommunities.org/id/metropolitan-district-council/leeds,Leeds City Council,31/03/2016,Childrens Services,Learning Skills & Universal,Supplies and Services,Bought In Professional Services,277,23-Mar-16,1603-00652,0,350,R,Alan Easterbrook,No
Http://opendatacommunities.org/id/metropolitan-district-council/leeds,Leeds City Council,31/03/2016,City Development,Asset Management Services,Support Services,Legal Disbursements,411,11-Mar-16,1603-00653,0,750,R,Alan Evans,No
Http://opendatacommunities.org/id/metropolitan-district-council/leeds,Leeds City Council,31/03/2016,Childrens Services,Safeguarding Targeted & Specialist,Support Services,Legal Disbursements,411,16-Mar-16,1603-00654,0,1000,R,Alan Evans,No
Http://opendatacommunities.org/id/metropolitan-district-council/leeds,Leeds City Council,31/03/2016,Childrens Services,Learning Skills & Universal,Supplies and Services,Bought In Professional Services,277,11-Mar-16,1603-00655,0,1000,R,Alan Pergusey,No
Http://opendatacommunities.org/id/metropolitan-district-council/leeds,Leeds City Council,31/03/2016,Childrens Services,Safeguarding Targeted & Specialist,Supplies and Services,Admission Charges To Schools,283,15-Mar-16,1603-00656,0,1250,R,Alan Ridley,No
Http://opendatacommunities.org/id/metropolitan-district-council/leeds,Leeds City Council,31/03/2016,Insurance,Insurance,Supplies and Services,Insurance Claims,248,21-Mar-16,1603-00657,0,3060.79,R,REDACTED PERSONAL DATA,No
Http://opendatacommunities.org/id/metropolitan-district-council/leeds,Leeds City Council,31/03/2016,City Development,Libraries  Arts & Heritage,Supplies and Services,Other Hired And Contracted Services,265,11-Mar-16,1603-00658,0,2750,R,Alasdair Beatson,No
Http://opendatacommunities.org/id/metropolitan-district-council/leeds,Leeds City Council,31/03/2016,Environment & Housing,Waste Management,Supplies and Services,Other Hired And Contracted Services,265,04-Mar-16,1603-00659,0,120,R,Alcontrol Uk Ltd,No
Http://opendatacommunities.org/id/metropolitan-district-council/leeds,Leeds City Council,31/03/2016,Environment & Housing,Waste Management,Supplies and Services,Other Hired And Contracted Services,265,04-Mar-16,1603-00660,0,109,R,Alcontrol Uk Ltd,No
Http://opendatacommunities.org/id/metropolitan-district-council/leeds,Leeds City Council,31/03/2016,Environment & Housing,Environmental Health,Supplies and Services,Other Hired And Contracted Services,265,24-Mar-16,1603-00661,0,231.28,R,Alcontrol Uk Ltd,No
Http://opendatacommunities.org/id/metropolitan-district-council/leeds,Leeds City Council,31/03/2016,Environment & Housing,Waste Management,Supplies and Services,Other Hired And Contracted Services,265,24-Mar-16,1603-00662,0,359,R,Alcontrol Uk Ltd,No
Http://opendatacommunities.org/id/metropolitan-district-council/leeds,Leeds City Council,31/03/2016,Childrens Services,Safeguarding Targeted & Specialist  ,Transfer Payments,Leaving Care Allowances,634,29-Jan-16,1603-00663,0,25.26,R,Aldi,Yes
Http://opendatacommunities.org/id/metropolitan-district-council/leeds,Leeds City Council,31/03/2016,Childrens Services,Learning Skills & Universal  ,Supplies and Services,Operational Furniture And Equipment,203,02-Feb-16,1603-00664,0,179.91,R,Aldi,Yes
Http://opendatacommunities.org/id/metropolitan-district-council/leeds,Leeds City Council,31/03/2016,Childrens Services,Learning Skills & Universal  ,Supplies and Services,Operational Furniture And Equipment,203,02-Feb-16,1603-00665,0,399.8,R,Aldi,Yes
Http://opendatacommunities.org/id/metropolitan-district-council/leeds,Leeds City Council,31/03/2016,Childrens Services,Safeguarding Targeted & Specialist  ,Transfer Payments,Leaving Care Allowances,634,09-Feb-16,1603-00666,0,26.66,R,Aldi,Yes
Http://opendatacommunities.org/id/metropolitan-district-council/leeds,Leeds City Council,31/03/2016,Childrens Services,Safeguarding Targeted & Specialist  ,Supplies and Services,General Amenity For Clients/Residents,285,26-Feb-16,1603-00667,0,8.47,R,Aldi,Yes
Http://opendatacommunities.org/id/metropolitan-district-council/leeds,Leeds City Council,31/03/2016,Childrens Services,Safeguarding Targeted & Specialist,Support Services,Legal Disbursements,411,02-Mar-16,1603-00668,0,333,R,Alere Toxicology Plc,No
Http://opendatacommunities.org/id/metropolitan-district-council/leeds,Leeds City Council,31/03/2016,Childrens Services,Safeguarding Targeted & Specialist,Support Services,Legal Disbursements,411,11-Mar-16,1603-00669,0,3228.43,R,Alex Taylor,No
Http://opendatacommunities.org/id/metropolitan-district-council/leeds,Leeds City Council,31/03/2016,Childrens Services,Safeguarding Targeted & Specialist,Support Services,Legal Disbursements,411,18-Mar-16,1603-00670,0,970.9,R,Alex Taylor,No
Http://opendatacommunities.org/id/metropolitan-district-council/leeds,Leeds City Council,31/03/2016,Citizens and Communities,Benefits  Wlefare and Poverty,Supplies and Services,Grant Related Expenditure,298,22-Mar-16,1603-00671,0,500,R,Alexander Johnston,No
Http://opendatacommunities.org/id/metropolitan-district-council/leeds,Leeds City Council,31/03/2016,Adult Social Care,Services For Older People - 65 And Over,Third Party Payments,Residential Care Dementia,571,09-Mar-16,1603-00672,0,14611.12,R,Alexander Residential Home,No
Http://opendatacommunities.org/id/metropolitan-district-council/leeds,Leeds City Council,31/03/2016,Adult Social Care,Services For Older People Under 65 P/Dis,Third Party Payments,Residential,580,09-Mar-16,1603-00673,0,2488.24,R,Alexander Residential Home,No
Http://opendatacommunities.org/id/metropolitan-district-council/leeds,Leeds City Council,31/03/2016,Adult Social Care,Services For Older People - 65 And Over,Third Party Payments,Residential,580,09-Mar-16,1603-00674,0,12640.17,R,Alexander Residential Home,No
Http://opendatacommunities.org/id/metropolitan-district-council/leeds,Leeds City Council,31/03/2016,Citizens and Communities,Customer Access,Supplies and Services,Other Hired And Contracted Services,265,03-Mar-16,1603-00675,0,170,R,Alexandra Costenco,No
Http://opendatacommunities.org/id/metropolitan-district-council/leeds,Leeds City Council,31/03/2016,Adult Social Care,Services For Older People - 65 And Over,Third Party Payments,Residential Care Dementia,571,09-Mar-16,1603-00676,0,1413.2,R,Alexandra Court,No
Http://opendatacommunities.org/id/metropolitan-district-council/leeds,Leeds City Council,31/03/2016,Adult Social Care,Services For Older People - 65 And Over,Third Party Payments,Residential,580,09-Mar-16,1603-00677,0,6974.29,R,Alexandra Court,No
Http://opendatacommunities.org/id/metropolitan-district-council/leeds,Leeds City Council,31/03/2016,Citizens and Communities,Customer Access,Supplies and Services,Other Hired And Contracted Services,265,03-Mar-16,1603-00678,0,1155,R,Alexandra Hirst,No
Http://opendatacommunities.org/id/metropolitan-district-council/leeds,Leeds City Council,31/03/2016,Childrens Services,Learning Skills & Universal,Third Party Payments,Services Rendered By Other Organisations,511,11-Mar-16,1603-00679,0,1600.5,R,Alexandra Leigh,No
Http://opendatacommunities.org/id/metropolitan-district-council/leeds,Leeds City Council,31/03/2016,Civic Enterprise Leeds,Commercial Services,Supplies and Services,Other Hired And Contracted Services,265,01-Mar-16,1603-00680,0,124.24,R,Alfa Tail Lifts Limited,No
Http://opendatacommunities.org/id/metropolitan-district-council/leeds,Leeds City Council,31/03/2016,Central & Corporate,Commercial Services Trading Services,Supplies and Services,Other Hired And Contracted Services,265,03-Mar-16,1603-00681,0,1678.9,R,Alfred Bagnall & Sons (Leeds) Ltd,No
Http://opendatacommunities.org/id/metropolitan-district-council/leeds,Leeds City Council,31/03/2016,Central & Corporate,Commercial Services Trading Services,Supplies and Services,Other Hired And Contracted Services,265,10-Mar-16,1603-00682,0,432.84,R,Alfred Bagnall & Sons (Leeds) Ltd,No
Http://opendatacommunities.org/id/metropolitan-district-council/leeds,Leeds City Council,31/03/2016,Civic Enterprise Leeds,Corporate Property Management,Capital,Construction,3,24-Mar-16,1603-00683,0,1200,C,Alfred Bagnall & Sons (Leeds) Ltd,No
Http://opendatacommunities.org/id/metropolitan-district-council/leeds,Leeds City Council,31/03/2016,City Development,Recreation,Supplies and Services,Operational Furniture And Equipment,203,24-Mar-16,1603-00684,0,1250,R,Alfred Bagnall & Sons (Leeds) Ltd,No
Http://opendatacommunities.org/id/metropolitan-district-council/leeds,Leeds City Council,31/03/2016,City Development,Libraries  Arts & Heritage,Premises,Maintenance Of Buildings,101,31-Mar-16,1603-00685,0,2350,R,Alfred Bagnall & Sons (Leeds) Ltd,No
Http://opendatacommunities.org/id/metropolitan-district-council/leeds,Leeds City Council,31/03/2016,Central & Corporate,Commercial Services Trading Services,Supplies and Services,Other Hired And Contracted Services,265,31-Mar-16,1603-00686,0,4580,R,Alfred Bagnall & Sons (Leeds) Ltd,No
Http://opendatacommunities.org/id/metropolitan-district-council/leeds,Leeds City Council,31/03/2016,Adult Social Care,Other Generic Services,Supplies and Services,Operational Furniture And Equipment,203,31-Mar-16,1603-00687,0,7090,R,Alfred Bagnall & Sons (Leeds) Ltd,No
Http://opendatacommunities.org/id/metropolitan-district-council/leeds,Leeds City Council,31/03/2016,Citizens and Communities,Elections  Licensing and Registration,Income,Admissions  Booking Fees & Ticket Sales,933,24-Mar-16,1603-00688,0,40,R,REDACTED PERSONAL DATA,No
Http://opendatacommunities.org/id/metropolitan-district-council/leeds,Leeds City Council,31/03/2016,City Development,Recreation,Income,Sporting & Other Recreational Fees,928,24-Mar-16,1603-00689,0,17.13,R,REDACTED PERSONAL DATA,No
Http://opendatacommunities.org/id/metropolitan-district-council/leeds,Leeds City Council,31/03/2016,Childrens Services,Safeguarding Targeted & Specialist,Transfer Payments,Leaving Care Allowances,634,17-Mar-16,1603-00690,0,73.7,R,REDACTED PERSONAL DATA,No
Http://opendatacommunities.org/id/metropolitan-district-council/leeds,Leeds City Council,31/03/2016,Citizens and Communities,Benefits  Wlefare and Poverty,Supplies and Services,Grant Related Expenditure,298,03-Mar-16,1603-00691,0,500,R,Ali Torfi,No
Http://opendatacommunities.org/id/metropolitan-district-council/leeds,Leeds City Council,31/03/2016,Childrens Services,Safeguarding Targeted & Specialist,Third Party Payments,Section 17,551,03-Mar-16,1603-00692,0,53.9,R,REDACTED PERSONAL DATA,No
Http://opendatacommunities.org/id/metropolitan-district-council/leeds,Leeds City Council,31/03/2016,Childrens Services,Safeguarding Targeted & Specialist,Third Party Payments,Section 17,551,10-Mar-16,1603-00693,0,53.9,R,REDACTED PERSONAL DATA,No
Http://opendatacommunities.org/id/metropolitan-district-council/leeds,Leeds City Council,31/03/2016,Childrens Services,Safeguarding Targeted & Specialist,Third Party Payments,Section 17,551,17-Mar-16,1603-00694,0,53.9,R,REDACTED PERSONAL DATA,No
Http://opendatacommunities.org/id/metropolitan-district-council/leeds,Leeds City Council,31/03/2016,Childrens Services,Safeguarding Targeted & Specialist,Third Party Payments,Section 17,551,24-Mar-16,1603-00695,0,53.9,R,REDACTED PERSONAL DATA,No
Http://opendatacommunities.org/id/metropolitan-district-council/leeds,Leeds City Council,31/03/2016,Childrens Services,Safeguarding Targeted & Specialist,Third Party Payments,Section 17,551,31-Mar-16,1603-00696,0,53.9,R,REDACTED PERSONAL DATA,No
Http://opendatacommunities.org/id/metropolitan-district-council/leeds,Leeds City Council,31/03/2016,Childrens Services,Learning Skills & Universal,Third Party Payments,Services Rendered By Other Organisations,511,11-Mar-16,1603-00697,0,160.05,R,Alison Brook,No
Http://opendatacommunities.org/id/metropolitan-district-council/leeds,Leeds City Council,31/03/2016,City Development,Libraries  Arts & Heritage,Supplies and Services,Bought In Professional Services,277,18-Mar-16,1603-00698,0,900,R,Alison Glew,No
Http://opendatacommunities.org/id/metropolitan-district-council/leeds,Leeds City Council,31/03/2016,City Development,Planning & Sustainable Development,Support Services,Legal Disbursements,411,15-Mar-16,1603-00699,0,3500,R,Alison Ogley,No
Http://opendatacommunities.org/id/metropolitan-district-council/leeds,Leeds City Council,31/03/2016,City Development,Libraries  Arts & Heritage,Supplies and Services,Other Hired And Contracted Services,265,30-Mar-16,1603-00700,0,400,R,Alison Rhind,No
Http://opendatacommunities.org/id/metropolitan-district-council/leeds,Leeds City Council,31/03/2016,City Development,Libraries  Arts & Heritage,Supplies and Services,Other Hired And Contracted Services,265,15-Mar-16,1603-00701,0,175,R,REDACTED PERSONAL DATA,No
Http://opendatacommunities.org/id/metropolitan-district-council/leeds,Leeds City Council,31/03/2016,Childrens Services,Learning Skills & Universal,Income,Admissions  Booking Fees & Ticket Sales,933,10-Mar-16,1603-00702,0,80.55,R,REDACTED PERSONAL DATA,No
Http://opendatacommunities.org/id/metropolitan-district-council/leeds,Leeds City Council,31/03/2016,Childrens Services,Safeguarding Targeted & Specialist,Third Party Payments,Section 17,551,31-Mar-16,1603-00703,0,342.72,R,REDACTED PERSONAL DATA,No
Http://opendatacommunities.org/id/metropolitan-district-council/leeds,Leeds City Council,31/03/2016,Childrens Services,Safeguarding Targeted & Specialist,Transfer Payments,Leaving Care Grants,635,09-Mar-16,1603-00704,0,45,R,All Abode,No
Http://opendatacommunities.org/id/metropolitan-district-council/leeds,Leeds City Council,31/03/2016,Childrens Services,Safeguarding Targeted & Specialist,Transfer Payments,Leaving Care Allowances,634,14-Mar-16,1603-00705,0,30,R,All Abode,No
Http://opendatacommunities.org/id/metropolitan-district-council/leeds,Leeds City Council,31/03/2016,Childrens Services,Safeguarding Targeted & Specialist,Transfer Payments,Leaving Care Allowances,634,24-Mar-16,1603-00706,0,60,R,All Abode,No
Http://opendatacommunities.org/id/metropolitan-district-council/leeds,Leeds City Council,31/03/2016,Childrens Services,Learning Skills & Universal,Third Party Payments,Services Rendered By Other Organisations,511,11-Mar-16,1603-00707,0,1600.5,R,All Stars Childcare,No
Http://opendatacommunities.org/id/metropolitan-district-council/leeds,Leeds City Council,31/03/2016,Childrens Services,Learning Skills & Universal,Third Party Payments,Services Rendered By Other Organisations,511,18-Mar-16,1603-00708,0,1128.6,R,All Stars Childcare,No
Http://opendatacommunities.org/id/metropolitan-district-council/leeds,Leeds City Council,31/03/2016,Civic Enterprise Leeds,Facilities Management,Supplies and Services,Operational Furniture And Equipment,203,04-Mar-16,1603-00709,0,300,R,Allansound Communications,No
Http://opendatacommunities.org/id/metropolitan-district-council/leeds,Leeds City Council as Accountable Body,31/03/2016,Social Services Pooled Budgets,Jcs For People With Learning Disabilitie,Third Party Payments,Sheltered Accommodation,569,09-Mar-16,1603-00710,0,16596.04,R,Allerton Avenue,No
Http://opendatacommunities.org/id/metropolitan-district-council/leeds,Leeds City Council,31/03/2016,Strategic Accounts,Miscellaneous,Supplies and Services,Non-Recurring Grants,227,03-Mar-16,1603-00711,0,400,R,Allerton Bywater Fc,No
Http://opendatacommunities.org/id/metropolitan-district-council/leeds,Leeds City Council,31/03/2016,Strategic Accounts,Miscellaneous,Supplies and Services,Non-Recurring Grants,227,24-Mar-16,1603-00712,0,300,R,Allerton Bywater Parish Council,No
Http://opendatacommunities.org/id/metropolitan-district-council/leeds,Leeds City Council,31/03/2016,Public Health,Public Health,Third Party Payments,Public Health Commissioned Services,526,08-Mar-16,1603-00713,0,2902.31,R,Allerton Medical Centre,No
Http://opendatacommunities.org/id/metropolitan-district-council/leeds,Leeds City Council,31/03/2016,Environment & Housing,Parks and Countryside,Supplies and Services,Operational Materials,205,11-Mar-16,1603-00714,0,20,R,Allflex Europe (Uk) Ltd,No
Http://opendatacommunities.org/id/metropolitan-district-council/leeds,Leeds City Council,31/03/2016,Environment & Housing,Parks and Countryside,Supplies and Services,Operational Materials,205,18-Mar-16,1603-00715,0,37.5,R,Allflex Europe (Uk) Ltd,No
Http://opendatacommunities.org/id/metropolitan-district-council/leeds,Leeds City Council,31/03/2016,Central & Corporate,Finance,Supplies and Services,Bank Charges,263,01-Mar-16,1603-00716,0,-123.74,R,Alliance & Leicester Commercial Bank,No
Http://opendatacommunities.org/id/metropolitan-district-council/leeds,Leeds City Council,31/03/2016,Strategic Landlord,Housing Management,Supplies and Services,Other Hired And Contracted Services,265,04-Mar-16,1603-00717,0,319.08,R,Alliance & Leicester Commercial Bank,No
Http://opendatacommunities.org/id/metropolitan-district-council/leeds,Leeds City Council,31/03/2016,Central & Corporate,Finance,Supplies and Services,Bank Charges,263,04-Mar-16,1603-00718,0,4.01,R,Alliance & Leicester Commercial Bank,No
Http://opendatacommunities.org/id/metropolitan-district-council/leeds,Leeds City Council,31/03/2016,Central & Corporate,Finance,Supplies and Services,Bank Charges,263,04-Mar-16,1603-00719,0,232.27,R,Alliance & Leicester Commercial Bank,No
Http://opendatacommunities.org/id/metropolitan-district-council/leeds,Leeds City Council,31/03/2016,Central & Corporate,Finance,Supplies and Services,Bank Charges,263,04-Mar-16,1603-00720,0,1801.32,R,Alliance & Leicester Commercial Bank,No
Http://opendatacommunities.org/id/metropolitan-district-council/leeds,Leeds City Council,31/03/2016,Central & Corporate,Finance,Supplies and Services,Bank Charges,263,04-Mar-16,1603-00721,0,100.14,R,Alliance & Leicester Commercial Bank,No
Http://opendatacommunities.org/id/metropolitan-district-council/leeds,Leeds City Council,31/03/2016,Central & Corporate,Finance,Supplies and Services,Bank Charges,263,04-Mar-16,1603-00722,0,-902.71,R,Alliance & Leicester Commercial Bank,No
Http://opendatacommunities.org/id/metropolitan-district-council/leeds,Leeds City Council,31/03/2016,City Development,Highways,Supplies and Services,Other Hired And Contracted Services,265,01-Mar-16,1603-00723,0,799.8,R,Allied Exploration & Geotechnics Ltd,No
Http://opendatacommunities.org/id/metropolitan-district-council/leeds,Leeds City Council,31/03/2016,City Development,Highways,Supplies and Services,Other Hired And Contracted Services,265,01-Mar-16,1603-00724,0,1716.1,R,Allied Exploration & Geotechnics Ltd,No
Http://opendatacommunities.org/id/metropolitan-district-council/leeds,Leeds City Council,31/03/2016,City Development,Highways,Supplies and Services,Other Hired And Contracted Services,265,04-Mar-16,1603-00725,0,11859.66,R,Allied Exploration & Geotechnics Ltd,No
Http://opendatacommunities.org/id/metropolitan-district-council/leeds,Leeds City Council,31/03/2016,City Development,Highways,Supplies and Services,Other Hired And Contracted Services,265,08-Mar-16,1603-00726,0,6893.85,R,Allied Exploration & Geotechnics Ltd,No
Http://opendatacommunities.org/id/metropolitan-district-council/leeds,Leeds City Council,31/03/2016,City Development,Highways,Supplies and Services,Other Hired And Contracted Services,265,10-Mar-16,1603-00727,0,1572.28,R,Allied Exploration & Geotechnics Ltd,No
Http://opendatacommunities.org/id/metropolitan-district-council/leeds,Leeds City Council,31/03/2016,City Development,Highways,Supplies and Services,Other Hired And Contracted Services,265,10-Mar-16,1603-00728,0,2482.9,R,Allied Exploration & Geotechnics Ltd,No
Http://opendatacommunities.org/id/metropolitan-district-council/leeds,Leeds City Council,31/03/2016,City Development,Highways,Supplies and Services,Other Hired And Contracted Services,265,14-Mar-16,1603-00729,0,261.4,R,Allied Exploration & Geotechnics Ltd,No
Http://opendatacommunities.org/id/metropolitan-district-council/leeds,Leeds City Council,31/03/2016,City Development,Highways,Supplies and Services,Other Hired And Contracted Services,265,29-Mar-16,1603-00730,0,49029.33,R,Allied Exploration & Geotechnics Ltd,No
Http://opendatacommunities.org/id/metropolitan-district-council/leeds,Leeds City Council,31/03/2016,City Development,Highways,Supplies and Services,Other Hired And Contracted Services,265,29-Mar-16,1603-00731,0,2731.02,R,Allied Exploration & Geotechnics Ltd,No
Http://opendatacommunities.org/id/metropolitan-district-council/leeds,Leeds City Council,31/03/2016,City Development,Highways,Supplies and Services,Other Hired And Contracted Services,265,31-Mar-16,1603-00732,0,6584.45,R,Allied Exploration & Geotechnics Ltd,No
Http://opendatacommunities.org/id/metropolitan-district-council/leeds,Leeds City Council,31/03/2016,Childrens Services,Safeguarding Targeted & Specialist,Third Party Payments,Services Rendered By Voluntary Sector,505,01-Mar-16,1603-00733,0,666.4,R,Allied Healthcare,No
Http://opendatacommunities.org/id/metropolitan-district-council/leeds,Leeds City Council as Accountable Body,31/03/2016,Social Services Pooled Budgets,Jcs For People With Learning Disabilitie,Third Party Payments,Home Care,568,01-Mar-16,1603-00734,0,564.75,R,Allied Healthcare,No
Http://opendatacommunities.org/id/metropolitan-district-council/leeds,Leeds City Council as Accountable Body,31/03/2016,Social Services Pooled Budgets,Jcs For People With Learning Disabilitie,Third Party Payments,Home Care,568,01-Mar-16,1603-00735,0,564.75,R,Allied Healthcare,No
Http://opendatacommunities.org/id/metropolitan-district-council/leeds,Leeds City Council as Accountable Body,31/03/2016,Social Services Pooled Budgets,Jcs For People With Learning Disabilitie,Third Party Payments,Home Care,568,01-Mar-16,1603-00736,0,552.2,R,Allied Healthcare,No
Http://opendatacommunities.org/id/metropolitan-district-council/leeds,Leeds City Council,31/03/2016,Childrens Services,Safeguarding Targeted & Specialist,Third Party Payments,Services Rendered By Voluntary Sector,505,02-Mar-16,1603-00737,0,533.07,R,Allied Healthcare,No
Http://opendatacommunities.org/id/metropolitan-district-council/leeds,Leeds City Council as Accountable Body,31/03/2016,Social Services Pooled Budgets,Jcs For People With Learning Disabilitie,Third Party Payments,Home Care,568,02-Mar-16,1603-00738,0,552.2,R,Allied Healthcare,No
Http://opendatacommunities.org/id/metropolitan-district-council/leeds,Leeds City Council as Accountable Body,31/03/2016,Social Services Pooled Budgets,Jcs For People With Learning Disabilitie,Third Party Payments,Home Care,568,03-Mar-16,1603-00739,0,15.53,R,Allied Healthcare,No
Http://opendatacommunities.org/id/metropolitan-district-council/leeds,Leeds City Council,31/03/2016,Adult Social Care,Services For Older People - 65 And Over,Third Party Payments,Home Care,568,03-Mar-16,1603-00740,0,73.92,R,Allied Healthcare,No
Http://opendatacommunities.org/id/metropolitan-district-council/leeds,Leeds City Council,31/03/2016,Adult Social Care,Services For Older People - 65 And Over,Third Party Payments,Home Care,568,04-Mar-16,1603-00741,0,353.08,R,Allied Healthcare,No
Http://opendatacommunities.org/id/metropolitan-district-council/leeds,Leeds City Council,31/03/2016,Adult Social Care,Services For Older People - 65 And Over,Third Party Payments,Home Care,568,04-Mar-16,1603-00742,0,3264.73,R,Allied Healthcare,No
Http://opendatacommunities.org/id/metropolitan-district-council/leeds,Leeds City Council,31/03/2016,Adult Social Care,Services For Older People Under 65 P/Dis,Third Party Payments,Home Care,568,04-Mar-16,1603-00743,0,378.3,R,Allied Healthcare,No
Http://opendatacommunities.org/id/metropolitan-district-council/leeds,Leeds City Council as Accountable Body,31/03/2016,Social Services Pooled Budgets,Jcs For People With Learning Disabilitie,Third Party Payments,Home Care,568,07-Mar-16,1603-00744,0,514.56,R,Allied Healthcare,No
Http://opendatacommunities.org/id/metropolitan-district-council/leeds,Leeds City Council as Accountable Body,31/03/2016,Social Services Pooled Budgets,Jcs For People With Learning Disabilitie,Third Party Payments,Home Care,568,07-Mar-16,1603-00745,0,502,R,Allied Healthcare,No
Http://opendatacommunities.org/id/metropolitan-district-council/leeds,Leeds City Council as Accountable Body,31/03/2016,Social Services Pooled Budgets,Jcs For People With Learning Disabilitie,Third Party Payments,Home Care,568,07-Mar-16,1603-00746,0,527.12,R,Allied Healthcare,No
Http://opendatacommunities.org/id/metropolitan-district-council/leeds,Leeds City Council as Accountable Body,31/03/2016,Social Services Pooled Budgets,Jcs For People With Learning Disabilitie,Third Party Payments,Home Care,568,07-Mar-16,1603-00747,0,136.9,R,Allied Healthcare,No
Http://opendatacommunities.org/id/metropolitan-district-council/leeds,Leeds City Council as Accountable Body,31/03/2016,Social Services Pooled Budgets,Jcs For People With Learning Disabilitie,Third Party Payments,Home Care,568,07-Mar-16,1603-00748,0,241.17,R,Allied Healthcare,No
Http://opendatacommunities.org/id/metropolitan-district-council/leeds,Leeds City Council as Accountable Body,31/03/2016,Social Services Pooled Budgets,Jcs For People With Learning Disabilitie,Third Party Payments,Home Care,568,07-Mar-16,1603-00749,0,256.88,R,Allied Healthcare,No
Http://opendatacommunities.org/id/metropolitan-district-council/leeds,Leeds City Council as Accountable Body,31/03/2016,Social Services Pooled Budgets,Jcs For People With Learning Disabilitie,Third Party Payments,Home Care,568,07-Mar-16,1603-00750,0,269.73,R,Allied Healthcare,No
Http://opendatacommunities.org/id/metropolitan-district-council/leeds,Leeds City Council as Accountable Body,31/03/2016,Social Services Pooled Budgets,Jcs For People With Learning Disabilitie,Third Party Payments,Home Care,568,07-Mar-16,1603-00751,0,233.22,R,Allied Healthcare,No
Http://opendatacommunities.org/id/metropolitan-district-council/leeds,Leeds City Council as Accountable Body,31/03/2016,Social Services Pooled Budgets,Jcs For People With Learning Disabilitie,Third Party Payments,Home Care,568,07-Mar-16,1603-00752,0,275.22,R,Allied Healthcare,No
Http://opendatacommunities.org/id/metropolitan-district-council/leeds,Leeds City Council,31/03/2016,Adult Social Care,Services For Older People Under 65 P/Dis,Third Party Payments,Home Care,568,10-Mar-16,1603-00753,0,18401.15,R,Allied Healthcare,No
Http://opendatacommunities.org/id/metropolitan-district-council/leeds,Leeds City Council,31/03/2016,Adult Social Care,Services For Older People - 65 And Over,Third Party Payments,Home Care,568,10-Mar-16,1603-00754,0,377.29,R,Allied Healthcare,No
Http://opendatacommunities.org/id/metropolitan-district-council/leeds,Leeds City Council,31/03/2016,Adult Social Care,Services For Older People Under 65 P/Dis,Third Party Payments,Home Care,568,10-Mar-16,1603-00755,0,349,R,Allied Healthcare,No
Http://opendatacommunities.org/id/metropolitan-district-council/leeds,Leeds City Council,31/03/2016,Adult Social Care,Services For Older People - 65 And Over,Third Party Payments,Home Care,568,10-Mar-16,1603-00756,0,75.66,R,Allied Healthcare,No
Http://opendatacommunities.org/id/metropolitan-district-council/leeds,Leeds City Council,31/03/2016,Adult Social Care,Services For Older People - 65 And Over,Third Party Payments,Home Care,568,10-Mar-16,1603-00757,0,466.57,R,Allied Healthcare,No
Http://opendatacommunities.org/id/metropolitan-district-council/leeds,Leeds City Council,31/03/2016,Adult Social Care,Services For Adults Under 65 Mental/Dis,Third Party Payments,Home Care,568,10-Mar-16,1603-00758,0,2860.33,R,Allied Healthcare,No
Http://opendatacommunities.org/id/metropolitan-district-council/leeds,Leeds City Council,31/03/2016,Adult Social Care,Services For Older People - 65 And Over,Third Party Payments,Home Care,568,10-Mar-16,1603-00759,0,353.08,R,Allied Healthcare,No
Http://opendatacommunities.org/id/metropolitan-district-council/leeds,Leeds City Council,31/03/2016,Adult Social Care,Services For Older People - 65 And Over,Third Party Payments,Home Care,568,10-Mar-16,1603-00760,0,396.21,R,Allied Healthcare,No
Http://opendatacommunities.org/id/metropolitan-district-council/leeds,Leeds City Council,31/03/2016,Adult Social Care,Services For Older People Under 65 P/Dis,Third Party Payments,Home Care,568,10-Mar-16,1603-00761,0,330.43,R,Allied Healthcare,No
Http://opendatacommunities.org/id/metropolitan-district-council/leeds,Leeds City Council,31/03/2016,Adult Social Care,Services For Older People - 65 And Over,Third Party Payments,Home Care,568,10-Mar-16,1603-00762,0,466.57,R,Allied Healthcare,No
